Publisher Label,Publisher URI,Body Name,Service Area Categorisation,Service Division Categorisation,Expenses Type,Date,Transaction Number,Amount,Capital or Revenue,Supplier Name,Merchant Category
Peterborough,http://opendatacommunities.org/id/unitary-authority/peterborough,Peterborough City Council,Children's & Education Services - Children's Social Care,Children Looked After,Supplies and Services - Transfer Payments,01/12/2014 00:00,640248,51666.67,REVENUE,Knossington Grange School Ltd,BOARDING - OUT ALLWNCES
Peterborough,http://opendatacommunities.org/id/unitary-authority/peterborough,Peterborough City Council,Children's & Education Services - Children's Social Care,Children Looked After,Supplies and Services - Transfer Payments,01/12/2014 00:00,645255,-57611.88,REVENUE,Knossington Grange School Ltd,BOARDING - OUT ALLWNCES
Peterborough,http://opendatacommunities.org/id/unitary-authority/peterborough,Peterborough City Council,Children's & Education Services - Children's Social Care,Other Children's & Families Services,Employees,01/12/2014 00:00,680216,1795.44,REVENUE,Eden Brown Ltd,EXTERNAL TEMPORARY STAFF
Peterborough,http://opendatacommunities.org/id/unitary-authority/peterborough,Peterborough City Council,Children's & Education Services - Children's Social Care,Other Children's & Families Services,Employees,01/12/2014 00:00,681151,1795.44,REVENUE,Eden Brown Ltd,EXTERNAL TEMPORARY STAFF
Peterborough,http://opendatacommunities.org/id/unitary-authority/peterborough,Peterborough City Council,Support Services,Support Services,Supplies and Services,01/12/2014 00:00,681286,524.84,REVENUE,Rossendales C B Ltd,DEBT COLLECTION
Peterborough,http://opendatacommunities.org/id/unitary-authority/peterborough,Peterborough City Council,Deficit/(Surplus) on Trading Undertakings,Trading Account Surpluses & Deficits,Premises,01/12/2014 00:00,681851,969.22,REVENUE,Energy Report Ltd,IMPROVEMENTS
Peterborough,http://opendatacommunities.org/id/unitary-authority/peterborough,Peterborough City Council,Cultural and Related Services,Culture & Heritage,Supplies and Services,01/12/2014 00:00,684825,660,REVENUE,Pearce Hire,CONTRACTORS
Peterborough,http://opendatacommunities.org/id/unitary-authority/peterborough,Peterborough City Council,Children's & Education Services - Children's Social Care,Other Children's & Families Services,Employees,01/12/2014 00:00,686293,1753.38,REVENUE,Eden Brown Ltd,EXTERNAL TEMPORARY STAFF
Peterborough,http://opendatacommunities.org/id/unitary-authority/peterborough,Peterborough City Council,Planning Services,Planning Policy,Supplies and Services,01/12/2014 00:00,689343,17647.2,REVENUE,Cambridgeshire County Council,RESEARCH
Peterborough,http://opendatacommunities.org/id/unitary-authority/peterborough,Peterborough City Council,Support Services,Support Services,Employees,01/12/2014 00:00,689357,1306.8,REVENUE,Sellick Partnership Group Limited,EXTERNAL TEMPORARY STAFF
Peterborough,http://opendatacommunities.org/id/unitary-authority/peterborough,Peterborough City Council,Non Distributed Cost,Pensions,Third Party Payments,01/12/2014 00:00,689373,925.43,REVENUE,Capita Business Services Ltd,PREM RETIREMENT
Peterborough,http://opendatacommunities.org/id/unitary-authority/peterborough,Peterborough City Council,Children's & Education Services - Children's Social Care,Children Looked After,Supplies and Services - Transfer Payments,01/12/2014 00:00,690315,5829,REVENUE,Credo Care Ltd,BOARDING - OUT ALLWNCES
Peterborough,http://opendatacommunities.org/id/unitary-authority/peterborough,Peterborough City Council,Children's & Education Services - Education,Other School -related Education Functions,Supplies and Services - Transfer Payments,01/12/2014 00:00,690329,6711,REVENUE,Frewen College,BOARDING - OUT ALLWNCES
Peterborough,http://opendatacommunities.org/id/unitary-authority/peterborough,Peterborough City Council,Children's & Education Services - Education,Other School -related Education Functions,Supplies and Services - Transfer Payments,01/12/2014 00:00,690330,23063,REVENUE,Knossington Grange School Ltd,BOARDING - OUT ALLWNCES
Peterborough,http://opendatacommunities.org/id/unitary-authority/peterborough,Peterborough City Council,Cultural and Related Services,Culture & Heritage,Supplies and Services,01/12/2014 00:00,691420,737.58,REVENUE,Serco Ltd,COMPUTER HARDWARE
Peterborough,http://opendatacommunities.org/id/unitary-authority/peterborough,Peterborough City Council,More than one Service Area Category,More than one Service Division,Supplies and Services,01/12/2014 00:00,691421,16526.92,REVENUE,Serco Ltd,MOBILE TELEPHONES
Peterborough,http://opendatacommunities.org/id/unitary-authority/peterborough,Peterborough City Council,Support Services,Support Services,Supplies and Services,01/12/2014 00:00,691426,1818.54,REVENUE,Serco Ltd,COMPUTER HARDWARE
Peterborough,http://opendatacommunities.org/id/unitary-authority/peterborough,Peterborough City Council,Capital,Capital,Capital Pending Update to BS,01/12/2014 00:00,691427,7710,CAPITAL,Serco Ltd,BUILDING AND SITE WORKS
Peterborough,http://opendatacommunities.org/id/unitary-authority/peterborough,Peterborough City Council,Support Services,Support Services,Supplies and Services,01/12/2014 00:00,691430,506.47,REVENUE,Serco Ltd,COMPUTER HARDWARE
Peterborough,http://opendatacommunities.org/id/unitary-authority/peterborough,Peterborough City Council,Children's & Education Services - Children's Social Care,Service Strategy,Supplies and Services,01/12/2014 00:00,691433,942.47,REVENUE,Serco Ltd,COMMUNICATIONS EQUIPMENT
Peterborough,http://opendatacommunities.org/id/unitary-authority/peterborough,Peterborough City Council,Highways and Transport Services,Management and support services,Supplies and Services,01/12/2014 00:00,691441,3443.1,REVENUE,Serco Ltd,COMPUTER SOFTWARE
Peterborough,http://opendatacommunities.org/id/unitary-authority/peterborough,Peterborough City Council,Support Services,Support Services,Supplies and Services,01/12/2014 00:00,691445,1923.34,REVENUE,Serco Ltd,COMPUTER HARDWARE
Peterborough,http://opendatacommunities.org/id/unitary-authority/peterborough,Peterborough City Council,Children's & Education Services - Education,Other School -related Education Functions,Supplies and Services - Transfer Payments,01/12/2014 00:00,691490,19650.94,REVENUE,Park House School,BOARDING - OUT ALLWNCES
Peterborough,http://opendatacommunities.org/id/unitary-authority/peterborough,Peterborough City Council,Children's & Education Services - Education,Other School -related Education Functions,Supplies and Services - Transfer Payments,01/12/2014 00:00,691491,19265.78,REVENUE,Park House School,BOARDING - OUT ALLWNCES
Peterborough,http://opendatacommunities.org/id/unitary-authority/peterborough,Peterborough City Council,Children's & Education Services - Education,Other School -related Education Functions,Supplies and Services - Transfer Payments,01/12/2014 00:00,691492,18223.83,REVENUE,Park House School,BOARDING - OUT ALLWNCES
Peterborough,http://opendatacommunities.org/id/unitary-authority/peterborough,Peterborough City Council,Children's & Education Services - Education,Other School -related Education Functions,Supplies and Services - Transfer Payments,01/12/2014 00:00,691493,24806.11,REVENUE,Park House School,BOARDING - OUT ALLWNCES
Peterborough,http://opendatacommunities.org/id/unitary-authority/peterborough,Peterborough City Council,Children's & Education Services - Education,Other School -related Education Functions,Supplies and Services - Transfer Payments,01/12/2014 00:00,691494,17125,REVENUE,Park House School,BOARDING - OUT ALLWNCES
Peterborough,http://opendatacommunities.org/id/unitary-authority/peterborough,Peterborough City Council,Children's & Education Services - Education,Other School -related Education Functions,Supplies and Services - Transfer Payments,01/12/2014 00:00,691495,19265.78,REVENUE,Park House School,BOARDING - OUT ALLWNCES
Peterborough,http://opendatacommunities.org/id/unitary-authority/peterborough,Peterborough City Council,Children's & Education Services - Education,Other School -related Education Functions,Supplies and Services - Transfer Payments,01/12/2014 00:00,691496,27402.07,REVENUE,Park House School,BOARDING - OUT ALLWNCES
Peterborough,http://opendatacommunities.org/id/unitary-authority/peterborough,Peterborough City Council,Children's & Education Services - Children's Social Care,Children Looked After,Supplies and Services - Transfer Payments,01/12/2014 00:00,691540,5425,REVENUE,Ellern Mede School,BOARDING - OUT ALLWNCES
Peterborough,http://opendatacommunities.org/id/unitary-authority/peterborough,Peterborough City Council,Children's & Education Services - Children's Social Care,Children Looked After,Supplies and Services - Transfer Payments,01/12/2014 00:00,691565,10850,REVENUE,Ellern Mede School,BOARDING - OUT ALLWNCES
Peterborough,http://opendatacommunities.org/id/unitary-authority/peterborough,Peterborough City Council,Children's & Education Services - Children's Social Care,More than one Service Division,Supplies and Services - Transfer Payments,01/12/2014 00:00,691594,23870,REVENUE,East Sussex Council,BOARDING - OUT ALLWNCES
Peterborough,http://opendatacommunities.org/id/unitary-authority/peterborough,Peterborough City Council,Children's & Education Services - Children's Social Care,Other Children's & Families Services,Supplies and Services,01/12/2014 00:00,691656,1036.03,REVENUE,CAPITA Translation and Interpreting,INTERPRETATION EXPENSES
Peterborough,http://opendatacommunities.org/id/unitary-authority/peterborough,Peterborough City Council,Children's & Education Services - Children's Social Care,Other Children's & Families Services,Supplies and Services,01/12/2014 00:00,691666,4814.11,REVENUE,CAPITA Translation and Interpreting,INTERPRETATION EXPENSES
Peterborough,http://opendatacommunities.org/id/unitary-authority/peterborough,Peterborough City Council,Children's & Education Services - Children's Social Care,Other Children's & Families Services,Supplies and Services,01/12/2014 00:00,691669,887.33,REVENUE,CAPITA Translation and Interpreting,INTERPRETATION EXPENSES
Peterborough,http://opendatacommunities.org/id/unitary-authority/peterborough,Peterborough City Council,Children's & Education Services - Children's Social Care,Other Children's & Families Services,Supplies and Services,01/12/2014 00:00,691670,5668.99,REVENUE,CAPITA Translation and Interpreting,INTERPRETATION EXPENSES
Peterborough,http://opendatacommunities.org/id/unitary-authority/peterborough,Peterborough City Council,Children's & Education Services - Children's Social Care,Children Looked After,Supplies and Services - Transfer Payments,01/12/2014 00:00,691687,4720,REVENUE,Care Success Solutions Ltd,BOARDING - OUT ALLWNCES
Peterborough,http://opendatacommunities.org/id/unitary-authority/peterborough,Peterborough City Council,Children's & Education Services - Children's Social Care,Other Children's & Families Services,Employees,01/12/2014 00:00,691710,960,REVENUE,In-Trac Training & Consultancy Services,TRAINING
Peterborough,http://opendatacommunities.org/id/unitary-authority/peterborough,Peterborough City Council,Children's & Education Services - Children's Social Care,Other Children's & Families Services,Employees,01/12/2014 00:00,691779,1465.2,REVENUE,SWP Consulting,EXTERNAL TEMPORARY STAFF
Peterborough,http://opendatacommunities.org/id/unitary-authority/peterborough,Peterborough City Council,Children's & Education Services - Children's Social Care,Children's Services - Commissioning and Social Work,Supplies and Services,01/12/2014 00:00,691796,2400,REVENUE,Posh Gecko Limited,HIRED SERVICES
Peterborough,http://opendatacommunities.org/id/unitary-authority/peterborough,Peterborough City Council,Support Services,Support Services,Employees,01/12/2014 00:00,691800,1260,REVENUE,Go Management Ltd TA GoUmbrella,EXTERNAL TEMPORARY STAFF
Peterborough,http://opendatacommunities.org/id/unitary-authority/peterborough,Peterborough City Council,Children's & Education Services - Education,Other School -related Education Functions,Supplies and Services,01/12/2014 00:00,691847,13523,REVENUE,London Borough of Brent,EDUCATION EXPENSES
Peterborough,http://opendatacommunities.org/id/unitary-authority/peterborough,Peterborough City Council,Adult Social Care,Split,Third Party Payments,01/12/2014 00:00,691848,99697.16,REVENUE,Cambs & P'boro NHS Foundation Trust,THIRD PARTY PAYMENTS - CONTRACT
Peterborough,http://opendatacommunities.org/id/unitary-authority/peterborough,Peterborough City Council,Environmental and Regulatory Services,"Cemetery, Crematorium & Mortuary Services",Supplies and Services,01/12/2014 00:00,691860,1060.8,REVENUE,"Strickland, Mr A M",SPECIAL PROJECTS
Peterborough,http://opendatacommunities.org/id/unitary-authority/peterborough,Peterborough City Council,Deficit/(Surplus) on Trading Undertakings,Trading Account Surpluses & Deficits,Supplies and Services,01/12/2014 00:00,691861,18869.99,REVENUE,BW Aluminium Ltd,ITEMS FOR RESALE
Peterborough,http://opendatacommunities.org/id/unitary-authority/peterborough,Peterborough City Council,Public Health,Obesity,Premises,01/12/2014 00:00,691862,700,REVENUE,Salvation Army Peterborough,HIRE OF PREMISES
Peterborough,http://opendatacommunities.org/id/unitary-authority/peterborough,Peterborough City Council,Adult Social Care,Older People,Supplies and Services,01/12/2014 00:00,691904,2436,REVENUE,Castleview Nursing Home,PHYSICAL DISABILITY RESIDENTIAL CARE
Peterborough,http://opendatacommunities.org/id/unitary-authority/peterborough,Peterborough City Council,Adult Social Care,Older People,Supplies and Services,01/12/2014 00:00,691912,3110.4,REVENUE,Midco Care Limited,OLDER PEOPLE HOME CARE
Peterborough,http://opendatacommunities.org/id/unitary-authority/peterborough,Peterborough City Council,Corporate & Democratic Core,Democratic Representation & Managemetn,Supplies and Services,01/12/2014 00:00,691923,1581.85,REVENUE,Northgate Information Solutions,ADMINISTRATION EXPENSES
Peterborough,http://opendatacommunities.org/id/unitary-authority/peterborough,Peterborough City Council,Children's & Education Services - Children's Social Care,Other Children's & Families Services,Employees,01/12/2014 00:00,692000,1743.46,REVENUE,Medicare First,EXTERNAL TEMPORARY STAFF
Peterborough,http://opendatacommunities.org/id/unitary-authority/peterborough,Peterborough City Council,Children's & Education Services - Children's Social Care,Other Children's & Families Services,Employees,01/12/2014 00:00,692001,1998,REVENUE,Medicare First,EXTERNAL TEMPORARY STAFF
Peterborough,http://opendatacommunities.org/id/unitary-authority/peterborough,Peterborough City Council,Housing Services,Homelessness,Supplies and Services,01/12/2014 00:00,692023,525,REVENUE,Anchor Lodge,HOMELESSNESS BED AND B/FAST
Peterborough,http://opendatacommunities.org/id/unitary-authority/peterborough,Peterborough City Council,Support Services,Support Services,Employees,01/12/2014 00:00,692046,14553,REVENUE,CIPFA Business Ltd,EXTERNAL TEMPORARY STAFF
Peterborough,http://opendatacommunities.org/id/unitary-authority/peterborough,Peterborough City Council,Children's & Education Services - Children's Social Care,Other Children's & Families Services,Employees,01/12/2014 00:00,692060,1704.96,REVENUE,Medicare First,EXTERNAL TEMPORARY STAFF
Peterborough,http://opendatacommunities.org/id/unitary-authority/peterborough,Peterborough City Council,Capital,Capital,Capital Pending Update to BS,01/12/2014 00:00,692084,574.2,CAPITAL,Go Management Ltd TA GoUmbrella,EXTERNAL TEMPORARY STAFF
Peterborough,http://opendatacommunities.org/id/unitary-authority/peterborough,Peterborough City Council,Capital,Capital,Capital Pending Update to BS,01/12/2014 00:00,692181,5400,CAPITAL,The PCC for Bedfordshire (Police & Crime Commissioner),PROFESSIONAL/LEGAL FEES
Peterborough,http://opendatacommunities.org/id/unitary-authority/peterborough,Peterborough City Council,Cultural and Related Services,Culture & Heritage,Supplies and Services,01/12/2014 00:00,692286,900,REVENUE,Kimbolton Fireworks Ltd,HIRED SERVICES
Peterborough,http://opendatacommunities.org/id/unitary-authority/peterborough,Peterborough City Council,Adult Social Care,Adult Learning Disabilities,Supplies and Services,01/12/2014 00:00,692288,6125.84,REVENUE,Voyage,LEARNING DISABILITY HOME CARE
Peterborough,http://opendatacommunities.org/id/unitary-authority/peterborough,Peterborough City Council,Adult Social Care,Adult Learning Disabilities,Supplies and Services,01/12/2014 00:00,692290,1843.44,REVENUE,Voyage,LEARNING DISABILITY HOME CARE
Peterborough,http://opendatacommunities.org/id/unitary-authority/peterborough,Peterborough City Council,Adult Social Care,Adult Learning Disabilities,Supplies and Services,01/12/2014 00:00,692294,3575.24,REVENUE,Voyage,LEARNING DISABILITY HOME CARE
Peterborough,http://opendatacommunities.org/id/unitary-authority/peterborough,Peterborough City Council,Adult Social Care,Adult Learning Disabilities,Supplies and Services,01/12/2014 00:00,692297,4824.28,REVENUE,Voyage,LEARNING DISABILITY HOME CARE
Peterborough,http://opendatacommunities.org/id/unitary-authority/peterborough,Peterborough City Council,Adult Social Care,Adult Learning Disabilities,Supplies and Services,01/12/2014 00:00,692300,4399.68,REVENUE,Voyage,LEARNING DISABILITY HOME CARE
Peterborough,http://opendatacommunities.org/id/unitary-authority/peterborough,Peterborough City Council,Adult Social Care,Adult Learning Disabilities,Supplies and Services,01/12/2014 00:00,692302,3071.24,REVENUE,Voyage,LEARNING DISABILITY HOME CARE
Peterborough,http://opendatacommunities.org/id/unitary-authority/peterborough,Peterborough City Council,Adult Social Care,Adult Learning Disabilities,Supplies and Services,01/12/2014 00:00,692307,1778.12,REVENUE,Voyage,LEARNING DISABILITY HOME CARE
Peterborough,http://opendatacommunities.org/id/unitary-authority/peterborough,Peterborough City Council,Adult Social Care,Adult Learning Disabilities,Supplies and Services,01/12/2014 00:00,692309,3071.24,REVENUE,Voyage,LEARNING DISABILITY HOME CARE
Peterborough,http://opendatacommunities.org/id/unitary-authority/peterborough,Peterborough City Council,Adult Social Care,Adult Learning Disabilities,Supplies and Services,01/12/2014 00:00,692310,3558.4,REVENUE,Voyage,LEARNING DISABILITY HOME CARE
Peterborough,http://opendatacommunities.org/id/unitary-authority/peterborough,Peterborough City Council,Adult Social Care,Adult Learning Disabilities,Supplies and Services,01/12/2014 00:00,692312,3628.8,REVENUE,Voyage,LEARNING DISABILITY HOME CARE
Peterborough,http://opendatacommunities.org/id/unitary-authority/peterborough,Peterborough City Council,Adult Social Care,Adult Learning Disabilities,Supplies and Services,01/12/2014 00:00,692313,2872,REVENUE,Voyage,LEARNING DISABILITY HOME CARE
Peterborough,http://opendatacommunities.org/id/unitary-authority/peterborough,Peterborough City Council,Adult Social Care,Adult Learning Disabilities,Supplies and Services,01/12/2014 00:00,692314,3628.8,REVENUE,Voyage,LEARNING DISABILITY HOME CARE
Peterborough,http://opendatacommunities.org/id/unitary-authority/peterborough,Peterborough City Council,Adult Social Care,Adult Learning Disabilities,Supplies and Services,01/12/2014 00:00,692315,3628.8,REVENUE,Voyage,LEARNING DISABILITY HOME CARE
Peterborough,http://opendatacommunities.org/id/unitary-authority/peterborough,Peterborough City Council,Children's & Education Services - Children's Social Care,Children Looked After,Supplies and Services - Transfer Payments,01/12/2014 00:00,692371,3063.05,REVENUE,Transition Care Peterborough Ltd,BOARDING - OUT ALLWNCES
Peterborough,http://opendatacommunities.org/id/unitary-authority/peterborough,Peterborough City Council,Support Services,Support Services,Employees,01/12/2014 00:00,692523,1436.4,REVENUE,Sellick Partnership Group Limited,EXTERNAL TEMPORARY STAFF
Peterborough,http://opendatacommunities.org/id/unitary-authority/peterborough,Peterborough City Council,Children's & Education Services - Children's Social Care,Children's Services - Commissioning and Social Work,Supplies and Services,01/12/2014 00:00,693015,795.41,REVENUE,Wrixon Care Services,HIRED SERVICES
Peterborough,http://opendatacommunities.org/id/unitary-authority/peterborough,Peterborough City Council,Children's & Education Services - Children's Social Care,Other Children's & Families Services,Supplies and Services,01/12/2014 00:00,693034,11520,REVENUE,Aspire Business Solutions,ICT MAINTENANCE
Peterborough,http://opendatacommunities.org/id/unitary-authority/peterborough,Peterborough City Council,Adult Social Care,Older People,Supplies and Services,01/12/2014 00:00,693078,2045.88,REVENUE,Barchester Newton House Care Home,MH OLDER PEOPLE RESIDENTIAL CARE
Peterborough,http://opendatacommunities.org/id/unitary-authority/peterborough,Peterborough City Council,Adult Social Care,Older People,Supplies and Services,01/12/2014 00:00,693140,1525.68,REVENUE,BUPA Care Homes,MH OLDER PEOPLE RESIDENTIAL CARE
Peterborough,http://opendatacommunities.org/id/unitary-authority/peterborough,Peterborough City Council,Support Services,Support Services,Supplies and Services,01/12/2014 00:00,693387,660,REVENUE,"Bramwell, Mr Christopher",LEGAL COSTS
Peterborough,http://opendatacommunities.org/id/unitary-authority/peterborough,Peterborough City Council,Adult Social Care,Adult Learning Disabilities,Supplies and Services,01/12/2014 00:00,693525,5370,REVENUE,Voyage,LEARNING DISABILITY HOME CARE
Peterborough,http://opendatacommunities.org/id/unitary-authority/peterborough,Peterborough City Council,Adult Social Care,Adult Learning Disabilities,Supplies and Services,01/12/2014 00:00,693663,2162.28,REVENUE,"ATCHISON, MR ALAN",LEARNING DISABILITY HOME CARE
Peterborough,http://opendatacommunities.org/id/unitary-authority/peterborough,Peterborough City Council,Children's & Education Services - Children's Social Care,Other Children's & Families Services,Employees,01/12/2014 00:00,693794,3450,REVENUE,Tempest Resourcing,EXTERNAL TEMPORARY STAFF
Peterborough,http://opendatacommunities.org/id/unitary-authority/peterborough,Peterborough City Council,Adult Social Care,Adult Mental Health,Third Party Payments,01/12/2014 00:00,694147,989,REVENUE,Redacted Personal Data,THIRD PARTY PAYMENTS - CONTRACT
Peterborough,http://opendatacommunities.org/id/unitary-authority/peterborough,Peterborough City Council,Highways and Transport Services,Public Transport,Supplies and Services,01/12/2014 00:00,694213,19187.01,REVENUE,Stagecoach in Peterborough,CONTRACTORS
Peterborough,http://opendatacommunities.org/id/unitary-authority/peterborough,Peterborough City Council,Capital,Capital,Capital Pending Update to BS,01/12/2014 00:00,695148,3125.69,CAPITAL,The K A Wing Group Ltd,BUILDING AND SITE WORKS
Peterborough,http://opendatacommunities.org/id/unitary-authority/peterborough,Peterborough City Council,Adult Social Care,Older People,Employees,01/12/2014 00:00,695182,1305.6,REVENUE,Medicare First,EXTERNAL TEMPORARY STAFF
Peterborough,http://opendatacommunities.org/id/unitary-authority/peterborough,Peterborough City Council,Adult Social Care,Older People,Employees,01/12/2014 00:00,695183,875.76,REVENUE,Medicare First,EXTERNAL TEMPORARY STAFF
Peterborough,http://opendatacommunities.org/id/unitary-authority/peterborough,Peterborough City Council,Adult Social Care,Adult Mental Health,Supplies and Services,01/12/2014 00:00,695486,552,REVENUE,Axiom Housing Association,PROFESSIONAL SERVICES
Peterborough,http://opendatacommunities.org/id/unitary-authority/peterborough,Peterborough City Council,Adult Social Care,Adult Mental Health,Supplies and Services,01/12/2014 00:00,695487,772.8,REVENUE,Axiom Housing Association,PROFESSIONAL SERVICES
Peterborough,http://opendatacommunities.org/id/unitary-authority/peterborough,Peterborough City Council,Adult Social Care,Adult Mental Health,Supplies and Services,01/12/2014 00:00,695492,772.8,REVENUE,Axiom Housing Association,PROFESSIONAL SERVICES
Peterborough,http://opendatacommunities.org/id/unitary-authority/peterborough,Peterborough City Council,Adult Social Care,Adult Mental Health,Supplies and Services,01/12/2014 00:00,695495,772.8,REVENUE,Axiom Housing Association,PROFESSIONAL SERVICES
Peterborough,http://opendatacommunities.org/id/unitary-authority/peterborough,Peterborough City Council,Adult Social Care,Adult Mental Health,Supplies and Services,01/12/2014 00:00,695497,607.2,REVENUE,Axiom Housing Association,PROFESSIONAL SERVICES
Peterborough,http://opendatacommunities.org/id/unitary-authority/peterborough,Peterborough City Council,Adult Social Care,Older People,Supplies and Services,01/12/2014 00:00,695502,1159.2,REVENUE,Axiom Housing Association,MH OLDER PEOPLE HOME CARE
Peterborough,http://opendatacommunities.org/id/unitary-authority/peterborough,Peterborough City Council,Adult Social Care,Adult Mental Health,Supplies and Services,01/12/2014 00:00,695504,552,REVENUE,Axiom Housing Association,PROFESSIONAL SERVICES
Peterborough,http://opendatacommunities.org/id/unitary-authority/peterborough,Peterborough City Council,Adult Social Care,Adult Mental Health,Supplies and Services,01/12/2014 00:00,695505,552,REVENUE,Axiom Housing Association,PROFESSIONAL SERVICES
Peterborough,http://opendatacommunities.org/id/unitary-authority/peterborough,Peterborough City Council,Adult Social Care,Adult Mental Health,Supplies and Services,01/12/2014 00:00,695507,579.6,REVENUE,Axiom Housing Association,PROFESSIONAL SERVICES
Peterborough,http://opendatacommunities.org/id/unitary-authority/peterborough,Peterborough City Council,Adult Social Care,Adult Mental Health,Supplies and Services,01/12/2014 00:00,695509,552,REVENUE,Axiom Housing Association,PROFESSIONAL SERVICES
Peterborough,http://opendatacommunities.org/id/unitary-authority/peterborough,Peterborough City Council,Adult Social Care,Older People,Supplies and Services,01/12/2014 00:00,695727,1398.75,REVENUE,Cambridgeshirehomecare,PHYSICAL DISABILITY HOME CARE
Peterborough,http://opendatacommunities.org/id/unitary-authority/peterborough,Peterborough City Council,Adult Social Care,Older People,Supplies and Services,01/12/2014 00:00,695728,975.5,REVENUE,Cambridgeshirehomecare,OLDER PEOPLE HOME CARE
Peterborough,http://opendatacommunities.org/id/unitary-authority/peterborough,Peterborough City Council,Adult Social Care,Older People,Supplies and Services,01/12/2014 00:00,695729,1736.25,REVENUE,Cambridgeshirehomecare,PHYSICAL DISABILITY HOME CARE
Peterborough,http://opendatacommunities.org/id/unitary-authority/peterborough,Peterborough City Council,Adult Social Care,Older People,Supplies and Services,01/12/2014 00:00,695730,525.5,REVENUE,Cambridgeshirehomecare,OLDER PEOPLE HOME CARE
Peterborough,http://opendatacommunities.org/id/unitary-authority/peterborough,Peterborough City Council,Adult Social Care,Older People,Supplies and Services,01/12/2014 00:00,695731,1683.5,REVENUE,Cambridgeshirehomecare,OLDER PEOPLE HOME CARE
Peterborough,http://opendatacommunities.org/id/unitary-authority/peterborough,Peterborough City Council,Adult Social Care,Older People,Supplies and Services,01/12/2014 00:00,695732,566.5,REVENUE,Cambridgeshirehomecare,OLDER PEOPLE HOME CARE
Peterborough,http://opendatacommunities.org/id/unitary-authority/peterborough,Peterborough City Council,Adult Social Care,Adult Learning Disabilities,Supplies and Services,01/12/2014 00:00,695733,1387.96,REVENUE,Cambridgeshirehomecare,LEARNING DISABILITY HOME CARE
Peterborough,http://opendatacommunities.org/id/unitary-authority/peterborough,Peterborough City Council,Adult Social Care,Adult Learning Disabilities,Supplies and Services,01/12/2014 00:00,695734,1830,REVENUE,Cambridgeshirehomecare,LEARNING DISABILITY HOME CARE
Peterborough,http://opendatacommunities.org/id/unitary-authority/peterborough,Peterborough City Council,Adult Social Care,Older People,Supplies and Services,01/12/2014 00:00,695736,2041.89,REVENUE,Cambridgeshirehomecare,PHYSICAL DISABILITY HOME CARE
Peterborough,http://opendatacommunities.org/id/unitary-authority/peterborough,Peterborough City Council,Adult Social Care,Older People,Supplies and Services,01/12/2014 00:00,695737,1939.5,REVENUE,Cambridgeshirehomecare,OLDER PEOPLE HOME CARE
Peterborough,http://opendatacommunities.org/id/unitary-authority/peterborough,Peterborough City Council,Adult Social Care,Older People,Supplies and Services,01/12/2014 00:00,695739,2280.75,REVENUE,Cambridgeshirehomecare,OLDER PEOPLE HOME CARE
Peterborough,http://opendatacommunities.org/id/unitary-authority/peterborough,Peterborough City Council,Adult Social Care,Older People,Supplies and Services,01/12/2014 00:00,695740,514.5,REVENUE,Cambridgeshirehomecare,PHYSICAL DISABILITY HOME CARE
Peterborough,http://opendatacommunities.org/id/unitary-authority/peterborough,Peterborough City Council,Adult Social Care,Adult Learning Disabilities,Supplies and Services,01/12/2014 00:00,695742,1945,REVENUE,Cambridgeshirehomecare,PHYSICAL DISABILITY HOME CARE
Peterborough,http://opendatacommunities.org/id/unitary-authority/peterborough,Peterborough City Council,Adult Social Care,Older People,Supplies and Services,01/12/2014 00:00,695743,1167,REVENUE,Cambridgeshirehomecare,OLDER PEOPLE HOME CARE
Peterborough,http://opendatacommunities.org/id/unitary-authority/peterborough,Peterborough City Council,Adult Social Care,Older People,Supplies and Services,01/12/2014 00:00,695745,8018.66,REVENUE,Cambridgeshirehomecare,PHYSICAL DISABILITY HOME CARE
Peterborough,http://opendatacommunities.org/id/unitary-authority/peterborough,Peterborough City Council,Adult Social Care,Older People,Supplies and Services,01/12/2014 00:00,695746,2134.5,REVENUE,Cambridgeshirehomecare,OLDER PEOPLE HOME CARE
Peterborough,http://opendatacommunities.org/id/unitary-authority/peterborough,Peterborough City Council,Adult Social Care,Older People,Supplies and Services,01/12/2014 00:00,695747,826.75,REVENUE,Cambridgeshirehomecare,PHYSICAL DISABILITY HOME CARE
Peterborough,http://opendatacommunities.org/id/unitary-authority/peterborough,Peterborough City Council,Adult Social Care,Older People,Supplies and Services,01/12/2014 00:00,695748,1017,REVENUE,Cambridgeshirehomecare,PHYSICAL DISABILITY HOME CARE
Peterborough,http://opendatacommunities.org/id/unitary-authority/peterborough,Peterborough City Council,Adult Social Care,Older People,Supplies and Services,01/12/2014 00:00,695749,1681.25,REVENUE,Cambridgeshirehomecare,OLDER PEOPLE HOME CARE
Peterborough,http://opendatacommunities.org/id/unitary-authority/peterborough,Peterborough City Council,Adult Social Care,Adult Learning Disabilities,Supplies and Services,01/12/2014 00:00,695750,8022.31,REVENUE,Cambridgeshirehomecare,LEARNING DISABILITY HOME CARE
Peterborough,http://opendatacommunities.org/id/unitary-authority/peterborough,Peterborough City Council,Adult Social Care,Older People,Supplies and Services,01/12/2014 00:00,695752,2355.75,REVENUE,Cambridgeshirehomecare,PHYSICAL DISABILITY HOME CARE
Peterborough,http://opendatacommunities.org/id/unitary-authority/peterborough,Peterborough City Council,Adult Social Care,Older People,Supplies and Services,01/12/2014 00:00,695756,1463.5,REVENUE,Cambridgeshirehomecare,OLDER PEOPLE HOME CARE
Peterborough,http://opendatacommunities.org/id/unitary-authority/peterborough,Peterborough City Council,Adult Social Care,Older People,Supplies and Services,01/12/2014 00:00,695757,708.25,REVENUE,Cambridgeshirehomecare,OLDER PEOPLE HOME CARE
Peterborough,http://opendatacommunities.org/id/unitary-authority/peterborough,Peterborough City Council,Adult Social Care,Older People,Supplies and Services,01/12/2014 00:00,695760,568.75,REVENUE,Cambridgeshirehomecare,OLDER PEOPLE HOME CARE
Peterborough,http://opendatacommunities.org/id/unitary-authority/peterborough,Peterborough City Council,Children's & Education Services - Children's Social Care,Other Children's & Families Services,Employees,01/12/2014 00:00,696053,2363.58,REVENUE,Medicare First,EXTERNAL TEMPORARY STAFF
Peterborough,http://opendatacommunities.org/id/unitary-authority/peterborough,Peterborough City Council,Deficit/(Surplus) on Trading Undertakings,Trading Account Surpluses & Deficits,Supplies and Services,01/12/2014 00:00,696055,872.4,REVENUE,The K A Wing Group Ltd,SECURITY
Peterborough,http://opendatacommunities.org/id/unitary-authority/peterborough,Peterborough City Council,Adult Social Care,Older People,Supplies and Services,01/12/2014 00:00,696230,522,REVENUE,Axiom Crossroads Care,OLDER PEOPLE HOME CARE
Peterborough,http://opendatacommunities.org/id/unitary-authority/peterborough,Peterborough City Council,Adult Social Care,Older People,Supplies and Services,01/12/2014 00:00,696240,3600,REVENUE,LESTER HALL APARTMENTS LTD,PHYSICAL DISABILITY RESIDENTIAL CARE
Peterborough,http://opendatacommunities.org/id/unitary-authority/peterborough,Peterborough City Council,Adult Social Care,Older People,Third Party Payments,01/12/2014 00:00,696838,73250,REVENUE,Alzheimer's Society,THIRD PARTY PAYMENTS - CONTRACT
Peterborough,http://opendatacommunities.org/id/unitary-authority/peterborough,Peterborough City Council,Deficit/(Surplus) on Trading Undertakings,Trading Account Surpluses & Deficits,Premises,01/12/2014 00:00,697055,-553.82,REVENUE,Energy Report Ltd,IMPROVEMENTS
Peterborough,http://opendatacommunities.org/id/unitary-authority/peterborough,Peterborough City Council,Children's & Education Services - Children's Social Care,Other Children's & Families Services,Employees,01/12/2014 00:00,697073,1725.3,REVENUE,Medicare First,EXTERNAL TEMPORARY STAFF
Peterborough,http://opendatacommunities.org/id/unitary-authority/peterborough,Peterborough City Council,Children's & Education Services - Children's Social Care,Other Children's & Families Services,Employees,01/12/2014 00:00,697074,3300,REVENUE,Medicare First,EXTERNAL TEMPORARY STAFF
Peterborough,http://opendatacommunities.org/id/unitary-authority/peterborough,Peterborough City Council,Children's & Education Services - Children's Social Care,Other Children's & Families Services,Employees,01/12/2014 00:00,697075,3300,REVENUE,Medicare First,EXTERNAL TEMPORARY STAFF
Peterborough,http://opendatacommunities.org/id/unitary-authority/peterborough,Peterborough City Council,Children's & Education Services - Children's Social Care,Other Children's & Families Services,Employees,01/12/2014 00:00,697076,3300,REVENUE,Medicare First,EXTERNAL TEMPORARY STAFF
Peterborough,http://opendatacommunities.org/id/unitary-authority/peterborough,Peterborough City Council,Children's & Education Services - Children's Social Care,Other Children's & Families Services,Employees,01/12/2014 00:00,697077,3300,REVENUE,Medicare First,EXTERNAL TEMPORARY STAFF
Peterborough,http://opendatacommunities.org/id/unitary-authority/peterborough,Peterborough City Council,Adult Social Care,Older People,Supplies and Services,01/12/2014 00:00,697469,654,REVENUE,Axiom Crossroads Care,OLDER PEOPLE HOME CARE
Peterborough,http://opendatacommunities.org/id/unitary-authority/peterborough,Peterborough City Council,Adult Social Care,Older People,Third Party Payments,01/12/2014 00:00,697762,1776,REVENUE,Care UK Homecare Ltd,THIRD PARTY PAYMENTS - CONTRACT
Peterborough,http://opendatacommunities.org/id/unitary-authority/peterborough,Peterborough City Council,Adult Social Care,Older People,Third Party Payments,01/12/2014 00:00,697764,6663.32,REVENUE,Care UK Homecare Ltd,THIRD PARTY PAYMENTS - CONTRACT
Peterborough,http://opendatacommunities.org/id/unitary-authority/peterborough,Peterborough City Council,Adult Social Care,Older People,Third Party Payments,01/12/2014 00:00,697765,1776,REVENUE,Care UK Homecare Ltd,THIRD PARTY PAYMENTS - CONTRACT
Peterborough,http://opendatacommunities.org/id/unitary-authority/peterborough,Peterborough City Council,Adult Social Care,Older People,Third Party Payments,01/12/2014 00:00,697767,21042.16,REVENUE,Care UK Homecare Ltd,THIRD PARTY PAYMENTS - CONTRACT
Peterborough,http://opendatacommunities.org/id/unitary-authority/peterborough,Peterborough City Council,Housing Services,Homelessness,Supplies and Services,01/12/2014 00:00,697973,910,REVENUE,Dunham Property Agents,FINANCIAL ASSISTANCE
Peterborough,http://opendatacommunities.org/id/unitary-authority/peterborough,Peterborough City Council,More than one Service Area Category,More than one Service Division,More than one Expenses Type,01/12/2014 00:00,697978,1391.76,REVENUE,Peterborough City Council,Numerous
Peterborough,http://opendatacommunities.org/id/unitary-authority/peterborough,Peterborough City Council,Housing Services,Homelessness,Supplies and Services,01/12/2014 00:00,697979,700,REVENUE,Singh and Sons Property Management Ltd T/A BSK Propery Management,FINANCIAL ASSISTANCE
Peterborough,http://opendatacommunities.org/id/unitary-authority/peterborough,Peterborough City Council,Support Services,Support Services,Employees,01/12/2014 00:00,697996,12566.4,REVENUE,P McCourt Services Limited,EXTERNAL TEMPORARY STAFF
Peterborough,http://opendatacommunities.org/id/unitary-authority/peterborough,Peterborough City Council,Children's & Education Services - Children's Social Care,Children Looked After,Supplies and Services - Transfer Payments,01/12/2014 00:00,697999,3007.62,REVENUE,Fostering Solutions,BOARDING - OUT ALLWNCES
Peterborough,http://opendatacommunities.org/id/unitary-authority/peterborough,Peterborough City Council,Capital,Capital,Capital Pending Update to BS,01/12/2014 00:00,698096,1774276.14,CAPITAL,Balfour Beatty Civil Engineering,INFRASTRUCTURE WORKS
Peterborough,http://opendatacommunities.org/id/unitary-authority/peterborough,Peterborough City Council,More than one Service Area Category,More than one Service Division,More than one Expenses Type,01/12/2014 00:00,698099,1100,"Mixture of Capital, Revenue and/or Balance Sheet",Dolphin Mobility East Midlands Ltd,GRANT PAYMENT
Peterborough,http://opendatacommunities.org/id/unitary-authority/peterborough,Peterborough City Council,Court Services,Coroner's Court Service,More than one Expenses Type,01/12/2014 00:00,698119,11087.65,REVENUE,Coroners Service (Imprest),Numerous
Peterborough,http://opendatacommunities.org/id/unitary-authority/peterborough,Peterborough City Council,Adult Social Care,Adult Learning Disabilities,Supplies and Services,03/12/2014 00:00,616551,1507.52,REVENUE,Voyage,LEARNING DISABILITY HOME CARE
Peterborough,http://opendatacommunities.org/id/unitary-authority/peterborough,Peterborough City Council,Adult Social Care,Adult Learning Disabilities,Supplies and Services,03/12/2014 00:00,617508,13689.12,REVENUE,Kisimul Group Ltd,LEARNING DISABILITY RESIDENTIAL CARE
Peterborough,http://opendatacommunities.org/id/unitary-authority/peterborough,Peterborough City Council,Adult Social Care,Adult Learning Disabilities,Supplies and Services,03/12/2014 00:00,674745,67769.81,REVENUE,Hesley Autism Services Ltd,LEARNING DISABILITY RESIDENTIAL CARE
Peterborough,http://opendatacommunities.org/id/unitary-authority/peterborough,Peterborough City Council,Adult Social Care,Adult Learning Disabilities,Supplies and Services,03/12/2014 00:00,683459,744.42,REVENUE,Thera East Anglia,LEARNING DISABILITY DAY CARE
Peterborough,http://opendatacommunities.org/id/unitary-authority/peterborough,Peterborough City Council,Adult Social Care,Adult Learning Disabilities,Supplies and Services,03/12/2014 00:00,684849,56778.1,REVENUE,Hesley Autism Services Ltd,LEARNING DISABILITY RESIDENTIAL CARE
Peterborough,http://opendatacommunities.org/id/unitary-authority/peterborough,Peterborough City Council,Adult Social Care,Support Services & Management Costs,Third Party Payments,03/12/2014 00:00,684960,6334,REVENUE,Dial Peterborough,THIRD PARTY PAYMENTS - CONTRACT
Peterborough,http://opendatacommunities.org/id/unitary-authority/peterborough,Peterborough City Council,Adult Social Care,Adult Physical Disability & Sensory Impairment,Third Party Payments,03/12/2014 00:00,684961,18689,REVENUE,Dial Peterborough,THIRD PARTY PAYMENTS - CONTRACT
Peterborough,http://opendatacommunities.org/id/unitary-authority/peterborough,Peterborough City Council,Children's & Education Services - Children's Social Care,Other Children's & Families Services,Employees,03/12/2014 00:00,685323,1920,REVENUE,Medicare First,EXTERNAL TEMPORARY STAFF
Peterborough,http://opendatacommunities.org/id/unitary-authority/peterborough,Peterborough City Council,Adult Social Care,Older People,Supplies and Services,03/12/2014 00:00,685485,5792,REVENUE,BRAIN INJURY REHABILITATION TRUST,PHYSICAL DISABILITY RESIDENTIAL CARE
Peterborough,http://opendatacommunities.org/id/unitary-authority/peterborough,Peterborough City Council,Adult Social Care,Older People,Supplies and Services,03/12/2014 00:00,686281,2501.96,REVENUE,Hales Group Ltd,OLDER PEOPLE HOME CARE
Peterborough,http://opendatacommunities.org/id/unitary-authority/peterborough,Peterborough City Council,Children's & Education Services - Children's Social Care,More than one Service Division,Supplies and Services - Transfer Payments,03/12/2014 00:00,686959,18698.29,REVENUE,ABC Care and Education Ltd,BOARDING - OUT ALLWNCES
Peterborough,http://opendatacommunities.org/id/unitary-authority/peterborough,Peterborough City Council,Adult Social Care,Adult Learning Disabilities,Supplies and Services,03/12/2014 00:00,688179,2385.48,REVENUE,Linkage Community Trust Limited,LEARNING DISABILITY RESIDENTIAL CARE
Peterborough,http://opendatacommunities.org/id/unitary-authority/peterborough,Peterborough City Council,Environmental and Regulatory Services,"Cemetery, Crematorium & Mortuary Services",Employees,03/12/2014 00:00,689208,613.6,REVENUE,ICCM,TRAINING
Peterborough,http://opendatacommunities.org/id/unitary-authority/peterborough,Peterborough City Council,Children's & Education Services - Children's Social Care,Children's Services - Commissioning and Social Work,Supplies and Services,03/12/2014 00:00,689354,4924.8,REVENUE,Allied Healthcare (UK) Ltd,PURCHASED SOCIAL CARE SERVICES
Peterborough,http://opendatacommunities.org/id/unitary-authority/peterborough,Peterborough City Council,Highways and Transport Services,Public Transport,Supplies and Services,03/12/2014 00:00,690559,15073.96,REVENUE,Statutory Payment of Concessionary Fares to Bus Provider,CONTRACTORS
Peterborough,http://opendatacommunities.org/id/unitary-authority/peterborough,Peterborough City Council,Support Services,Support Services,Supplies and Services,03/12/2014 00:00,691677,3129,REVENUE,"Collins, Mr Peter",LEGAL COSTS
Peterborough,http://opendatacommunities.org/id/unitary-authority/peterborough,Peterborough City Council,Children's & Education Services - Children's Social Care,Children's Services - Commissioning and Social Work,Employees,03/12/2014 00:00,691700,620.27,REVENUE,Reed Specialist Recruitment,EXTERNAL TEMPORARY STAFF
Peterborough,http://opendatacommunities.org/id/unitary-authority/peterborough,Peterborough City Council,Children's & Education Services - Children's Social Care,Children Looked After,Supplies and Services - Transfer Payments,03/12/2014 00:00,691760,10075,REVENUE,MJ Childrens Services,BOARDING - OUT ALLWNCES
Peterborough,http://opendatacommunities.org/id/unitary-authority/peterborough,Peterborough City Council,Children's & Education Services - Children's Social Care,Other Children's & Families Services,Employees,03/12/2014 00:00,691817,1271.65,REVENUE,Eden Brown Ltd,EXTERNAL TEMPORARY STAFF
Peterborough,http://opendatacommunities.org/id/unitary-authority/peterborough,Peterborough City Council,Children's & Education Services - Children's Social Care,Other Children's & Families Services,Employees,03/12/2014 00:00,691820,1663.62,REVENUE,Eden Brown Ltd,EXTERNAL TEMPORARY STAFF
Peterborough,http://opendatacommunities.org/id/unitary-authority/peterborough,Peterborough City Council,Children's & Education Services - Children's Social Care,Other Children's & Families Services,Employees,03/12/2014 00:00,691822,1578.05,REVENUE,Eden Brown Ltd,EXTERNAL TEMPORARY STAFF
Peterborough,http://opendatacommunities.org/id/unitary-authority/peterborough,Peterborough City Council,Children's & Education Services - Children's Social Care,Children Looked After,Supplies and Services - Transfer Payments,03/12/2014 00:00,691824,10075,REVENUE,MJ Childrens Services,BOARDING - OUT ALLWNCES
Peterborough,http://opendatacommunities.org/id/unitary-authority/peterborough,Peterborough City Council,Environmental and Regulatory Services,Regulatory services,Employees,03/12/2014 00:00,691828,1270.68,REVENUE,The Synergy Group,EXTERNAL TEMPORARY STAFF
Peterborough,http://opendatacommunities.org/id/unitary-authority/peterborough,Peterborough City Council,Adult Social Care,Older People,Supplies and Services,03/12/2014 00:00,691829,572.24,REVENUE,Housing 21,OLDER PEOPLE HOME CARE
Peterborough,http://opendatacommunities.org/id/unitary-authority/peterborough,Peterborough City Council,More than one Service Area Category,More than one Service Division,Employees,03/12/2014 00:00,691830,1786.91,REVENUE,The Synergy Group,EXTERNAL TEMPORARY STAFF
Peterborough,http://opendatacommunities.org/id/unitary-authority/peterborough,Peterborough City Council,More than one Service Area Category,More than one Service Division,Employees,03/12/2014 00:00,691832,1690.14,REVENUE,The Synergy Group,EXTERNAL TEMPORARY STAFF
Peterborough,http://opendatacommunities.org/id/unitary-authority/peterborough,Peterborough City Council,Support Services,Support Services,Premises,03/12/2014 00:00,691843,1825.18,REVENUE,Beebys Ltd,CLEANING
Peterborough,http://opendatacommunities.org/id/unitary-authority/peterborough,Peterborough City Council,Adult Social Care,Other Adult Services,Third Party Payments,03/12/2014 00:00,691855,4269.33,REVENUE,Cambs & P'boro NHS Foundation Trust,THIRD PARTY PAYMENTS - CONTRACT
Peterborough,http://opendatacommunities.org/id/unitary-authority/peterborough,Peterborough City Council,Adult Social Care,Older People,Supplies and Services,03/12/2014 00:00,691907,1252.16,REVENUE,GARDEN LODGE,OLDER PEOPLE RESIDENTIAL CARE
Peterborough,http://opendatacommunities.org/id/unitary-authority/peterborough,Peterborough City Council,Adult Social Care,Older People,Supplies and Services,03/12/2014 00:00,691908,1252.16,REVENUE,GARDEN LODGE,OLDER PEOPLE RESIDENTIAL CARE
Peterborough,http://opendatacommunities.org/id/unitary-authority/peterborough,Peterborough City Council,Adult Social Care,Older People,Supplies and Services,03/12/2014 00:00,691909,1252.16,REVENUE,GARDEN LODGE,OLDER PEOPLE RESIDENTIAL CARE
Peterborough,http://opendatacommunities.org/id/unitary-authority/peterborough,Peterborough City Council,Adult Social Care,Older People,Third Party Payments,03/12/2014 00:00,691935,2100,REVENUE,Mouchel Ltd,THIRD PARTY PAYMENTS - CONTRACT
Peterborough,http://opendatacommunities.org/id/unitary-authority/peterborough,Peterborough City Council,Children's & Education Services - Children's Social Care,Other Children's & Families Services,Employees,03/12/2014 00:00,691942,1657.68,REVENUE,Eden Brown Ltd,EXTERNAL TEMPORARY STAFF
Peterborough,http://opendatacommunities.org/id/unitary-authority/peterborough,Peterborough City Council,Support Services,Support Services,Employees,03/12/2014 00:00,691984,2543.4,REVENUE,Venn Group Ltd,EXTERNAL TEMPORARY STAFF
Peterborough,http://opendatacommunities.org/id/unitary-authority/peterborough,Peterborough City Council,Support Services,Support Services,Employees,03/12/2014 00:00,691987,1717.2,REVENUE,Venn Group Ltd,EXTERNAL TEMPORARY STAFF
Peterborough,http://opendatacommunities.org/id/unitary-authority/peterborough,Peterborough City Council,Support Services,Support Services,Employees,03/12/2014 00:00,691988,1685.38,REVENUE,Venn Group Ltd,EXTERNAL TEMPORARY STAFF
Peterborough,http://opendatacommunities.org/id/unitary-authority/peterborough,Peterborough City Council,Support Services,Support Services,Employees,03/12/2014 00:00,691990,2413.8,REVENUE,Venn Group Ltd,EXTERNAL TEMPORARY STAFF
Peterborough,http://opendatacommunities.org/id/unitary-authority/peterborough,Peterborough City Council,Support Services,Support Services,Employees,03/12/2014 00:00,691993,2170.8,REVENUE,Venn Group Ltd,EXTERNAL TEMPORARY STAFF
Peterborough,http://opendatacommunities.org/id/unitary-authority/peterborough,Peterborough City Council,Support Services,Support Services,Employees,03/12/2014 00:00,691997,2300.4,REVENUE,Venn Group Ltd,EXTERNAL TEMPORARY STAFF
Peterborough,http://opendatacommunities.org/id/unitary-authority/peterborough,Peterborough City Council,Children's & Education Services - Children's Social Care,Children Looked After,Supplies and Services - Transfer Payments,03/12/2014 00:00,692014,10407.01,REVENUE,Acorn Homes UK Ltd,BOARDING - OUT ALLWNCES
Peterborough,http://opendatacommunities.org/id/unitary-authority/peterborough,Peterborough City Council,Children's & Education Services - Education,Services to Young People,Supplies and Services,03/12/2014 00:00,692030,1200,REVENUE,C J Camps,PROGRAMMES
Peterborough,http://opendatacommunities.org/id/unitary-authority/peterborough,Peterborough City Council,Planning Services,Economic Development,Third Party Payments,03/12/2014 00:00,692031,40000,REVENUE,P'Boro Council For Voluntary Srvs (PCVS),GRANT-THIRD PARTY
Peterborough,http://opendatacommunities.org/id/unitary-authority/peterborough,Peterborough City Council,Children's & Education Services - Education,Other School -related Education Functions,Supplies and Services,03/12/2014 00:00,692034,9461.65,REVENUE,Capita Absence Management Services Ltd,ABSENCE INSURANCE
Peterborough,http://opendatacommunities.org/id/unitary-authority/peterborough,Peterborough City Council,Children's & Education Services - Education,Other School -related Education Functions,Transport,03/12/2014 00:00,692041,930.6,REVENUE,Centrebus North Ltd,HIRED TRANSPORT
Peterborough,http://opendatacommunities.org/id/unitary-authority/peterborough,Peterborough City Council,Children's & Education Services - Children's Social Care,Children Looked After,Supplies and Services - Transfer Payments,03/12/2014 00:00,692061,1295.77,REVENUE,Elite Care Provider,BOARDING - OUT ALLWNCES
Peterborough,http://opendatacommunities.org/id/unitary-authority/peterborough,Peterborough City Council,Children's & Education Services - Children's Social Care,Children Looked After,Supplies and Services - Transfer Payments,03/12/2014 00:00,692064,1295.77,REVENUE,Elite Care Provider,BOARDING - OUT ALLWNCES
Peterborough,http://opendatacommunities.org/id/unitary-authority/peterborough,Peterborough City Council,Children's & Education Services - Children's Social Care,Children Looked After,Supplies and Services - Transfer Payments,03/12/2014 00:00,692072,2878.66,REVENUE,Acorn Homes UK Ltd,BOARDING - OUT ALLWNCES
Peterborough,http://opendatacommunities.org/id/unitary-authority/peterborough,Peterborough City Council,Children's & Education Services - Children's Social Care,Other Children's & Families Services,Supplies and Services,03/12/2014 00:00,692112,3182.9,REVENUE,R S P LTD,CHILDCARE
Peterborough,http://opendatacommunities.org/id/unitary-authority/peterborough,Peterborough City Council,Support Services,Support Services,Supplies and Services,03/12/2014 00:00,692117,1174.68,REVENUE,Collectica Ltd,DEBT COLLECTION
Peterborough,http://opendatacommunities.org/id/unitary-authority/peterborough,Peterborough City Council,Adult Social Care,Older People,Supplies and Services,03/12/2014 00:00,692126,1980,REVENUE,Tansor Assessment Centre,HEALTH & SAFETY
Peterborough,http://opendatacommunities.org/id/unitary-authority/peterborough,Peterborough City Council,Highways and Transport Services,Street Lighting,Supplies and Services,03/12/2014 00:00,692131,966,REVENUE,UK Power Networks (operations) Ltd,CONTRACTORS
Peterborough,http://opendatacommunities.org/id/unitary-authority/peterborough,Peterborough City Council,Highways and Transport Services,Street Lighting,Supplies and Services,03/12/2014 00:00,692132,594,REVENUE,UK Power Networks (operations) Ltd,CONTRACTORS
Peterborough,http://opendatacommunities.org/id/unitary-authority/peterborough,Peterborough City Council,Children's & Education Services - Education,Other School -related Education Functions,Supplies and Services,03/12/2014 00:00,692152,2808,REVENUE,Lincolnshire County Council,EDUCATION EXPENSES
Peterborough,http://opendatacommunities.org/id/unitary-authority/peterborough,Peterborough City Council,Capital,Capital,Capital Pending Update to BS,03/12/2014 00:00,692180,3528,CAPITAL,Stephen Broadbent Artworks Ltd,INFRASTRUCTURE WORKS
Peterborough,http://opendatacommunities.org/id/unitary-authority/peterborough,Peterborough City Council,More than one Service Area Category,More than one Service Division,Employees,03/12/2014 00:00,692182,1730.94,REVENUE,The Synergy Group,EXTERNAL TEMPORARY STAFF
Peterborough,http://opendatacommunities.org/id/unitary-authority/peterborough,Peterborough City Council,Highways and Transport Services,Street Lighting,Supplies and Services,03/12/2014 00:00,692195,675.6,REVENUE,UK Power Networks (operations) Ltd,CONTRACTORS
Peterborough,http://opendatacommunities.org/id/unitary-authority/peterborough,Peterborough City Council,Highways and Transport Services,Street Lighting,Supplies and Services,03/12/2014 00:00,692217,787.2,REVENUE,UK Power Networks (operations) Ltd,CONTRACTORS
Peterborough,http://opendatacommunities.org/id/unitary-authority/peterborough,Peterborough City Council,Highways and Transport Services,Street Lighting,Supplies and Services,03/12/2014 00:00,692226,714,REVENUE,UK Power Networks (operations) Ltd,CONTRACTORS
Peterborough,http://opendatacommunities.org/id/unitary-authority/peterborough,Peterborough City Council,Children's & Education Services - Education,Other School -related Education Functions,Supplies and Services - Transfer Payments,03/12/2014 00:00,692237,6595,REVENUE,Eccles Hall School,BOARDING - OUT ALLWNCES
Peterborough,http://opendatacommunities.org/id/unitary-authority/peterborough,Peterborough City Council,Support Services,Support Services,Supplies and Services,03/12/2014 00:00,692260,9404.4,REVENUE,Pinsent Masons,LEGAL COSTS
Peterborough,http://opendatacommunities.org/id/unitary-authority/peterborough,Peterborough City Council,Support Services,Support Services,Employees,03/12/2014 00:00,692265,1260,REVENUE,Go Management Ltd TA GoUmbrella,EXTERNAL TEMPORARY STAFF
Peterborough,http://opendatacommunities.org/id/unitary-authority/peterborough,Peterborough City Council,Highways and Transport Services,Support Services,Employees,03/12/2014 00:00,692320,3375,REVENUE,Anglia Ruskin University,TRAINING
Peterborough,http://opendatacommunities.org/id/unitary-authority/peterborough,Peterborough City Council,Adult Social Care,Support Services & Management Costs,Third Party Payments,03/12/2014 00:00,692322,69999.99,REVENUE,Carers Trust Cambridgeshire,THIRD PARTY PAYMENTS - CONTRACT
Peterborough,http://opendatacommunities.org/id/unitary-authority/peterborough,Peterborough City Council,Children's & Education Services - Education,Other School -related Education Functions,Supplies and Services - Transfer Payments,03/12/2014 00:00,692329,58074.54,REVENUE,Kisimul Group Ltd,BOARDING - OUT ALLWNCES
Peterborough,http://opendatacommunities.org/id/unitary-authority/peterborough,Peterborough City Council,Highways and Transport Services,"Transport planning, policy and strategy",Employees,03/12/2014 00:00,692331,1386,REVENUE,Randstad CPE,EXTERNAL TEMPORARY STAFF
Peterborough,http://opendatacommunities.org/id/unitary-authority/peterborough,Peterborough City Council,Highways and Transport Services,"Environmental, Safety & Routine Maintenance",Supplies and Services,03/12/2014 00:00,692332,1620,REVENUE,Robin Carr Associates,COUNTRY RIGHTS OF WAY ACT
Peterborough,http://opendatacommunities.org/id/unitary-authority/peterborough,Peterborough City Council,Housing Services,Homelessness,Supplies and Services,03/12/2014 00:00,692338,525,REVENUE,Eastfield Guesthouse,HOMELESSNESS BED AND B/FAST
Peterborough,http://opendatacommunities.org/id/unitary-authority/peterborough,Peterborough City Council,Housing Services,Homelessness,Supplies and Services,03/12/2014 00:00,692339,552.3,REVENUE,Eastfield Guesthouse,HOMELESSNESS BED AND B/FAST
Peterborough,http://opendatacommunities.org/id/unitary-authority/peterborough,Peterborough City Council,Housing Services,Homelessness,Supplies and Services,03/12/2014 00:00,692340,552.3,REVENUE,Eastfield Guesthouse,HOMELESSNESS BED AND B/FAST
Peterborough,http://opendatacommunities.org/id/unitary-authority/peterborough,Peterborough City Council,Children's & Education Services - Children's Social Care,Children's Services - Commissioning and Social Work,Supplies and Services,03/12/2014 00:00,692358,8250,REVENUE,Newark Play Association Ltd,HIRED SERVICES
Peterborough,http://opendatacommunities.org/id/unitary-authority/peterborough,Peterborough City Council,Planning Services,Development Control,Supplies and Services,03/12/2014 00:00,692363,603.72,REVENUE,Johnston Press Midlands Division,ADVERTISING
Peterborough,http://opendatacommunities.org/id/unitary-authority/peterborough,Peterborough City Council,Children's & Education Services - Education,Other School -related Education Functions,Supplies and Services,03/12/2014 00:00,692392,864,REVENUE,Top Class Tutors,EDUCATION EXPENSES
Peterborough,http://opendatacommunities.org/id/unitary-authority/peterborough,Peterborough City Council,More than one Service Area Category,More than one Service Division,Supplies and Services,03/12/2014 00:00,692395,2334.18,REVENUE,Whistl London Ltd,POSTAGE
Peterborough,http://opendatacommunities.org/id/unitary-authority/peterborough,Peterborough City Council,Adult Social Care,Adult Learning Disabilities,Supplies and Services,03/12/2014 00:00,692408,1830,REVENUE,The Makaton Charity,COURSES AND SEMINARS
Peterborough,http://opendatacommunities.org/id/unitary-authority/peterborough,Peterborough City Council,Adult Social Care,Adult Mental Health,Third Party Payments,03/12/2014 00:00,692465,945,REVENUE,Redacted Personal Data,THIRD PARTY PAYMENTS - CONTRACT
Peterborough,http://opendatacommunities.org/id/unitary-authority/peterborough,Peterborough City Council,Support Services,Support Services,Supplies and Services,03/12/2014 00:00,692489,3510,REVENUE,Green Park Interim and Exec Ltd,CONSULTANTS FEES
Peterborough,http://opendatacommunities.org/id/unitary-authority/peterborough,Peterborough City Council,Children's & Education Services - Education,Secondary,Employees,03/12/2014 00:00,693014,3985.8,REVENUE,Top Class Tutors,SUPPLY TEACHERS
Peterborough,http://opendatacommunities.org/id/unitary-authority/peterborough,Peterborough City Council,Adult Social Care,Support Services & Management Costs,Employees,03/12/2014 00:00,693017,21528,REVENUE,GatenbySanderson Ltd,EXTERNAL TEMPORARY STAFF
Peterborough,http://opendatacommunities.org/id/unitary-authority/peterborough,Peterborough City Council,Children's & Education Services - Children's Social Care,Children's Services - Commissioning and Social Work,Supplies and Services,03/12/2014 00:00,693029,1344,REVENUE,BDP Social Care Ltd,PURCHASED SOCIAL CARE SERVICES
Peterborough,http://opendatacommunities.org/id/unitary-authority/peterborough,Peterborough City Council,Children's & Education Services - Children's Social Care,Children's Services - Commissioning and Social Work,Supplies and Services,03/12/2014 00:00,693030,10684.8,REVENUE,BDP Social Care Ltd,PURCHASED SOCIAL CARE SERVICES
Peterborough,http://opendatacommunities.org/id/unitary-authority/peterborough,Peterborough City Council,Adult Social Care,Adult Learning Disabilities,Supplies and Services,03/12/2014 00:00,693082,2919.68,REVENUE,BOULEVARD CARE,LEARNING DISABILITY RESIDENTIAL CARE
Peterborough,http://opendatacommunities.org/id/unitary-authority/peterborough,Peterborough City Council,Adult Social Care,Older People,Supplies and Services,03/12/2014 00:00,693119,6595.42,REVENUE,THE LAURELS,OLDER PEOPLE RESIDENTIAL CARE
Peterborough,http://opendatacommunities.org/id/unitary-authority/peterborough,Peterborough City Council,Adult Social Care,Adult Physical Disability & Sensory Impairment,Supplies and Services,03/12/2014 00:00,693131,574.12,REVENUE,Action on Hearing Loss,FAMILY CARE
Peterborough,http://opendatacommunities.org/id/unitary-authority/peterborough,Peterborough City Council,Children's & Education Services - Children's Social Care,Children's Services - Commissioning and Social Work,Employees,03/12/2014 00:00,693307,620.27,REVENUE,Reed Specialist Recruitment,EXTERNAL TEMPORARY STAFF
Peterborough,http://opendatacommunities.org/id/unitary-authority/peterborough,Peterborough City Council,Children's & Education Services - Children's Social Care,Children Looked After,Premises,03/12/2014 00:00,693312,691.07,REVENUE,Adcock Refrig/air Conditioning Ltd,MAINTENANCE
Peterborough,http://opendatacommunities.org/id/unitary-authority/peterborough,Peterborough City Council,Adult Social Care,Adult Learning Disabilities,Supplies and Services,03/12/2014 00:00,693368,6831.92,REVENUE,NEW BOUNDARIES COMMUNITY SERVICES LTD,LEARNING DISABILITY RESIDENTIAL CARE
Peterborough,http://opendatacommunities.org/id/unitary-authority/peterborough,Peterborough City Council,Adult Social Care,Older People,Supplies and Services,03/12/2014 00:00,693412,977,REVENUE,PARTNERSHIPS IN CARE - RISBY,OLDER PEOPLE RESIDENTIAL CARE
Peterborough,http://opendatacommunities.org/id/unitary-authority/peterborough,Peterborough City Council,Adult Social Care,Older People,Supplies and Services,03/12/2014 00:00,693418,520,REVENUE,OAKHOUSE HOMECARE LTD,MH OLDER PEOPLE RESIDENTIAL CARE
Peterborough,http://opendatacommunities.org/id/unitary-authority/peterborough,Peterborough City Council,More than one Service Area Category,More than one Service Division,Supplies and Services,03/12/2014 00:00,693428,553.49,REVENUE,O2 (UK) Ltd,MOBILE TELEPHONES
Peterborough,http://opendatacommunities.org/id/unitary-authority/peterborough,Peterborough City Council,Children's & Education Services - Children's Social Care,Other Children's & Families Services,Employees,03/12/2014 00:00,693444,949.25,REVENUE,Roma Support Group,TRAINING
Peterborough,http://opendatacommunities.org/id/unitary-authority/peterborough,Peterborough City Council,Adult Social Care,Adult Learning Disabilities,Supplies and Services,03/12/2014 00:00,693514,2950,REVENUE,Thera East Anglia,LEARNING DISABILITY DAY CARE
Peterborough,http://opendatacommunities.org/id/unitary-authority/peterborough,Peterborough City Council,Adult Social Care,Adult Learning Disabilities,Supplies and Services,03/12/2014 00:00,693516,625,REVENUE,Thera East Anglia,LEARNING DISABILITY DAY CARE
Peterborough,http://opendatacommunities.org/id/unitary-authority/peterborough,Peterborough City Council,Highways and Transport Services,Street Lighting,Supplies and Services,03/12/2014 00:00,693545,594,REVENUE,UK Power Networks (operations) Ltd,CONTRACTORS
Peterborough,http://opendatacommunities.org/id/unitary-authority/peterborough,Peterborough City Council,Children's & Education Services - Children's Social Care,Other Children's & Families Services,Supplies and Services,03/12/2014 00:00,693586,2000,REVENUE,Derby City Council,ADOPTION
Peterborough,http://opendatacommunities.org/id/unitary-authority/peterborough,Peterborough City Council,Adult Social Care,Adult Learning Disabilities,Supplies and Services,03/12/2014 00:00,693662,3151.6,REVENUE,"ATCHISON, MR ALAN",LEARNING DISABILITY HOME CARE
Peterborough,http://opendatacommunities.org/id/unitary-authority/peterborough,Peterborough City Council,Children's & Education Services - Children's Social Care,Other Children's & Families Services,Employees,03/12/2014 00:00,693678,1513.62,REVENUE,Randstad Care Ltd,EXTERNAL TEMPORARY STAFF
Peterborough,http://opendatacommunities.org/id/unitary-authority/peterborough,Peterborough City Council,Children's & Education Services - Children's Social Care,Other Children's & Families Services,Employees,03/12/2014 00:00,693680,1513.62,REVENUE,Randstad Care Ltd,EXTERNAL TEMPORARY STAFF
Peterborough,http://opendatacommunities.org/id/unitary-authority/peterborough,Peterborough City Council,Children's & Education Services - Children's Social Care,Children Looked After,Employees,03/12/2014 00:00,693681,1344,REVENUE,Textbook Teachers,EXTERNAL TEMPORARY STAFF
Peterborough,http://opendatacommunities.org/id/unitary-authority/peterborough,Peterborough City Council,Adult Social Care,Older People,Supplies and Services,03/12/2014 00:00,693771,2946.36,REVENUE,LEONARD CHESHIRE DISABILITY,PHYSICAL DISABILITY NURSING CARE
Peterborough,http://opendatacommunities.org/id/unitary-authority/peterborough,Peterborough City Council,Adult Social Care,Older People,Supplies and Services,03/12/2014 00:00,693774,4282.2,REVENUE,LEONARD CHESHIRE DISABILITY,PHYSICAL DISABILITY NURSING CARE
Peterborough,http://opendatacommunities.org/id/unitary-authority/peterborough,Peterborough City Council,Adult Social Care,Adult Learning Disabilities,Supplies and Services,03/12/2014 00:00,693785,2707.04,REVENUE,LEONARD CHESHIRE DISABILITY,PHYSICAL DISABILITY NURSING CARE
Peterborough,http://opendatacommunities.org/id/unitary-authority/peterborough,Peterborough City Council,Children's & Education Services - Children's Social Care,Other Children's & Families Services,Employees,03/12/2014 00:00,693797,2587.5,REVENUE,Tempest Resourcing,EXTERNAL TEMPORARY STAFF
Peterborough,http://opendatacommunities.org/id/unitary-authority/peterborough,Peterborough City Council,Children's & Education Services - Education,Other School -related Education Functions,Supplies and Services,03/12/2014 00:00,693825,3588.9,REVENUE,Pearson Publishers Oxford Ltd,EDUCATION EXPENSES
Peterborough,http://opendatacommunities.org/id/unitary-authority/peterborough,Peterborough City Council,Children's & Education Services - Children's Social Care,Children's Services - Commissioning and Social Work,Supplies and Services,03/12/2014 00:00,693892,1116,REVENUE,Redacted Personal Data,PURCHASED SOCIAL CARE SERVICES
Peterborough,http://opendatacommunities.org/id/unitary-authority/peterborough,Peterborough City Council,More than one Service Area Category,More than one Service Division,Supplies and Services,03/12/2014 00:00,693941,1596.02,REVENUE,Child and Family Psychological Assessment Services,JURORS/EXPERT WITNESSES
Peterborough,http://opendatacommunities.org/id/unitary-authority/peterborough,Peterborough City Council,Adult Social Care,Adult Mental Health,Third Party Payments,03/12/2014 00:00,693966,1380.12,REVENUE,Caritas Recruitment,EXTERNAL TEMPORARY STAFF
Peterborough,http://opendatacommunities.org/id/unitary-authority/peterborough,Peterborough City Council,Adult Social Care,Older People,Supplies and Services,03/12/2014 00:00,694029,554.9,REVENUE,Select Support Partnerships Limited,OLDER PEOPLE HOME CARE
Peterborough,http://opendatacommunities.org/id/unitary-authority/peterborough,Peterborough City Council,Adult Social Care,Older People,Supplies and Services,03/12/2014 00:00,694031,747.1,REVENUE,Select Support Partnerships Limited,PHYSICAL DISABILITY HOME CARE
Peterborough,http://opendatacommunities.org/id/unitary-authority/peterborough,Peterborough City Council,Adult Social Care,Older People,Supplies and Services,03/12/2014 00:00,694042,781.2,REVENUE,Select Support Partnerships Limited,OLDER PEOPLE HOME CARE
Peterborough,http://opendatacommunities.org/id/unitary-authority/peterborough,Peterborough City Council,Adult Social Care,Adult Learning Disabilities,Employees,03/12/2014 00:00,694074,1168.2,REVENUE,Randstad Care Ltd,EXTERNAL TEMPORARY STAFF
Peterborough,http://opendatacommunities.org/id/unitary-authority/peterborough,Peterborough City Council,Adult Social Care,Adult Learning Disabilities,Employees,03/12/2014 00:00,694077,1575,REVENUE,Randstad Care Ltd,EXTERNAL TEMPORARY STAFF
Peterborough,http://opendatacommunities.org/id/unitary-authority/peterborough,Peterborough City Council,Adult Social Care,Adult Learning Disabilities,Supplies and Services,03/12/2014 00:00,694101,13381.4,REVENUE,Kisimul Group Ltd,LEARNING DISABILITY RESIDENTIAL CARE
Peterborough,http://opendatacommunities.org/id/unitary-authority/peterborough,Peterborough City Council,Children's & Education Services - Children's Social Care,Children's Services - Commissioning and Social Work,Supplies and Services - Transfer Payments,03/12/2014 00:00,694159,678.52,REVENUE,Transition Care Peterborough Ltd,BOARDING - OUT ALLWNCES
Peterborough,http://opendatacommunities.org/id/unitary-authority/peterborough,Peterborough City Council,Central Services to the Public,Elections,Supplies and Services,03/12/2014 00:00,694206,737.86,REVENUE,Print UK,POSTAGE
Peterborough,http://opendatacommunities.org/id/unitary-authority/peterborough,Peterborough City Council,Adult Social Care,Adult Learning Disabilities,Employees,03/12/2014 00:00,694282,1591.26,REVENUE,Caritas Recruitment,EXTERNAL TEMPORARY STAFF
Peterborough,http://opendatacommunities.org/id/unitary-authority/peterborough,Peterborough City Council,Support Services,Support Services,Employees,03/12/2014 00:00,694828,574.2,REVENUE,Sellick Partnership Group Limited,EXTERNAL TEMPORARY STAFF
Peterborough,http://opendatacommunities.org/id/unitary-authority/peterborough,Peterborough City Council,Deficit/(Surplus) on Trading Undertakings,Trading Account Surpluses & Deficits,Supplies and Services,03/12/2014 00:00,694834,3186,REVENUE,Wilks Head & Eve,VALUATIONS
Peterborough,http://opendatacommunities.org/id/unitary-authority/peterborough,Peterborough City Council,Deficit/(Surplus) on Trading Undertakings,Trading Account Surpluses & Deficits,Supplies and Services,03/12/2014 00:00,694835,6372,REVENUE,Wilks Head & Eve,VALUATIONS
Peterborough,http://opendatacommunities.org/id/unitary-authority/peterborough,Peterborough City Council,Support Services,Support Services,Supplies and Services,03/12/2014 00:00,695133,1920,REVENUE,Codename Media Ltd,ADVERTISING
Peterborough,http://opendatacommunities.org/id/unitary-authority/peterborough,Peterborough City Council,Housing Services,Private Sector Housing Renewal,Supplies and Services,03/12/2014 00:00,695139,1469.5,REVENUE,Nightingale Services,CONTRACTORS
Peterborough,http://opendatacommunities.org/id/unitary-authority/peterborough,Peterborough City Council,Public Health,Public Health Advice,Employees,03/12/2014 00:00,695141,14094,REVENUE,Panoramic Associates Limited,EXTERNAL TEMPORARY STAFF
Peterborough,http://opendatacommunities.org/id/unitary-authority/peterborough,Peterborough City Council,Highways and Transport Services,"Transport planning, policy and strategy",Employees,03/12/2014 00:00,695184,731.26,REVENUE,Reed Specialist Recruitment,EXTERNAL TEMPORARY STAFF
Peterborough,http://opendatacommunities.org/id/unitary-authority/peterborough,Peterborough City Council,Children's & Education Services - Children's Social Care,Children's Services - Commissioning and Social Work,Employees,03/12/2014 00:00,695187,620.27,REVENUE,Reed Specialist Recruitment,EXTERNAL TEMPORARY STAFF
Peterborough,http://opendatacommunities.org/id/unitary-authority/peterborough,Peterborough City Council,Children's & Education Services - Children's Social Care,Children Looked After,Employees,03/12/2014 00:00,695188,721.5,REVENUE,Reed Specialist Recruitment,EXTERNAL TEMPORARY STAFF
Peterborough,http://opendatacommunities.org/id/unitary-authority/peterborough,Peterborough City Council,Adult Social Care,Older People,Supplies and Services,03/12/2014 00:00,695342,1167.26,REVENUE,Hales Group Ltd,PHYSICAL DISABILITY HOME CARE
Peterborough,http://opendatacommunities.org/id/unitary-authority/peterborough,Peterborough City Council,Adult Social Care,Older People,Supplies and Services,03/12/2014 00:00,695345,619.24,REVENUE,Hales Group Ltd,OLDER PEOPLE HOME CARE
Peterborough,http://opendatacommunities.org/id/unitary-authority/peterborough,Peterborough City Council,Adult Social Care,Older People,Supplies and Services,03/12/2014 00:00,695356,705.76,REVENUE,Hales Group Ltd,PHYSICAL DISABILITY HOME CARE
Peterborough,http://opendatacommunities.org/id/unitary-authority/peterborough,Peterborough City Council,Adult Social Care,Older People,Supplies and Services,03/12/2014 00:00,695357,895.15,REVENUE,Hales Group Ltd,OLDER PEOPLE HOME CARE
Peterborough,http://opendatacommunities.org/id/unitary-authority/peterborough,Peterborough City Council,Adult Social Care,Older People,Supplies and Services,03/12/2014 00:00,695358,541.49,REVENUE,Hales Group Ltd,OLDER PEOPLE HOME CARE
Peterborough,http://opendatacommunities.org/id/unitary-authority/peterborough,Peterborough City Council,Adult Social Care,Older People,Supplies and Services,03/12/2014 00:00,695361,529.18,REVENUE,Hales Group Ltd,OLDER PEOPLE HOME CARE
Peterborough,http://opendatacommunities.org/id/unitary-authority/peterborough,Peterborough City Council,Adult Social Care,Older People,Supplies and Services,03/12/2014 00:00,695365,913,REVENUE,Hales Group Ltd,PHYSICAL DISABILITY HOME CARE
Peterborough,http://opendatacommunities.org/id/unitary-authority/peterborough,Peterborough City Council,Adult Social Care,Older People,Supplies and Services,03/12/2014 00:00,695367,1387.39,REVENUE,Hales Group Ltd,PHYSICAL DISABILITY HOME CARE
Peterborough,http://opendatacommunities.org/id/unitary-authority/peterborough,Peterborough City Council,Adult Social Care,Older People,Supplies and Services,03/12/2014 00:00,695374,1259.71,REVENUE,Hales Group Ltd,OLDER PEOPLE HOME CARE
Peterborough,http://opendatacommunities.org/id/unitary-authority/peterborough,Peterborough City Council,Adult Social Care,Older People,Supplies and Services,03/12/2014 00:00,695381,2804.4,REVENUE,Hales Group Ltd,OLDER PEOPLE HOME CARE
Peterborough,http://opendatacommunities.org/id/unitary-authority/peterborough,Peterborough City Council,Adult Social Care,Older People,Supplies and Services,03/12/2014 00:00,695387,642.74,REVENUE,Hales Group Ltd,OLDER PEOPLE HOME CARE
Peterborough,http://opendatacommunities.org/id/unitary-authority/peterborough,Peterborough City Council,Adult Social Care,Older People,Supplies and Services,03/12/2014 00:00,695388,1093.36,REVENUE,Hales Group Ltd,OLDER PEOPLE HOME CARE
Peterborough,http://opendatacommunities.org/id/unitary-authority/peterborough,Peterborough City Council,Adult Social Care,Older People,Supplies and Services,03/12/2014 00:00,695389,1417.49,REVENUE,Hales Group Ltd,PHYSICAL DISABILITY HOME CARE
Peterborough,http://opendatacommunities.org/id/unitary-authority/peterborough,Peterborough City Council,Adult Social Care,Older People,Supplies and Services,03/12/2014 00:00,695390,581.06,REVENUE,Hales Group Ltd,OLDER PEOPLE HOME CARE
Peterborough,http://opendatacommunities.org/id/unitary-authority/peterborough,Peterborough City Council,Adult Social Care,Older People,Supplies and Services,03/12/2014 00:00,695392,743.17,REVENUE,Hales Group Ltd,PHYSICAL DISABILITY HOME CARE
Peterborough,http://opendatacommunities.org/id/unitary-authority/peterborough,Peterborough City Council,Adult Social Care,Older People,Supplies and Services,03/12/2014 00:00,695394,530.11,REVENUE,Hales Group Ltd,OLDER PEOPLE HOME CARE
Peterborough,http://opendatacommunities.org/id/unitary-authority/peterborough,Peterborough City Council,Adult Social Care,Older People,Supplies and Services,03/12/2014 00:00,695399,1177.52,REVENUE,Hales Group Ltd,OLDER PEOPLE HOME CARE
Peterborough,http://opendatacommunities.org/id/unitary-authority/peterborough,Peterborough City Council,Adult Social Care,Older People,Supplies and Services,03/12/2014 00:00,695404,504.22,REVENUE,Hales Group Ltd,OLDER PEOPLE HOME CARE
Peterborough,http://opendatacommunities.org/id/unitary-authority/peterborough,Peterborough City Council,Adult Social Care,Older People,Supplies and Services,03/12/2014 00:00,695405,789.9,REVENUE,Hales Group Ltd,PHYSICAL DISABILITY HOME CARE
Peterborough,http://opendatacommunities.org/id/unitary-authority/peterborough,Peterborough City Council,Adult Social Care,Older People,Supplies and Services,03/12/2014 00:00,695407,1005.35,REVENUE,Hales Group Ltd,OLDER PEOPLE HOME CARE
Peterborough,http://opendatacommunities.org/id/unitary-authority/peterborough,Peterborough City Council,Adult Social Care,Older People,Supplies and Services,03/12/2014 00:00,695412,973.91,REVENUE,Hales Group Ltd,PHYSICAL DISABILITY HOME CARE
Peterborough,http://opendatacommunities.org/id/unitary-authority/peterborough,Peterborough City Council,Adult Social Care,Older People,Supplies and Services,03/12/2014 00:00,695413,585.52,REVENUE,Hales Group Ltd,OLDER PEOPLE HOME CARE
Peterborough,http://opendatacommunities.org/id/unitary-authority/peterborough,Peterborough City Council,Adult Social Care,Older People,Supplies and Services,03/12/2014 00:00,695414,868.91,REVENUE,Hales Group Ltd,OLDER PEOPLE HOME CARE
Peterborough,http://opendatacommunities.org/id/unitary-authority/peterborough,Peterborough City Council,Adult Social Care,Older People,Supplies and Services,03/12/2014 00:00,695424,532.03,REVENUE,Hales Group Ltd,OLDER PEOPLE HOME CARE
Peterborough,http://opendatacommunities.org/id/unitary-authority/peterborough,Peterborough City Council,Adult Social Care,Older People,Supplies and Services,03/12/2014 00:00,695429,790.61,REVENUE,Hales Group Ltd,PHYSICAL DISABILITY HOME CARE
Peterborough,http://opendatacommunities.org/id/unitary-authority/peterborough,Peterborough City Council,Adult Social Care,Older People,Supplies and Services,03/12/2014 00:00,695446,1515.84,REVENUE,Hales Group Ltd,OLDER PEOPLE HOME CARE
Peterborough,http://opendatacommunities.org/id/unitary-authority/peterborough,Peterborough City Council,Adult Social Care,Older People,Supplies and Services,03/12/2014 00:00,695451,545.6,REVENUE,Hales Group Ltd,PHYSICAL DISABILITY HOME CARE
Peterborough,http://opendatacommunities.org/id/unitary-authority/peterborough,Peterborough City Council,Adult Social Care,Older People,Supplies and Services,03/12/2014 00:00,695457,1228.56,REVENUE,Hales Group Ltd,PHYSICAL DISABILITY HOME CARE
Peterborough,http://opendatacommunities.org/id/unitary-authority/peterborough,Peterborough City Council,Adult Social Care,Older People,Supplies and Services,03/12/2014 00:00,695461,541.52,REVENUE,Hales Group Ltd,OLDER PEOPLE HOME CARE
Peterborough,http://opendatacommunities.org/id/unitary-authority/peterborough,Peterborough City Council,Adult Social Care,Older People,Supplies and Services,03/12/2014 00:00,695467,602.02,REVENUE,Hales Group Ltd,PHYSICAL DISABILITY HOME CARE
Peterborough,http://opendatacommunities.org/id/unitary-authority/peterborough,Peterborough City Council,Children's & Education Services - Children's Social Care,Other Children's & Families Services,Employees,03/12/2014 00:00,695617,2726.4,REVENUE,Sanctuary Personnel Ltd,EXTERNAL TEMPORARY STAFF
Peterborough,http://opendatacommunities.org/id/unitary-authority/peterborough,Peterborough City Council,Children's & Education Services - Children's Social Care,Other Children's & Families Services,Employees,03/12/2014 00:00,695620,2727,REVENUE,Sanctuary Personnel Ltd,EXTERNAL TEMPORARY STAFF
Peterborough,http://opendatacommunities.org/id/unitary-authority/peterborough,Peterborough City Council,Children's & Education Services - Children's Social Care,Other Children's & Families Services,Employees,03/12/2014 00:00,695623,1715.62,REVENUE,Sanctuary Personnel Ltd,EXTERNAL TEMPORARY STAFF
Peterborough,http://opendatacommunities.org/id/unitary-authority/peterborough,Peterborough City Council,Children's & Education Services - Children's Social Care,Other Children's & Families Services,Employees,03/12/2014 00:00,695625,2726.4,REVENUE,Sanctuary Personnel Ltd,EXTERNAL TEMPORARY STAFF
Peterborough,http://opendatacommunities.org/id/unitary-authority/peterborough,Peterborough City Council,Children's & Education Services - Children's Social Care,Other Children's & Families Services,Employees,03/12/2014 00:00,695627,2144.52,REVENUE,Sanctuary Personnel Ltd,EXTERNAL TEMPORARY STAFF
Peterborough,http://opendatacommunities.org/id/unitary-authority/peterborough,Peterborough City Council,Children's & Education Services - Children's Social Care,Other Children's & Families Services,Employees,03/12/2014 00:00,695629,2181.6,REVENUE,Sanctuary Personnel Ltd,EXTERNAL TEMPORARY STAFF
Peterborough,http://opendatacommunities.org/id/unitary-authority/peterborough,Peterborough City Council,Children's & Education Services - Children's Social Care,Other Children's & Families Services,Employees,03/12/2014 00:00,695631,1636.2,REVENUE,Sanctuary Personnel Ltd,EXTERNAL TEMPORARY STAFF
Peterborough,http://opendatacommunities.org/id/unitary-authority/peterborough,Peterborough City Council,Children's & Education Services - Children's Social Care,Other Children's & Families Services,Employees,03/12/2014 00:00,695634,2726.4,REVENUE,Sanctuary Personnel Ltd,EXTERNAL TEMPORARY STAFF
Peterborough,http://opendatacommunities.org/id/unitary-authority/peterborough,Peterborough City Council,Children's & Education Services - Children's Social Care,Other Children's & Families Services,Employees,03/12/2014 00:00,695636,2619.6,REVENUE,Sanctuary Personnel Ltd,EXTERNAL TEMPORARY STAFF
Peterborough,http://opendatacommunities.org/id/unitary-authority/peterborough,Peterborough City Council,Children's & Education Services - Children's Social Care,Other Children's & Families Services,Employees,03/12/2014 00:00,695638,2553.6,REVENUE,Sanctuary Personnel Ltd,EXTERNAL TEMPORARY STAFF
Peterborough,http://opendatacommunities.org/id/unitary-authority/peterborough,Peterborough City Council,Children's & Education Services - Children's Social Care,Other Children's & Families Services,Employees,03/12/2014 00:00,695639,2280,REVENUE,Sanctuary Personnel Ltd,EXTERNAL TEMPORARY STAFF
Peterborough,http://opendatacommunities.org/id/unitary-authority/peterborough,Peterborough City Council,Children's & Education Services - Children's Social Care,Other Children's & Families Services,Employees,03/12/2014 00:00,695640,1800,REVENUE,Sanctuary Personnel Ltd,EXTERNAL TEMPORARY STAFF
Peterborough,http://opendatacommunities.org/id/unitary-authority/peterborough,Peterborough City Council,Children's & Education Services - Children's Social Care,Other Children's & Families Services,Employees,03/12/2014 00:00,695641,857.81,REVENUE,Sanctuary Personnel Ltd,EXTERNAL TEMPORARY STAFF
Peterborough,http://opendatacommunities.org/id/unitary-authority/peterborough,Peterborough City Council,Children's & Education Services - Children's Social Care,Other Children's & Families Services,Employees,03/12/2014 00:00,695642,2144.52,REVENUE,Sanctuary Personnel Ltd,EXTERNAL TEMPORARY STAFF
Peterborough,http://opendatacommunities.org/id/unitary-authority/peterborough,Peterborough City Council,Children's & Education Services - Children's Social Care,Other Children's & Families Services,Employees,03/12/2014 00:00,695643,1598.4,REVENUE,Sanctuary Personnel Ltd,EXTERNAL TEMPORARY STAFF
Peterborough,http://opendatacommunities.org/id/unitary-authority/peterborough,Peterborough City Council,Children's & Education Services - Children's Social Care,Other Children's & Families Services,Employees,03/12/2014 00:00,695645,2144.52,REVENUE,Sanctuary Personnel Ltd,EXTERNAL TEMPORARY STAFF
Peterborough,http://opendatacommunities.org/id/unitary-authority/peterborough,Peterborough City Council,Children's & Education Services - Children's Social Care,Other Children's & Families Services,Employees,03/12/2014 00:00,695647,2144.52,REVENUE,Sanctuary Personnel Ltd,EXTERNAL TEMPORARY STAFF
Peterborough,http://opendatacommunities.org/id/unitary-authority/peterborough,Peterborough City Council,Children's & Education Services - Children's Social Care,Other Children's & Families Services,Employees,03/12/2014 00:00,695649,2144.52,REVENUE,Sanctuary Personnel Ltd,EXTERNAL TEMPORARY STAFF
Peterborough,http://opendatacommunities.org/id/unitary-authority/peterborough,Peterborough City Council,Children's & Education Services - Children's Social Care,Children's Services - Commissioning and Social Work,Employees,03/12/2014 00:00,695651,2144.52,REVENUE,Sanctuary Personnel Ltd,EXTERNAL TEMPORARY STAFF
Peterborough,http://opendatacommunities.org/id/unitary-authority/peterborough,Peterborough City Council,Adult Social Care,Older People,Supplies and Services,03/12/2014 00:00,695922,687.86,REVENUE,Care UK Homecare Ltd,MH OLDER PEOPLE HOME CARE
Peterborough,http://opendatacommunities.org/id/unitary-authority/peterborough,Peterborough City Council,Adult Social Care,Older People,Supplies and Services,03/12/2014 00:00,695923,602.16,REVENUE,Care UK Homecare Ltd,MH OLDER PEOPLE HOME CARE
Peterborough,http://opendatacommunities.org/id/unitary-authority/peterborough,Peterborough City Council,Adult Social Care,Older People,Supplies and Services,03/12/2014 00:00,695924,639.14,REVENUE,Care UK Homecare Ltd,PHYSICAL DISABILITY HOME CARE
Peterborough,http://opendatacommunities.org/id/unitary-authority/peterborough,Peterborough City Council,Adult Social Care,Older People,Supplies and Services,03/12/2014 00:00,695925,704.77,REVENUE,Care UK Homecare Ltd,OLDER PEOPLE HOME CARE
Peterborough,http://opendatacommunities.org/id/unitary-authority/peterborough,Peterborough City Council,Adult Social Care,Older People,Supplies and Services,03/12/2014 00:00,695929,2551.02,REVENUE,Care UK Homecare Ltd,PHYSICAL DISABILITY HOME CARE
Peterborough,http://opendatacommunities.org/id/unitary-authority/peterborough,Peterborough City Council,Adult Social Care,Older People,Supplies and Services,03/12/2014 00:00,695941,778.68,REVENUE,Care UK Homecare Ltd,OLDER PEOPLE HOME CARE
Peterborough,http://opendatacommunities.org/id/unitary-authority/peterborough,Peterborough City Council,Adult Social Care,Older People,Supplies and Services,03/12/2014 00:00,695954,554.4,REVENUE,Care UK Homecare Ltd,OLDER PEOPLE HOME CARE
Peterborough,http://opendatacommunities.org/id/unitary-authority/peterborough,Peterborough City Council,Adult Social Care,Older People,Supplies and Services,03/12/2014 00:00,695958,650.1,REVENUE,Care UK Homecare Ltd,OLDER PEOPLE HOME CARE
Peterborough,http://opendatacommunities.org/id/unitary-authority/peterborough,Peterborough City Council,Adult Social Care,Older People,Supplies and Services,03/12/2014 00:00,695962,2598.26,REVENUE,Care UK Homecare Ltd,OLDER PEOPLE HOME CARE
Peterborough,http://opendatacommunities.org/id/unitary-authority/peterborough,Peterborough City Council,Adult Social Care,Older People,Supplies and Services,03/12/2014 00:00,695963,864.6,REVENUE,Care UK Homecare Ltd,OLDER PEOPLE HOME CARE
Peterborough,http://opendatacommunities.org/id/unitary-authority/peterborough,Peterborough City Council,Adult Social Care,Older People,Supplies and Services,03/12/2014 00:00,695982,2032.8,REVENUE,Care UK Homecare Ltd,OLDER PEOPLE HOME CARE
Peterborough,http://opendatacommunities.org/id/unitary-authority/peterborough,Peterborough City Council,Children's & Education Services - Children's Social Care,Children's Services - Commissioning and Social Work,Employees,03/12/2014 00:00,696021,2144.52,REVENUE,Sanctuary Personnel Ltd,EXTERNAL TEMPORARY STAFF
Peterborough,http://opendatacommunities.org/id/unitary-authority/peterborough,Peterborough City Council,Children's & Education Services - Children's Social Care,Children's Services - Commissioning and Social Work,Employees,03/12/2014 00:00,696022,2144.52,REVENUE,Sanctuary Personnel Ltd,EXTERNAL TEMPORARY STAFF
Peterborough,http://opendatacommunities.org/id/unitary-authority/peterborough,Peterborough City Council,Children's & Education Services - Children's Social Care,Other Children's & Families Services,Employees,03/12/2014 00:00,696024,2727,REVENUE,Sanctuary Personnel Ltd,EXTERNAL TEMPORARY STAFF
Peterborough,http://opendatacommunities.org/id/unitary-authority/peterborough,Peterborough City Council,Children's & Education Services - Children's Social Care,Other Children's & Families Services,Employees,03/12/2014 00:00,696026,1090.8,REVENUE,Sanctuary Personnel Ltd,EXTERNAL TEMPORARY STAFF
Peterborough,http://opendatacommunities.org/id/unitary-authority/peterborough,Peterborough City Council,Children's & Education Services - Children's Social Care,Other Children's & Families Services,Employees,03/12/2014 00:00,696027,2280,REVENUE,Sanctuary Personnel Ltd,EXTERNAL TEMPORARY STAFF
Peterborough,http://opendatacommunities.org/id/unitary-authority/peterborough,Peterborough City Council,Children's & Education Services - Children's Social Care,Other Children's & Families Services,Employees,03/12/2014 00:00,696037,1224,REVENUE,Sanctuary Personnel Ltd,EXTERNAL TEMPORARY STAFF
Peterborough,http://opendatacommunities.org/id/unitary-authority/peterborough,Peterborough City Council,Children's & Education Services - Children's Social Care,Other Children's & Families Services,Employees,03/12/2014 00:00,696038,2144.52,REVENUE,Sanctuary Personnel Ltd,EXTERNAL TEMPORARY STAFF
Peterborough,http://opendatacommunities.org/id/unitary-authority/peterborough,Peterborough City Council,Children's & Education Services - Children's Social Care,Other Children's & Families Services,Employees,03/12/2014 00:00,696040,1620,REVENUE,Sanctuary Personnel Ltd,EXTERNAL TEMPORARY STAFF
Peterborough,http://opendatacommunities.org/id/unitary-authority/peterborough,Peterborough City Council,Children's & Education Services - Children's Social Care,Other Children's & Families Services,Employees,03/12/2014 00:00,696043,1466.04,REVENUE,Sanctuary Personnel Ltd,EXTERNAL TEMPORARY STAFF
Peterborough,http://opendatacommunities.org/id/unitary-authority/peterborough,Peterborough City Council,Children's & Education Services - Children's Social Care,Children's Services - Commissioning and Social Work,Employees,03/12/2014 00:00,696045,2144.52,REVENUE,Sanctuary Personnel Ltd,EXTERNAL TEMPORARY STAFF
Peterborough,http://opendatacommunities.org/id/unitary-authority/peterborough,Peterborough City Council,Children's & Education Services - Children's Social Care,Other Children's & Families Services,Employees,03/12/2014 00:00,696047,2144.52,REVENUE,Sanctuary Personnel Ltd,EXTERNAL TEMPORARY STAFF
Peterborough,http://opendatacommunities.org/id/unitary-authority/peterborough,Peterborough City Council,Children's & Education Services - Children's Social Care,Children Looked After,Employees,03/12/2014 00:00,696075,564,REVENUE,Wrixon Care Services,PURCHASED SOCIAL CARE SERVICES
Peterborough,http://opendatacommunities.org/id/unitary-authority/peterborough,Peterborough City Council,Adult Social Care,Adult Mental Health,Third Party Payments,03/12/2014 00:00,696079,11467.5,REVENUE,Norfolk & Suffolk NHS Foundation Trust,THIRD PARTY PAYMENTS - CONTRACT
Peterborough,http://opendatacommunities.org/id/unitary-authority/peterborough,Peterborough City Council,Adult Social Care,Adult Learning Disabilities,Employees,03/12/2014 00:00,696082,604.8,REVENUE,City Resource Ltd,EXTERNAL TEMPORARY STAFF
Peterborough,http://opendatacommunities.org/id/unitary-authority/peterborough,Peterborough City Council,Adult Social Care,Adult Learning Disabilities,Supplies and Services,03/12/2014 00:00,696239,2025.6,REVENUE,Benell Care Services Ltd,LEARNING DISABILITY RESIDENTIAL CARE
Peterborough,http://opendatacommunities.org/id/unitary-authority/peterborough,Peterborough City Council,Children's & Education Services - Children's Social Care,Other Children's & Families Services,Employees,03/12/2014 00:00,696807,2727,REVENUE,Sanctuary Personnel Ltd,EXTERNAL TEMPORARY STAFF
Peterborough,http://opendatacommunities.org/id/unitary-authority/peterborough,Peterborough City Council,Children's & Education Services - Children's Social Care,Other Children's & Families Services,Employees,03/12/2014 00:00,696814,1998,REVENUE,Sanctuary Personnel Ltd,EXTERNAL TEMPORARY STAFF
Peterborough,http://opendatacommunities.org/id/unitary-authority/peterborough,Peterborough City Council,Highways and Transport Services,Public Transport,Supplies and Services,03/12/2014 00:00,696969,15384.62,REVENUE,Stagecoach in Peterborough,CONTRACTORS
Peterborough,http://opendatacommunities.org/id/unitary-authority/peterborough,Peterborough City Council,Adult Social Care,Older People,Third Party Payments,03/12/2014 00:00,696979,3479.44,REVENUE,Longueville Court (Barchester),THIRD PARTY PAYMENTS - CONTRACT
Peterborough,http://opendatacommunities.org/id/unitary-authority/peterborough,Peterborough City Council,Children's & Education Services - Children's Social Care,Other Children's & Families Services,Employees,03/12/2014 00:00,697134,1620.6,REVENUE,Medicare First,EXTERNAL TEMPORARY STAFF
Peterborough,http://opendatacommunities.org/id/unitary-authority/peterborough,Peterborough City Council,More than one Service Area Category,More than one Service Division,More than one Expenses Type,03/12/2014 00:00,697201,1143.2,"Mixture of Capital, Revenue and/or Balance Sheet",Redacted Personal Data,GRANT PAYMENT
Peterborough,http://opendatacommunities.org/id/unitary-authority/peterborough,Peterborough City Council,More than one Service Area Category,More than one Service Division,More than one Expenses Type,03/12/2014 00:00,697207,1909,"Mixture of Capital, Revenue and/or Balance Sheet",Allworks Home Improvements Ltd,GRANT PAYMENT
Peterborough,http://opendatacommunities.org/id/unitary-authority/peterborough,Peterborough City Council,More than one Service Area Category,More than one Service Division,More than one Expenses Type,03/12/2014 00:00,697209,3313,"Mixture of Capital, Revenue and/or Balance Sheet",Morley Building Services,GRANT PAYMENT
Peterborough,http://opendatacommunities.org/id/unitary-authority/peterborough,Peterborough City Council,Capital,Capital,Capital Pending Update to BS,03/12/2014 00:00,697332,79472.1,CAPITAL,Carillion Building,BUILDING AND SITE WORKS
Peterborough,http://opendatacommunities.org/id/unitary-authority/peterborough,Peterborough City Council,Children's & Education Services - Children's Social Care,Children Looked After,Employees,03/12/2014 00:00,697336,2035.2,REVENUE,Engage Education,EXTERNAL TEMPORARY STAFF
Peterborough,http://opendatacommunities.org/id/unitary-authority/peterborough,Peterborough City Council,Adult Social Care,Older People,Supplies and Services,03/12/2014 00:00,697392,2225.36,REVENUE,Care UK Homecare Ltd,OLDER PEOPLE HOME CARE
Peterborough,http://opendatacommunities.org/id/unitary-authority/peterborough,Peterborough City Council,Adult Social Care,Adult Mental Health,Supplies and Services,03/12/2014 00:00,697498,772.8,REVENUE,Axiom Housing Association,PROFESSIONAL SERVICES
Peterborough,http://opendatacommunities.org/id/unitary-authority/peterborough,Peterborough City Council,Adult Social Care,Adult Mental Health,Supplies and Services,03/12/2014 00:00,697501,552,REVENUE,Axiom Housing Association,PROFESSIONAL SERVICES
Peterborough,http://opendatacommunities.org/id/unitary-authority/peterborough,Peterborough City Council,Adult Social Care,Adult Mental Health,Supplies and Services,03/12/2014 00:00,697503,552,REVENUE,Axiom Housing Association,PROFESSIONAL SERVICES
Peterborough,http://opendatacommunities.org/id/unitary-authority/peterborough,Peterborough City Council,Adult Social Care,Adult Mental Health,Supplies and Services,03/12/2014 00:00,697506,552,REVENUE,Axiom Housing Association,PROFESSIONAL SERVICES
Peterborough,http://opendatacommunities.org/id/unitary-authority/peterborough,Peterborough City Council,Adult Social Care,Adult Mental Health,Supplies and Services,03/12/2014 00:00,697522,552,REVENUE,Axiom Housing Association,PROFESSIONAL SERVICES
Peterborough,http://opendatacommunities.org/id/unitary-authority/peterborough,Peterborough City Council,Adult Social Care,Older People,Supplies and Services,03/12/2014 00:00,697536,574.2,REVENUE,Care UK Homecare Ltd,OLDER PEOPLE HOME CARE
Peterborough,http://opendatacommunities.org/id/unitary-authority/peterborough,Peterborough City Council,Children's & Education Services - Children's Social Care,Children's Services - Commissioning and Social Work,Supplies and Services,03/12/2014 00:00,697725,1416,REVENUE,Redacted Personal Data,CHILDCARE
Peterborough,http://opendatacommunities.org/id/unitary-authority/peterborough,Peterborough City Council,Children's & Education Services - Children's Social Care,Children's Services - Commissioning and Social Work,Supplies and Services,03/12/2014 00:00,697728,632,REVENUE,Redacted Personal Data,PURCHASED SOCIAL CARE SERVICES
Peterborough,http://opendatacommunities.org/id/unitary-authority/peterborough,Peterborough City Council,Public Health,Substance Misuse,Third Party Payments,03/12/2014 00:00,697833,1473.5,REVENUE,ASDA PHARMACY PETERBOROUGH,THIRD PARTY PAYMENTS - CONTRACT
Peterborough,http://opendatacommunities.org/id/unitary-authority/peterborough,Peterborough City Council,Public Health,Substance Misuse,Third Party Payments,03/12/2014 00:00,697837,571,REVENUE,BOOTS MIDNIGHT PHARMACY (Bretton Centre),THIRD PARTY PAYMENTS - CONTRACT
Peterborough,http://opendatacommunities.org/id/unitary-authority/peterborough,Peterborough City Council,Public Health,Substance Misuse,Third Party Payments,03/12/2014 00:00,697838,747,REVENUE,Boots Queensgate,THIRD PARTY PAYMENTS - CONTRACT
Peterborough,http://opendatacommunities.org/id/unitary-authority/peterborough,Peterborough City Council,Public Health,Substance Misuse,Third Party Payments,03/12/2014 00:00,697842,1050.5,REVENUE,City Pharmacy,THIRD PARTY PAYMENTS - CONTRACT
Peterborough,http://opendatacommunities.org/id/unitary-authority/peterborough,Peterborough City Council,Public Health,Substance Misuse,Third Party Payments,03/12/2014 00:00,697844,505,REVENUE,Graham Young Pharmacy,THIRD PARTY PAYMENTS - CONTRACT
Peterborough,http://opendatacommunities.org/id/unitary-authority/peterborough,Peterborough City Council,More than one Service Area Category,More than one Service Division,Balance Sheet,03/12/2014 00:00,697846,6117,Balance Sheet,Graysons Solicitors,INSURANCE CLAIMS
Peterborough,http://opendatacommunities.org/id/unitary-authority/peterborough,Peterborough City Council,Public Health,Substance Misuse,Third Party Payments,03/12/2014 00:00,697853,965,REVENUE,Millfield Pharmacy,THIRD PARTY PAYMENTS - CONTRACT
Peterborough,http://opendatacommunities.org/id/unitary-authority/peterborough,Peterborough City Council,More than one Service Area Category,More than one Service Division,Premises,03/12/2014 00:00,697869,2508.28,REVENUE,Anglian Water,WATER
Peterborough,http://opendatacommunities.org/id/unitary-authority/peterborough,Peterborough City Council,Deficit/(Surplus) on Trading Undertakings,Trading Account Surpluses & Deficits,Premises,03/12/2014 00:00,697873,559.97,REVENUE,E.ON Energy,ELECTRICITY
Peterborough,http://opendatacommunities.org/id/unitary-authority/peterborough,Peterborough City Council,More than one Service Area Category,More than one Service Division,Premises,03/12/2014 00:00,697876,6202.79,REVENUE,Corona Energy Retail 4 Limited,GAS
Peterborough,http://opendatacommunities.org/id/unitary-authority/peterborough,Peterborough City Council,More than one Service Area Category,More than one Service Division,Balance Sheet,03/12/2014 00:00,697895,1775,Balance Sheet,RSA,INSURANCE CLAIMS
Peterborough,http://opendatacommunities.org/id/unitary-authority/peterborough,Peterborough City Council,Adult Social Care,Older People,Employees,03/12/2014 00:00,697923,1344,REVENUE,Caritas Recruitment,EXTERNAL TEMPORARY STAFF
Peterborough,http://opendatacommunities.org/id/unitary-authority/peterborough,Peterborough City Council,Adult Social Care,Older People,Employees,03/12/2014 00:00,697925,1575,REVENUE,Caritas Recruitment,EXTERNAL TEMPORARY STAFF
Peterborough,http://opendatacommunities.org/id/unitary-authority/peterborough,Peterborough City Council,Adult Social Care,Older People,Supplies and Services,03/12/2014 00:00,698008,3521.52,REVENUE,Sanctuary Care Limited,OLDER PEOPLE RESIDENTIAL CARE
Peterborough,http://opendatacommunities.org/id/unitary-authority/peterborough,Peterborough City Council,Adult Social Care,Adult Learning Disabilities,Supplies and Services,03/12/2014 00:00,698017,800,REVENUE,THE HELPING HANDS GROUP,LEARNING DISABILITY DAY CARE
Peterborough,http://opendatacommunities.org/id/unitary-authority/peterborough,Peterborough City Council,Adult Social Care,Adult Learning Disabilities,Supplies and Services,03/12/2014 00:00,698020,950,REVENUE,THE HELPING HANDS GROUP,LEARNING DISABILITY DAY CARE
Peterborough,http://opendatacommunities.org/id/unitary-authority/peterborough,Peterborough City Council,Adult Social Care,Adult Learning Disabilities,Supplies and Services,03/12/2014 00:00,698022,1200,REVENUE,THE HELPING HANDS GROUP,LEARNING DISABILITY DAY CARE
Peterborough,http://opendatacommunities.org/id/unitary-authority/peterborough,Peterborough City Council,Adult Social Care,Adult Learning Disabilities,Supplies and Services,03/12/2014 00:00,698024,800,REVENUE,THE HELPING HANDS GROUP,LEARNING DISABILITY DAY CARE
Peterborough,http://opendatacommunities.org/id/unitary-authority/peterborough,Peterborough City Council,Adult Social Care,Adult Learning Disabilities,Supplies and Services,03/12/2014 00:00,698026,740,REVENUE,THE HELPING HANDS GROUP,LEARNING DISABILITY DAY CARE
Peterborough,http://opendatacommunities.org/id/unitary-authority/peterborough,Peterborough City Council,Adult Social Care,Adult Learning Disabilities,Supplies and Services,03/12/2014 00:00,698028,1200,REVENUE,THE HELPING HANDS GROUP,LEARNING DISABILITY DAY CARE
Peterborough,http://opendatacommunities.org/id/unitary-authority/peterborough,Peterborough City Council,Adult Social Care,Adult Learning Disabilities,Supplies and Services,03/12/2014 00:00,698029,600,REVENUE,THE HELPING HANDS GROUP,LEARNING DISABILITY DAY CARE
Peterborough,http://opendatacommunities.org/id/unitary-authority/peterborough,Peterborough City Council,Adult Social Care,Adult Learning Disabilities,Supplies and Services,03/12/2014 00:00,698031,760,REVENUE,THE HELPING HANDS GROUP,LEARNING DISABILITY DAY CARE
Peterborough,http://opendatacommunities.org/id/unitary-authority/peterborough,Peterborough City Council,Adult Social Care,Adult Learning Disabilities,Supplies and Services,03/12/2014 00:00,698036,800,REVENUE,THE HELPING HANDS GROUP,LEARNING DISABILITY DAY CARE
Peterborough,http://opendatacommunities.org/id/unitary-authority/peterborough,Peterborough City Council,Adult Social Care,Adult Learning Disabilities,Supplies and Services,03/12/2014 00:00,698038,1200,REVENUE,THE HELPING HANDS GROUP,LEARNING DISABILITY DAY CARE
Peterborough,http://opendatacommunities.org/id/unitary-authority/peterborough,Peterborough City Council,Adult Social Care,Adult Learning Disabilities,Supplies and Services,03/12/2014 00:00,698040,1200,REVENUE,THE HELPING HANDS GROUP,LEARNING DISABILITY DAY CARE
Peterborough,http://opendatacommunities.org/id/unitary-authority/peterborough,Peterborough City Council,Deficit/(Surplus) on Trading Undertakings,Trading Account Surpluses & Deficits,Premises,03/12/2014 00:00,698053,6600,REVENUE,Serco Ltd,IMPROVEMENTS
Peterborough,http://opendatacommunities.org/id/unitary-authority/peterborough,Peterborough City Council,Adult Social Care,Adult Learning Disabilities,Supplies and Services,03/12/2014 00:00,698060,5803.52,REVENUE,Sense,LEARNING DISABILITY RESIDENTIAL CARE
Peterborough,http://opendatacommunities.org/id/unitary-authority/peterborough,Peterborough City Council,Adult Social Care,Adult Learning Disabilities,Supplies and Services,03/12/2014 00:00,698105,3008,REVENUE,"ATCHISON, MR ALAN",LEARNING DISABILITY RESIDENTIAL CARE
Peterborough,http://opendatacommunities.org/id/unitary-authority/peterborough,Peterborough City Council,Adult Social Care,Older People,Supplies and Services,03/12/2014 00:00,698116,604.8,REVENUE,Mihomecare Limited,OLDER PEOPLE HOME CARE
Peterborough,http://opendatacommunities.org/id/unitary-authority/peterborough,Peterborough City Council,Adult Social Care,Older People,Supplies and Services,03/12/2014 00:00,698147,-1005.2,REVENUE,"ATCHISON, MR ALAN",LEARNING DISABILITY RESIDENTIAL CARE
Peterborough,http://opendatacommunities.org/id/unitary-authority/peterborough,Peterborough City Council,Support Services,Support Services,Supplies and Services,03/12/2014 00:00,698149,3146,REVENUE,Weightmans LLP,LEGAL COSTS
Peterborough,http://opendatacommunities.org/id/unitary-authority/peterborough,Peterborough City Council,Support Services,Support Services,Supplies and Services,03/12/2014 00:00,698153,1283.4,REVENUE,Weightmans LLP,LEGAL COSTS
Peterborough,http://opendatacommunities.org/id/unitary-authority/peterborough,Peterborough City Council,More than one Service Area Category,More than one Service Division,Premises,03/12/2014 00:00,698162,3584.64,REVENUE,Corona Energy Retail 4 Limited,GAS
Peterborough,http://opendatacommunities.org/id/unitary-authority/peterborough,Peterborough City Council,More than one Service Area Category,More than one Service Division,Premises,03/12/2014 00:00,698163,14733.5,REVENUE,Corona Energy Retail 4 Limited,GAS
Peterborough,http://opendatacommunities.org/id/unitary-authority/peterborough,Peterborough City Council,More than one Service Area Category,More than one Service Division,Premises,03/12/2014 00:00,698164,4125.58,REVENUE,Corona Energy Retail 4 Limited,GAS
Peterborough,http://opendatacommunities.org/id/unitary-authority/peterborough,Peterborough City Council,Support Services,Support Services,Supplies and Services,03/12/2014 00:00,698171,22917.43,REVENUE,Edenred,CHILDCARE
Peterborough,http://opendatacommunities.org/id/unitary-authority/peterborough,Peterborough City Council,Adult Social Care,Older People,Supplies and Services,03/12/2014 00:00,698242,864.96,REVENUE,FIELD HOUSE (EYE) LTD,OLDER PEOPLE RESIDENTIAL CARE
Peterborough,http://opendatacommunities.org/id/unitary-authority/peterborough,Peterborough City Council,Children's & Education Services - Children's Social Care,Children Looked After,Supplies and Services,03/12/2014 00:00,698261,959.83,REVENUE,Clare Lodge Secure Unit (Imprest),Numerous
Peterborough,http://opendatacommunities.org/id/unitary-authority/peterborough,Peterborough City Council,Children's & Education Services - Children's Social Care,Other Children's & Families Services,Supplies and Services,03/12/2014 00:00,698263,657.2,REVENUE,Redacted Personal Data,CONSULTANTS FEES
Peterborough,http://opendatacommunities.org/id/unitary-authority/peterborough,Peterborough City Council,Children's & Education Services - Children's Social Care,Children Looked After,More than one Expenses Type,03/12/2014 00:00,698264,637.15,REVENUE,Clare Lodge Secure Unit (Imprest),Numerous
Peterborough,http://opendatacommunities.org/id/unitary-authority/peterborough,Peterborough City Council,Adult Social Care,Adult Learning Disabilities,Supplies and Services,03/12/2014 00:00,698269,13689.12,REVENUE,Kisimul Group Ltd,LEARNING DISABILITY RESIDENTIAL CARE
Peterborough,http://opendatacommunities.org/id/unitary-authority/peterborough,Peterborough City Council,Adult Social Care,Support Services & Management Costs,Supplies and Services,03/12/2014 00:00,698273,900,REVENUE,Brian Watson Associates,LEGAL COSTS
Peterborough,http://opendatacommunities.org/id/unitary-authority/peterborough,Peterborough City Council,Housing Services,Homelessness,Supplies and Services,03/12/2014 00:00,698294,1320,REVENUE,Rooms 4 U,FINANCIAL ASSISTANCE
Peterborough,http://opendatacommunities.org/id/unitary-authority/peterborough,Peterborough City Council,Housing Services,Homelessness,Supplies and Services,03/12/2014 00:00,698295,1239,REVENUE,Redacted Personal Data,FINANCIAL ASSISTANCE
Peterborough,http://opendatacommunities.org/id/unitary-authority/peterborough,Peterborough City Council,Housing Services,Homelessness,Supplies and Services,03/12/2014 00:00,698296,1400,REVENUE,Rooms 4 U,FINANCIAL ASSISTANCE
Peterborough,http://opendatacommunities.org/id/unitary-authority/peterborough,Peterborough City Council,Housing Services,Homelessness,Supplies and Services,03/12/2014 00:00,698297,650,REVENUE,Stead Property Management,FINANCIAL ASSISTANCE
Peterborough,http://opendatacommunities.org/id/unitary-authority/peterborough,Peterborough City Council,More than one Service Area Category,More than one Service Division,Premises,03/12/2014 00:00,698298,1222.63,REVENUE,Corona Energy Retail 4 Limited,GAS
Peterborough,http://opendatacommunities.org/id/unitary-authority/peterborough,Peterborough City Council,More than one Service Area Category,More than one Service Division,Premises,03/12/2014 00:00,698299,2148.06,REVENUE,Corona Energy Retail 4 Limited,GAS
Peterborough,http://opendatacommunities.org/id/unitary-authority/peterborough,Peterborough City Council,Cultural and Related Services,Support Services & Management Costs,Premises,03/12/2014 00:00,698300,1461.91,REVENUE,Eastern Shires Purchasing Organisation,GAS
Peterborough,http://opendatacommunities.org/id/unitary-authority/peterborough,Peterborough City Council,Children's & Education Services - Children's Social Care,Children Looked After,Supplies and Services,03/12/2014 00:00,698312,940.84,REVENUE,Redacted Personal Data,FINANCIAL ASSISTANCE
Peterborough,http://opendatacommunities.org/id/unitary-authority/peterborough,Peterborough City Council,Support Services,Support Services,Supplies and Services,03/12/2014 00:00,698314,1488,REVENUE,Mr James Goudie,LEGAL COSTS
Peterborough,http://opendatacommunities.org/id/unitary-authority/peterborough,Peterborough City Council,Children's & Education Services - Education,Secondary,Employees,03/12/2014 00:00,698345,1995,REVENUE,Families First Ltd,EDUCATION SUPPORT STAFF
Peterborough,http://opendatacommunities.org/id/unitary-authority/peterborough,Peterborough City Council,Children's & Education Services - Children's Social Care,Children Looked After,Supplies and Services - Transfer Payments,03/12/2014 00:00,698357,726.18,REVENUE,Redacted Personal Data,BOARDING - OUT ALLWNCES
Peterborough,http://opendatacommunities.org/id/unitary-authority/peterborough,Peterborough City Council,Children's & Education Services - Children's Social Care,Children Looked After,Supplies and Services - Transfer Payments,03/12/2014 00:00,698358,726.18,REVENUE,Redacted Personal Data,BOARDING - OUT ALLWNCES
Peterborough,http://opendatacommunities.org/id/unitary-authority/peterborough,Peterborough City Council,Children's & Education Services - Children's Social Care,Children Looked After,Supplies and Services - Transfer Payments,03/12/2014 00:00,698359,597.03,REVENUE,Redacted Personal Data,BOARDING - OUT ALLWNCES
Peterborough,http://opendatacommunities.org/id/unitary-authority/peterborough,Peterborough City Council,Children's & Education Services - Children's Social Care,Children Looked After,Supplies and Services - Transfer Payments,03/12/2014 00:00,698360,726.18,REVENUE,Redacted Personal Data,BOARDING - OUT ALLWNCES
Peterborough,http://opendatacommunities.org/id/unitary-authority/peterborough,Peterborough City Council,Children's & Education Services - Children's Social Care,Other Children's & Families Services,Supplies and Services - Transfer Payments,03/12/2014 00:00,698376,600,REVENUE,Redacted Personal Data,BOARDING - OUT ALLWNCES
Peterborough,http://opendatacommunities.org/id/unitary-authority/peterborough,Peterborough City Council,Children's & Education Services - Children's Social Care,Other Children's & Families Services,Supplies and Services - Transfer Payments,03/12/2014 00:00,698377,613.6,REVENUE,Redacted Personal Data,BOARDING - OUT ALLWNCES
Peterborough,http://opendatacommunities.org/id/unitary-authority/peterborough,Peterborough City Council,Children's & Education Services - Children's Social Care,Children Looked After,Supplies and Services - Transfer Payments,03/12/2014 00:00,698437,771.89,REVENUE,Redacted Personal Data,BOARDING - OUT ALLWNCES
Peterborough,http://opendatacommunities.org/id/unitary-authority/peterborough,Peterborough City Council,Children's & Education Services - Children's Social Care,Children Looked After,Supplies and Services - Transfer Payments,03/12/2014 00:00,698438,771.89,REVENUE,Redacted Personal Data,BOARDING - OUT ALLWNCES
Peterborough,http://opendatacommunities.org/id/unitary-authority/peterborough,Peterborough City Council,Children's & Education Services - Children's Social Care,Children Looked After,Supplies and Services - Transfer Payments,03/12/2014 00:00,698439,680.05,REVENUE,Redacted Personal Data,BOARDING - OUT ALLWNCES
Peterborough,http://opendatacommunities.org/id/unitary-authority/peterborough,Peterborough City Council,Children's & Education Services - Children's Social Care,Children Looked After,Supplies and Services - Transfer Payments,03/12/2014 00:00,698440,771.89,REVENUE,Redacted Personal Data,BOARDING - OUT ALLWNCES
Peterborough,http://opendatacommunities.org/id/unitary-authority/peterborough,Peterborough City Council,Children's & Education Services - Children's Social Care,Children Looked After,Supplies and Services - Transfer Payments,03/12/2014 00:00,698441,855.54,REVENUE,Redacted Personal Data,BOARDING - OUT ALLWNCES
Peterborough,http://opendatacommunities.org/id/unitary-authority/peterborough,Peterborough City Council,Children's & Education Services - Children's Social Care,Children Looked After,Supplies and Services - Transfer Payments,03/12/2014 00:00,698442,771.89,REVENUE,Redacted Personal Data,BOARDING - OUT ALLWNCES
Peterborough,http://opendatacommunities.org/id/unitary-authority/peterborough,Peterborough City Council,Children's & Education Services - Children's Social Care,Children Looked After,Supplies and Services - Transfer Payments,03/12/2014 00:00,698443,771.89,REVENUE,Redacted Personal Data,BOARDING - OUT ALLWNCES
Peterborough,http://opendatacommunities.org/id/unitary-authority/peterborough,Peterborough City Council,Children's & Education Services - Children's Social Care,Children Looked After,Supplies and Services - Transfer Payments,03/12/2014 00:00,698444,855.54,REVENUE,Redacted Personal Data,BOARDING - OUT ALLWNCES
Peterborough,http://opendatacommunities.org/id/unitary-authority/peterborough,Peterborough City Council,Children's & Education Services - Children's Social Care,Children Looked After,Supplies and Services - Transfer Payments,03/12/2014 00:00,698445,771.89,REVENUE,Redacted Personal Data,BOARDING - OUT ALLWNCES
Peterborough,http://opendatacommunities.org/id/unitary-authority/peterborough,Peterborough City Council,Children's & Education Services - Children's Social Care,Children Looked After,Supplies and Services - Transfer Payments,03/12/2014 00:00,698446,771.89,REVENUE,Redacted Personal Data,BOARDING - OUT ALLWNCES
Peterborough,http://opendatacommunities.org/id/unitary-authority/peterborough,Peterborough City Council,Children's & Education Services - Children's Social Care,Children Looked After,Supplies and Services - Transfer Payments,03/12/2014 00:00,698448,678.3,REVENUE,Redacted Personal Data,BOARDING - OUT ALLWNCES
Peterborough,http://opendatacommunities.org/id/unitary-authority/peterborough,Peterborough City Council,Children's & Education Services - Children's Social Care,Children Looked After,Supplies and Services - Transfer Payments,03/12/2014 00:00,698449,838.18,REVENUE,Redacted Personal Data,BOARDING - OUT ALLWNCES
Peterborough,http://opendatacommunities.org/id/unitary-authority/peterborough,Peterborough City Council,Children's & Education Services - Children's Social Care,Children Looked After,Supplies and Services - Transfer Payments,03/12/2014 00:00,698450,771.89,REVENUE,Redacted Personal Data,BOARDING - OUT ALLWNCES
Peterborough,http://opendatacommunities.org/id/unitary-authority/peterborough,Peterborough City Council,Children's & Education Services - Children's Social Care,Children Looked After,Supplies and Services - Transfer Payments,03/12/2014 00:00,698451,771.89,REVENUE,Redacted Personal Data,BOARDING - OUT ALLWNCES
Peterborough,http://opendatacommunities.org/id/unitary-authority/peterborough,Peterborough City Council,Children's & Education Services - Children's Social Care,Children Looked After,Supplies and Services - Transfer Payments,03/12/2014 00:00,698452,771.89,REVENUE,Redacted Personal Data,BOARDING - OUT ALLWNCES
Peterborough,http://opendatacommunities.org/id/unitary-authority/peterborough,Peterborough City Council,Children's & Education Services - Children's Social Care,Children Looked After,Supplies and Services - Transfer Payments,03/12/2014 00:00,698453,771.89,REVENUE,Redacted Personal Data,BOARDING - OUT ALLWNCES
Peterborough,http://opendatacommunities.org/id/unitary-authority/peterborough,Peterborough City Council,Children's & Education Services - Children's Social Care,Children Looked After,Supplies and Services - Transfer Payments,03/12/2014 00:00,698454,771.89,REVENUE,Redacted Personal Data,BOARDING - OUT ALLWNCES
Peterborough,http://opendatacommunities.org/id/unitary-authority/peterborough,Peterborough City Council,Children's & Education Services - Children's Social Care,Children Looked After,Supplies and Services - Transfer Payments,03/12/2014 00:00,698455,678.3,REVENUE,Redacted Personal Data,BOARDING - OUT ALLWNCES
Peterborough,http://opendatacommunities.org/id/unitary-authority/peterborough,Peterborough City Council,Children's & Education Services - Children's Social Care,Children Looked After,Supplies and Services - Transfer Payments,03/12/2014 00:00,698456,885.08,REVENUE,Redacted Personal Data,BOARDING - OUT ALLWNCES
Peterborough,http://opendatacommunities.org/id/unitary-authority/peterborough,Peterborough City Council,Children's & Education Services - Children's Social Care,Children Looked After,Supplies and Services - Transfer Payments,03/12/2014 00:00,698457,678.3,REVENUE,Redacted Personal Data,BOARDING - OUT ALLWNCES
Peterborough,http://opendatacommunities.org/id/unitary-authority/peterborough,Peterborough City Council,Children's & Education Services - Children's Social Care,Children Looked After,Supplies and Services - Transfer Payments,03/12/2014 00:00,698458,680.05,REVENUE,Redacted Personal Data,BOARDING - OUT ALLWNCES
Peterborough,http://opendatacommunities.org/id/unitary-authority/peterborough,Peterborough City Council,Children's & Education Services - Children's Social Care,Children Looked After,Supplies and Services - Transfer Payments,03/12/2014 00:00,698459,771.89,REVENUE,Redacted Personal Data,BOARDING - OUT ALLWNCES
Peterborough,http://opendatacommunities.org/id/unitary-authority/peterborough,Peterborough City Council,Children's & Education Services - Children's Social Care,Children Looked After,Supplies and Services - Transfer Payments,03/12/2014 00:00,698462,678.3,REVENUE,Redacted Personal Data,BOARDING - OUT ALLWNCES
Peterborough,http://opendatacommunities.org/id/unitary-authority/peterborough,Peterborough City Council,Children's & Education Services - Children's Social Care,Children Looked After,Supplies and Services - Transfer Payments,03/12/2014 00:00,698463,771.89,REVENUE,Redacted Personal Data,BOARDING - OUT ALLWNCES
Peterborough,http://opendatacommunities.org/id/unitary-authority/peterborough,Peterborough City Council,Children's & Education Services - Children's Social Care,Children Looked After,Supplies and Services - Transfer Payments,03/12/2014 00:00,698464,771.89,REVENUE,Redacted Personal Data,BOARDING - OUT ALLWNCES
Peterborough,http://opendatacommunities.org/id/unitary-authority/peterborough,Peterborough City Council,Children's & Education Services - Children's Social Care,Children Looked After,Supplies and Services - Transfer Payments,03/12/2014 00:00,698471,885.08,REVENUE,Redacted Personal Data,BOARDING - OUT ALLWNCES
Peterborough,http://opendatacommunities.org/id/unitary-authority/peterborough,Peterborough City Council,Children's & Education Services - Children's Social Care,Children Looked After,Supplies and Services - Transfer Payments,03/12/2014 00:00,698472,617.19,REVENUE,Redacted Personal Data,BOARDING - OUT ALLWNCES
Peterborough,http://opendatacommunities.org/id/unitary-authority/peterborough,Peterborough City Council,Children's & Education Services - Children's Social Care,Children Looked After,Supplies and Services - Transfer Payments,03/12/2014 00:00,698473,617.19,REVENUE,Redacted Personal Data,BOARDING - OUT ALLWNCES
Peterborough,http://opendatacommunities.org/id/unitary-authority/peterborough,Peterborough City Council,Children's & Education Services - Children's Social Care,Children Looked After,Supplies and Services - Transfer Payments,03/12/2014 00:00,698480,855.54,REVENUE,Redacted Personal Data,BOARDING - OUT ALLWNCES
Peterborough,http://opendatacommunities.org/id/unitary-authority/peterborough,Peterborough City Council,Children's & Education Services - Children's Social Care,Children Looked After,Supplies and Services - Transfer Payments,03/12/2014 00:00,698485,678.3,REVENUE,Redacted Personal Data,BOARDING - OUT ALLWNCES
Peterborough,http://opendatacommunities.org/id/unitary-authority/peterborough,Peterborough City Council,Children's & Education Services - Children's Social Care,Children Looked After,Supplies and Services - Transfer Payments,03/12/2014 00:00,698488,771.89,REVENUE,Redacted Personal Data,BOARDING - OUT ALLWNCES
Peterborough,http://opendatacommunities.org/id/unitary-authority/peterborough,Peterborough City Council,Children's & Education Services - Children's Social Care,Children Looked After,Supplies and Services - Transfer Payments,03/12/2014 00:00,698491,597.03,REVENUE,Redacted Personal Data,BOARDING - OUT ALLWNCES
Peterborough,http://opendatacommunities.org/id/unitary-authority/peterborough,Peterborough City Council,Children's & Education Services - Children's Social Care,Children Looked After,Supplies and Services - Transfer Payments,03/12/2014 00:00,698494,855.54,REVENUE,Redacted Personal Data,BOARDING - OUT ALLWNCES
Peterborough,http://opendatacommunities.org/id/unitary-authority/peterborough,Peterborough City Council,Children's & Education Services - Children's Social Care,Children Looked After,Supplies and Services - Transfer Payments,03/12/2014 00:00,698500,771.89,REVENUE,Redacted Personal Data,BOARDING - OUT ALLWNCES
Peterborough,http://opendatacommunities.org/id/unitary-authority/peterborough,Peterborough City Council,Children's & Education Services - Children's Social Care,Children Looked After,Supplies and Services - Transfer Payments,03/12/2014 00:00,698502,678.3,REVENUE,Redacted Personal Data,BOARDING - OUT ALLWNCES
Peterborough,http://opendatacommunities.org/id/unitary-authority/peterborough,Peterborough City Council,Children's & Education Services - Children's Social Care,Children Looked After,Supplies and Services - Transfer Payments,03/12/2014 00:00,698507,678.3,REVENUE,Redacted Personal Data,BOARDING - OUT ALLWNCES
Peterborough,http://opendatacommunities.org/id/unitary-authority/peterborough,Peterborough City Council,Children's & Education Services - Children's Social Care,Children Looked After,Supplies and Services - Transfer Payments,03/12/2014 00:00,698508,678.3,REVENUE,Redacted Personal Data,BOARDING - OUT ALLWNCES
Peterborough,http://opendatacommunities.org/id/unitary-authority/peterborough,Peterborough City Council,Children's & Education Services - Children's Social Care,Children Looked After,Supplies and Services - Transfer Payments,03/12/2014 00:00,698514,771.89,REVENUE,Redacted Personal Data,BOARDING - OUT ALLWNCES
Peterborough,http://opendatacommunities.org/id/unitary-authority/peterborough,Peterborough City Council,Children's & Education Services - Children's Social Care,Children Looked After,Supplies and Services - Transfer Payments,03/12/2014 00:00,698516,771.89,REVENUE,Redacted Personal Data,BOARDING - OUT ALLWNCES
Peterborough,http://opendatacommunities.org/id/unitary-authority/peterborough,Peterborough City Council,Children's & Education Services - Children's Social Care,Children Looked After,Supplies and Services - Transfer Payments,03/12/2014 00:00,698519,586.32,REVENUE,Redacted Personal Data,BOARDING - OUT ALLWNCES
Peterborough,http://opendatacommunities.org/id/unitary-authority/peterborough,Peterborough City Council,Children's & Education Services - Children's Social Care,Children Looked After,Supplies and Services - Transfer Payments,03/12/2014 00:00,698520,771.89,REVENUE,Redacted Personal Data,BOARDING - OUT ALLWNCES
Peterborough,http://opendatacommunities.org/id/unitary-authority/peterborough,Peterborough City Council,Children's & Education Services - Children's Social Care,Children Looked After,Supplies and Services - Transfer Payments,03/12/2014 00:00,698521,1044.96,REVENUE,Redacted Personal Data,BOARDING - OUT ALLWNCES
Peterborough,http://opendatacommunities.org/id/unitary-authority/peterborough,Peterborough City Council,Children's & Education Services - Children's Social Care,Children Looked After,Supplies and Services - Transfer Payments,03/12/2014 00:00,698522,1084.09,REVENUE,Redacted Personal Data,BOARDING - OUT ALLWNCES
Peterborough,http://opendatacommunities.org/id/unitary-authority/peterborough,Peterborough City Council,Children's & Education Services - Children's Social Care,Children Looked After,Supplies and Services - Transfer Payments,03/12/2014 00:00,698523,597.03,REVENUE,Redacted Personal Data,BOARDING - OUT ALLWNCES
Peterborough,http://opendatacommunities.org/id/unitary-authority/peterborough,Peterborough City Council,Children's & Education Services - Children's Social Care,Children Looked After,Supplies and Services - Transfer Payments,03/12/2014 00:00,698528,855.54,REVENUE,Redacted Personal Data,BOARDING - OUT ALLWNCES
Peterborough,http://opendatacommunities.org/id/unitary-authority/peterborough,Peterborough City Council,Children's & Education Services - Children's Social Care,Children Looked After,Supplies and Services - Transfer Payments,03/12/2014 00:00,698532,771.89,REVENUE,Redacted Personal Data,BOARDING - OUT ALLWNCES
Peterborough,http://opendatacommunities.org/id/unitary-authority/peterborough,Peterborough City Council,Children's & Education Services - Children's Social Care,Children Looked After,Supplies and Services - Transfer Payments,03/12/2014 00:00,698537,771.89,REVENUE,Redacted Personal Data,BOARDING - OUT ALLWNCES
Peterborough,http://opendatacommunities.org/id/unitary-authority/peterborough,Peterborough City Council,Children's & Education Services - Children's Social Care,Children Looked After,Supplies and Services - Transfer Payments,03/12/2014 00:00,698539,597.03,REVENUE,Redacted Personal Data,BOARDING - OUT ALLWNCES
Peterborough,http://opendatacommunities.org/id/unitary-authority/peterborough,Peterborough City Council,Children's & Education Services - Children's Social Care,Children Looked After,Supplies and Services - Transfer Payments,03/12/2014 00:00,698541,597.03,REVENUE,Redacted Personal Data,BOARDING - OUT ALLWNCES
Peterborough,http://opendatacommunities.org/id/unitary-authority/peterborough,Peterborough City Council,Children's & Education Services - Children's Social Care,Children Looked After,Supplies and Services - Transfer Payments,03/12/2014 00:00,698543,1165.78,REVENUE,Redacted Personal Data,BOARDING - OUT ALLWNCES
Peterborough,http://opendatacommunities.org/id/unitary-authority/peterborough,Peterborough City Council,Children's & Education Services - Children's Social Care,Children Looked After,Supplies and Services - Transfer Payments,03/12/2014 00:00,698544,771.89,REVENUE,Redacted Personal Data,BOARDING - OUT ALLWNCES
Peterborough,http://opendatacommunities.org/id/unitary-authority/peterborough,Peterborough City Council,Children's & Education Services - Children's Social Care,Children Looked After,Supplies and Services - Transfer Payments,03/12/2014 00:00,698548,586.32,REVENUE,Redacted Personal Data,BOARDING - OUT ALLWNCES
Peterborough,http://opendatacommunities.org/id/unitary-authority/peterborough,Peterborough City Council,Children's & Education Services - Children's Social Care,Children Looked After,Supplies and Services - Transfer Payments,03/12/2014 00:00,698549,586.32,REVENUE,Redacted Personal Data,BOARDING - OUT ALLWNCES
Peterborough,http://opendatacommunities.org/id/unitary-authority/peterborough,Peterborough City Council,Children's & Education Services - Children's Social Care,Children Looked After,Supplies and Services - Transfer Payments,03/12/2014 00:00,698550,680.05,REVENUE,Redacted Personal Data,BOARDING - OUT ALLWNCES
Peterborough,http://opendatacommunities.org/id/unitary-authority/peterborough,Peterborough City Council,Children's & Education Services - Children's Social Care,Children Looked After,Supplies and Services - Transfer Payments,03/12/2014 00:00,698555,855.54,REVENUE,Redacted Personal Data,BOARDING - OUT ALLWNCES
Peterborough,http://opendatacommunities.org/id/unitary-authority/peterborough,Peterborough City Council,Children's & Education Services - Children's Social Care,Children Looked After,Supplies and Services - Transfer Payments,03/12/2014 00:00,698558,726.18,REVENUE,Redacted Personal Data,BOARDING - OUT ALLWNCES
Peterborough,http://opendatacommunities.org/id/unitary-authority/peterborough,Peterborough City Council,Children's & Education Services - Children's Social Care,Children's Services - Commissioning and Social Work,Supplies and Services,03/12/2014 00:00,698560,1452.58,REVENUE,Redacted Personal Data,FINANCIAL ASSISTANCE
Peterborough,http://opendatacommunities.org/id/unitary-authority/peterborough,Peterborough City Council,Children's & Education Services - Children's Social Care,Children Looked After,Supplies and Services - Transfer Payments,03/12/2014 00:00,698562,617.19,REVENUE,Redacted Personal Data,BOARDING - OUT ALLWNCES
Peterborough,http://opendatacommunities.org/id/unitary-authority/peterborough,Peterborough City Council,Children's & Education Services - Children's Social Care,Children Looked After,Supplies and Services - Transfer Payments,03/12/2014 00:00,698563,855.54,REVENUE,Redacted Personal Data,BOARDING - OUT ALLWNCES
Peterborough,http://opendatacommunities.org/id/unitary-authority/peterborough,Peterborough City Council,Children's & Education Services - Children's Social Care,Children Looked After,Supplies and Services - Transfer Payments,03/12/2014 00:00,698564,771.89,REVENUE,Redacted Personal Data,BOARDING - OUT ALLWNCES
Peterborough,http://opendatacommunities.org/id/unitary-authority/peterborough,Peterborough City Council,Children's & Education Services - Children's Social Care,Children Looked After,Supplies and Services - Transfer Payments,03/12/2014 00:00,698570,1025.43,REVENUE,Redacted Personal Data,BOARDING - OUT ALLWNCES
Peterborough,http://opendatacommunities.org/id/unitary-authority/peterborough,Peterborough City Council,Children's & Education Services - Children's Social Care,Children Looked After,Supplies and Services - Transfer Payments,03/12/2014 00:00,698574,617.19,REVENUE,Redacted Personal Data,BOARDING - OUT ALLWNCES
Peterborough,http://opendatacommunities.org/id/unitary-authority/peterborough,Peterborough City Council,Children's & Education Services - Children's Social Care,Children Looked After,Supplies and Services - Transfer Payments,03/12/2014 00:00,698576,855.54,REVENUE,Redacted Personal Data,BOARDING - OUT ALLWNCES
Peterborough,http://opendatacommunities.org/id/unitary-authority/peterborough,Peterborough City Council,Children's & Education Services - Children's Social Care,Children Looked After,Supplies and Services - Transfer Payments,03/12/2014 00:00,698577,561.4,REVENUE,Redacted Personal Data,BOARDING - OUT ALLWNCES
Peterborough,http://opendatacommunities.org/id/unitary-authority/peterborough,Peterborough City Council,Children's & Education Services - Children's Social Care,Children Looked After,Supplies and Services - Transfer Payments,03/12/2014 00:00,698584,771.89,REVENUE,Redacted Personal Data,BOARDING - OUT ALLWNCES
Peterborough,http://opendatacommunities.org/id/unitary-authority/peterborough,Peterborough City Council,Children's & Education Services - Children's Social Care,Children Looked After,Supplies and Services - Transfer Payments,03/12/2014 00:00,698585,678.3,REVENUE,Redacted Personal Data,BOARDING - OUT ALLWNCES
Peterborough,http://opendatacommunities.org/id/unitary-authority/peterborough,Peterborough City Council,Children's & Education Services - Children's Social Care,Children Looked After,Supplies and Services - Transfer Payments,03/12/2014 00:00,698586,678.3,REVENUE,Redacted Personal Data,BOARDING - OUT ALLWNCES
Peterborough,http://opendatacommunities.org/id/unitary-authority/peterborough,Peterborough City Council,Children's & Education Services - Children's Social Care,Other Children's & Families Services,Supplies and Services - Transfer Payments,03/12/2014 00:00,698588,682.06,REVENUE,Redacted Personal Data,BOARDING - OUT ALLWNCES
Peterborough,http://opendatacommunities.org/id/unitary-authority/peterborough,Peterborough City Council,Children's & Education Services - Children's Social Care,Children Looked After,Supplies and Services - Transfer Payments,03/12/2014 00:00,698589,525.35,REVENUE,Redacted Personal Data,BOARDING - OUT ALLWNCES
Peterborough,http://opendatacommunities.org/id/unitary-authority/peterborough,Peterborough City Council,Children's & Education Services - Children's Social Care,Children Looked After,Supplies and Services - Transfer Payments,03/12/2014 00:00,698590,525.35,REVENUE,Redacted Personal Data,BOARDING - OUT ALLWNCES
Peterborough,http://opendatacommunities.org/id/unitary-authority/peterborough,Peterborough City Council,Children's & Education Services - Children's Social Care,Children Looked After,Supplies and Services - Transfer Payments,03/12/2014 00:00,698591,525.35,REVENUE,Redacted Personal Data,BOARDING - OUT ALLWNCES
Peterborough,http://opendatacommunities.org/id/unitary-authority/peterborough,Peterborough City Council,Children's & Education Services - Children's Social Care,Children's Services - Commissioning and Social Work,Supplies and Services,03/12/2014 00:00,698594,962.6,REVENUE,Redacted Personal Data,FINANCIAL ASSISTANCE
Peterborough,http://opendatacommunities.org/id/unitary-authority/peterborough,Peterborough City Council,Children's & Education Services - Children's Social Care,Children Looked After,Supplies and Services - Transfer Payments,03/12/2014 00:00,698599,617.19,REVENUE,Redacted Personal Data,BOARDING - OUT ALLWNCES
Peterborough,http://opendatacommunities.org/id/unitary-authority/peterborough,Peterborough City Council,Children's & Education Services - Children's Social Care,Children Looked After,Supplies and Services - Transfer Payments,03/12/2014 00:00,698602,855.54,REVENUE,Redacted Personal Data,BOARDING - OUT ALLWNCES
Peterborough,http://opendatacommunities.org/id/unitary-authority/peterborough,Peterborough City Council,Children's & Education Services - Children's Social Care,Children Looked After,Supplies and Services - Transfer Payments,03/12/2014 00:00,698605,855.54,REVENUE,Redacted Personal Data,BOARDING - OUT ALLWNCES
Peterborough,http://opendatacommunities.org/id/unitary-authority/peterborough,Peterborough City Council,Children's & Education Services - Children's Social Care,Other Children's & Families Services,Supplies and Services - Transfer Payments,03/12/2014 00:00,698606,646.15,REVENUE,Redacted Personal Data,BOARDING - OUT ALLWNCES
Peterborough,http://opendatacommunities.org/id/unitary-authority/peterborough,Peterborough City Council,Children's & Education Services - Children's Social Care,Other Children's & Families Services,Supplies and Services - Transfer Payments,03/12/2014 00:00,698607,646.15,REVENUE,Redacted Personal Data,BOARDING - OUT ALLWNCES
Peterborough,http://opendatacommunities.org/id/unitary-authority/peterborough,Peterborough City Council,Children's & Education Services - Children's Social Care,Children Looked After,Supplies and Services - Transfer Payments,03/12/2014 00:00,698608,771.89,REVENUE,Redacted Personal Data,BOARDING - OUT ALLWNCES
Peterborough,http://opendatacommunities.org/id/unitary-authority/peterborough,Peterborough City Council,Children's & Education Services - Children's Social Care,Children Looked After,Supplies and Services - Transfer Payments,03/12/2014 00:00,698610,813.47,REVENUE,Redacted Personal Data,BOARDING - OUT ALLWNCES
Peterborough,http://opendatacommunities.org/id/unitary-authority/peterborough,Peterborough City Council,Children's & Education Services - Children's Social Care,Children Looked After,Supplies and Services - Transfer Payments,03/12/2014 00:00,698623,1740.62,REVENUE,Redacted Personal Data,BOARDING - OUT ALLWNCES
Peterborough,http://opendatacommunities.org/id/unitary-authority/peterborough,Peterborough City Council,Children's & Education Services - Children's Social Care,Children Looked After,Supplies and Services - Transfer Payments,03/12/2014 00:00,698629,1024.03,REVENUE,Redacted Personal Data,BOARDING - OUT ALLWNCES
Peterborough,http://opendatacommunities.org/id/unitary-authority/peterborough,Peterborough City Council,Children's & Education Services - Children's Social Care,Children Looked After,Supplies and Services - Transfer Payments,03/12/2014 00:00,698630,798.35,REVENUE,Redacted Personal Data,BOARDING - OUT ALLWNCES
Peterborough,http://opendatacommunities.org/id/unitary-authority/peterborough,Peterborough City Council,Children's & Education Services - Children's Social Care,Children Looked After,Supplies and Services - Transfer Payments,03/12/2014 00:00,698631,817.88,REVENUE,Redacted Personal Data,BOARDING - OUT ALLWNCES
Peterborough,http://opendatacommunities.org/id/unitary-authority/peterborough,Peterborough City Council,Children's & Education Services - Children's Social Care,Children Looked After,Supplies and Services - Transfer Payments,03/12/2014 00:00,698633,680.05,REVENUE,Redacted Personal Data,BOARDING - OUT ALLWNCES
Peterborough,http://opendatacommunities.org/id/unitary-authority/peterborough,Peterborough City Council,Children's & Education Services - Children's Social Care,Other Children's & Families Services,Supplies and Services - Transfer Payments,03/12/2014 00:00,698634,632.38,REVENUE,Redacted Personal Data,BOARDING - OUT ALLWNCES
Peterborough,http://opendatacommunities.org/id/unitary-authority/peterborough,Peterborough City Council,Children's & Education Services - Children's Social Care,Other Children's & Families Services,Supplies and Services - Transfer Payments,03/12/2014 00:00,698635,632.38,REVENUE,Redacted Personal Data,BOARDING - OUT ALLWNCES
Peterborough,http://opendatacommunities.org/id/unitary-authority/peterborough,Peterborough City Council,Children's & Education Services - Children's Social Care,Children Looked After,Supplies and Services - Transfer Payments,03/12/2014 00:00,698639,678.3,REVENUE,Redacted Personal Data,BOARDING - OUT ALLWNCES
Peterborough,http://opendatacommunities.org/id/unitary-authority/peterborough,Peterborough City Council,Children's & Education Services - Children's Social Care,Children Looked After,Supplies and Services - Transfer Payments,03/12/2014 00:00,698642,617.19,REVENUE,Redacted Personal Data,BOARDING - OUT ALLWNCES
Peterborough,http://opendatacommunities.org/id/unitary-authority/peterborough,Peterborough City Council,Children's & Education Services - Children's Social Care,Children Looked After,Supplies and Services - Transfer Payments,03/12/2014 00:00,698650,678.3,REVENUE,Redacted Personal Data,BOARDING - OUT ALLWNCES
Peterborough,http://opendatacommunities.org/id/unitary-authority/peterborough,Peterborough City Council,Children's & Education Services - Children's Social Care,Children Looked After,Supplies and Services - Transfer Payments,03/12/2014 00:00,698653,771.89,REVENUE,Redacted Personal Data,BOARDING - OUT ALLWNCES
Peterborough,http://opendatacommunities.org/id/unitary-authority/peterborough,Peterborough City Council,Children's & Education Services - Children's Social Care,Children Looked After,Supplies and Services - Transfer Payments,03/12/2014 00:00,698655,678.3,REVENUE,Redacted Personal Data,BOARDING - OUT ALLWNCES
Peterborough,http://opendatacommunities.org/id/unitary-authority/peterborough,Peterborough City Council,Children's & Education Services - Children's Social Care,Children Looked After,Supplies and Services - Transfer Payments,03/12/2014 00:00,698657,1740.62,REVENUE,Redacted Personal Data,BOARDING - OUT ALLWNCES
Peterborough,http://opendatacommunities.org/id/unitary-authority/peterborough,Peterborough City Council,Children's & Education Services - Children's Social Care,Children Looked After,Supplies and Services - Transfer Payments,03/12/2014 00:00,698658,872.13,REVENUE,Redacted Personal Data,BOARDING - OUT ALLWNCES
Peterborough,http://opendatacommunities.org/id/unitary-authority/peterborough,Peterborough City Council,Children's & Education Services - Children's Social Care,Children Looked After,Supplies and Services - Transfer Payments,03/12/2014 00:00,698659,792.26,REVENUE,Redacted Personal Data,BOARDING - OUT ALLWNCES
Peterborough,http://opendatacommunities.org/id/unitary-authority/peterborough,Peterborough City Council,Children's & Education Services - Children's Social Care,Children Looked After,Supplies and Services - Transfer Payments,03/12/2014 00:00,698660,913.08,REVENUE,Redacted Personal Data,BOARDING - OUT ALLWNCES
Peterborough,http://opendatacommunities.org/id/unitary-authority/peterborough,Peterborough City Council,Children's & Education Services - Children's Social Care,Children Looked After,Supplies and Services - Transfer Payments,03/12/2014 00:00,698661,771.89,REVENUE,Redacted Personal Data,BOARDING - OUT ALLWNCES
Peterborough,http://opendatacommunities.org/id/unitary-authority/peterborough,Peterborough City Council,Children's & Education Services - Children's Social Care,Children Looked After,Supplies and Services - Transfer Payments,03/12/2014 00:00,698664,1620.87,REVENUE,Redacted Personal Data,BOARDING - OUT ALLWNCES
Peterborough,http://opendatacommunities.org/id/unitary-authority/peterborough,Peterborough City Council,Children's & Education Services - Children's Social Care,Children Looked After,Supplies and Services - Transfer Payments,03/12/2014 00:00,698668,855.54,REVENUE,Redacted Personal Data,BOARDING - OUT ALLWNCES
Peterborough,http://opendatacommunities.org/id/unitary-authority/peterborough,Peterborough City Council,Children's & Education Services - Children's Social Care,Other Children's & Families Services,Supplies and Services - Transfer Payments,03/12/2014 00:00,698669,792,REVENUE,Redacted Personal Data,BOARDING - OUT ALLWNCES
Peterborough,http://opendatacommunities.org/id/unitary-authority/peterborough,Peterborough City Council,Children's & Education Services - Children's Social Care,Other Children's & Families Services,Supplies and Services - Transfer Payments,03/12/2014 00:00,698670,792,REVENUE,Redacted Personal Data,BOARDING - OUT ALLWNCES
Peterborough,http://opendatacommunities.org/id/unitary-authority/peterborough,Peterborough City Council,Children's & Education Services - Children's Social Care,Children Looked After,Supplies and Services - Transfer Payments,03/12/2014 00:00,698674,525.35,REVENUE,Redacted Personal Data,BOARDING - OUT ALLWNCES
Peterborough,http://opendatacommunities.org/id/unitary-authority/peterborough,Peterborough City Council,Children's & Education Services - Children's Social Care,Children Looked After,Supplies and Services - Transfer Payments,03/12/2014 00:00,698675,617.19,REVENUE,Redacted Personal Data,BOARDING - OUT ALLWNCES
Peterborough,http://opendatacommunities.org/id/unitary-authority/peterborough,Peterborough City Council,Children's & Education Services - Children's Social Care,Children Looked After,Supplies and Services - Transfer Payments,03/12/2014 00:00,698676,617.19,REVENUE,Redacted Personal Data,BOARDING - OUT ALLWNCES
Peterborough,http://opendatacommunities.org/id/unitary-authority/peterborough,Peterborough City Council,Children's & Education Services - Children's Social Care,Children Looked After,Supplies and Services - Transfer Payments,03/12/2014 00:00,698677,617.19,REVENUE,Redacted Personal Data,BOARDING - OUT ALLWNCES
Peterborough,http://opendatacommunities.org/id/unitary-authority/peterborough,Peterborough City Council,Children's & Education Services - Children's Social Care,Other Children's & Families Services,Supplies and Services - Transfer Payments,03/12/2014 00:00,698678,844.48,REVENUE,Redacted Personal Data,BOARDING - OUT ALLWNCES
Peterborough,http://opendatacommunities.org/id/unitary-authority/peterborough,Peterborough City Council,Children's & Education Services - Children's Social Care,Children Looked After,Supplies and Services - Transfer Payments,03/12/2014 00:00,698680,787.74,REVENUE,Redacted Personal Data,BOARDING - OUT ALLWNCES
Peterborough,http://opendatacommunities.org/id/unitary-authority/peterborough,Peterborough City Council,Children's & Education Services - Children's Social Care,Children Looked After,Supplies and Services - Transfer Payments,03/12/2014 00:00,698681,787.74,REVENUE,Redacted Personal Data,BOARDING - OUT ALLWNCES
Peterborough,http://opendatacommunities.org/id/unitary-authority/peterborough,Peterborough City Council,Children's & Education Services - Children's Social Care,Children Looked After,Supplies and Services - Transfer Payments,03/12/2014 00:00,698683,771.89,REVENUE,Redacted Personal Data,BOARDING - OUT ALLWNCES
Peterborough,http://opendatacommunities.org/id/unitary-authority/peterborough,Peterborough City Council,Children's & Education Services - Children's Social Care,Children Looked After,Supplies and Services - Transfer Payments,03/12/2014 00:00,698684,771.89,REVENUE,Redacted Personal Data,BOARDING - OUT ALLWNCES
Peterborough,http://opendatacommunities.org/id/unitary-authority/peterborough,Peterborough City Council,Children's & Education Services - Children's Social Care,Children Looked After,Supplies and Services - Transfer Payments,03/12/2014 00:00,698690,568.6,REVENUE,Redacted Personal Data,BOARDING - OUT ALLWNCES
Peterborough,http://opendatacommunities.org/id/unitary-authority/peterborough,Peterborough City Council,Children's & Education Services - Children's Social Care,Children Looked After,Supplies and Services - Transfer Payments,03/12/2014 00:00,698692,1002.96,REVENUE,Redacted Personal Data,BOARDING - OUT ALLWNCES
Peterborough,http://opendatacommunities.org/id/unitary-authority/peterborough,Peterborough City Council,Children's & Education Services - Children's Social Care,Children Looked After,Supplies and Services - Transfer Payments,03/12/2014 00:00,698694,798.35,REVENUE,Redacted Personal Data,BOARDING - OUT ALLWNCES
Peterborough,http://opendatacommunities.org/id/unitary-authority/peterborough,Peterborough City Council,Children's & Education Services - Children's Social Care,Children Looked After,Supplies and Services - Transfer Payments,03/12/2014 00:00,698697,674,REVENUE,Redacted Personal Data,BOARDING - OUT ALLWNCES
Peterborough,http://opendatacommunities.org/id/unitary-authority/peterborough,Peterborough City Council,Children's & Education Services - Children's Social Care,Children Looked After,Supplies and Services - Transfer Payments,03/12/2014 00:00,698698,833.88,REVENUE,Redacted Personal Data,BOARDING - OUT ALLWNCES
Peterborough,http://opendatacommunities.org/id/unitary-authority/peterborough,Peterborough City Council,Children's & Education Services - Children's Social Care,Children Looked After,Supplies and Services - Transfer Payments,03/12/2014 00:00,698703,678.3,REVENUE,Redacted Personal Data,BOARDING - OUT ALLWNCES
Peterborough,http://opendatacommunities.org/id/unitary-authority/peterborough,Peterborough City Council,Children's & Education Services - Children's Social Care,Children Looked After,Supplies and Services - Transfer Payments,03/12/2014 00:00,698711,586.32,REVENUE,Redacted Personal Data,BOARDING - OUT ALLWNCES
Peterborough,http://opendatacommunities.org/id/unitary-authority/peterborough,Peterborough City Council,Children's & Education Services - Children's Social Care,Children Looked After,Supplies and Services - Transfer Payments,03/12/2014 00:00,698719,855.54,REVENUE,Redacted Personal Data,BOARDING - OUT ALLWNCES
Peterborough,http://opendatacommunities.org/id/unitary-authority/peterborough,Peterborough City Council,Children's & Education Services - Children's Social Care,Children Looked After,Supplies and Services - Transfer Payments,03/12/2014 00:00,698720,771.89,REVENUE,Redacted Personal Data,BOARDING - OUT ALLWNCES
Peterborough,http://opendatacommunities.org/id/unitary-authority/peterborough,Peterborough City Council,Children's & Education Services - Children's Social Care,Children Looked After,Supplies and Services - Transfer Payments,03/12/2014 00:00,698721,597.03,REVENUE,Redacted Personal Data,BOARDING - OUT ALLWNCES
Peterborough,http://opendatacommunities.org/id/unitary-authority/peterborough,Peterborough City Council,Children's & Education Services - Children's Social Care,Children Looked After,Supplies and Services - Transfer Payments,03/12/2014 00:00,698724,586.32,REVENUE,Redacted Personal Data,BOARDING - OUT ALLWNCES
Peterborough,http://opendatacommunities.org/id/unitary-authority/peterborough,Peterborough City Council,Children's & Education Services - Children's Social Care,Other Children's & Families Services,Supplies and Services - Transfer Payments,03/12/2014 00:00,698726,602.16,REVENUE,Redacted Personal Data,BOARDING - OUT ALLWNCES
Peterborough,http://opendatacommunities.org/id/unitary-authority/peterborough,Peterborough City Council,Children's & Education Services - Children's Social Care,Children Looked After,Supplies and Services - Transfer Payments,03/12/2014 00:00,698727,586.32,REVENUE,Redacted Personal Data,BOARDING - OUT ALLWNCES
Peterborough,http://opendatacommunities.org/id/unitary-authority/peterborough,Peterborough City Council,Children's & Education Services - Children's Social Care,Children Looked After,Supplies and Services - Transfer Payments,03/12/2014 00:00,698728,525.35,REVENUE,Redacted Personal Data,BOARDING - OUT ALLWNCES
Peterborough,http://opendatacommunities.org/id/unitary-authority/peterborough,Peterborough City Council,Children's & Education Services - Children's Social Care,Children Looked After,Supplies and Services - Transfer Payments,03/12/2014 00:00,698729,617.19,REVENUE,Redacted Personal Data,BOARDING - OUT ALLWNCES
Peterborough,http://opendatacommunities.org/id/unitary-authority/peterborough,Peterborough City Council,Children's & Education Services - Children's Social Care,Children Looked After,Supplies and Services - Transfer Payments,03/12/2014 00:00,698730,617.19,REVENUE,Redacted Personal Data,BOARDING - OUT ALLWNCES
Peterborough,http://opendatacommunities.org/id/unitary-authority/peterborough,Peterborough City Council,Children's & Education Services - Children's Social Care,Children Looked After,Supplies and Services - Transfer Payments,03/12/2014 00:00,698731,617.19,REVENUE,Redacted Personal Data,BOARDING - OUT ALLWNCES
Peterborough,http://opendatacommunities.org/id/unitary-authority/peterborough,Peterborough City Council,Children's & Education Services - Children's Social Care,Children Looked After,Supplies and Services - Transfer Payments,03/12/2014 00:00,698732,879.06,REVENUE,Redacted Personal Data,BOARDING - OUT ALLWNCES
Peterborough,http://opendatacommunities.org/id/unitary-authority/peterborough,Peterborough City Council,Children's & Education Services - Children's Social Care,Children Looked After,Supplies and Services - Transfer Payments,03/12/2014 00:00,698734,958.86,REVENUE,Redacted Personal Data,BOARDING - OUT ALLWNCES
Peterborough,http://opendatacommunities.org/id/unitary-authority/peterborough,Peterborough City Council,Children's & Education Services - Children's Social Care,Children Looked After,Supplies and Services - Transfer Payments,03/12/2014 00:00,698735,1017.03,REVENUE,Redacted Personal Data,BOARDING - OUT ALLWNCES
Peterborough,http://opendatacommunities.org/id/unitary-authority/peterborough,Peterborough City Council,Children's & Education Services - Children's Social Care,Children Looked After,Supplies and Services - Transfer Payments,03/12/2014 00:00,698737,1222.88,REVENUE,Redacted Personal Data,BOARDING - OUT ALLWNCES
Peterborough,http://opendatacommunities.org/id/unitary-authority/peterborough,Peterborough City Council,Children's & Education Services - Children's Social Care,Children Looked After,Supplies and Services - Transfer Payments,03/12/2014 00:00,698738,1178.01,REVENUE,Redacted Personal Data,BOARDING - OUT ALLWNCES
Peterborough,http://opendatacommunities.org/id/unitary-authority/peterborough,Peterborough City Council,Children's & Education Services - Children's Social Care,Children Looked After,Supplies and Services - Transfer Payments,03/12/2014 00:00,698739,617.19,REVENUE,Redacted Personal Data,BOARDING - OUT ALLWNCES
Peterborough,http://opendatacommunities.org/id/unitary-authority/peterborough,Peterborough City Council,Children's & Education Services - Children's Social Care,Children Looked After,Supplies and Services - Transfer Payments,03/12/2014 00:00,698742,634.4,REVENUE,Redacted Personal Data,BOARDING - OUT ALLWNCES
Peterborough,http://opendatacommunities.org/id/unitary-authority/peterborough,Peterborough City Council,Children's & Education Services - Children's Social Care,Children Looked After,Supplies and Services - Transfer Payments,03/12/2014 00:00,698743,882.21,REVENUE,Redacted Personal Data,BOARDING - OUT ALLWNCES
Peterborough,http://opendatacommunities.org/id/unitary-authority/peterborough,Peterborough City Council,Children's & Education Services - Children's Social Care,Children Looked After,Supplies and Services - Transfer Payments,03/12/2014 00:00,698756,538.68,REVENUE,Redacted Personal Data,BOARDING - OUT ALLWNCES
Peterborough,http://opendatacommunities.org/id/unitary-authority/peterborough,Peterborough City Council,Children's & Education Services - Children's Social Care,Children Looked After,Supplies and Services - Transfer Payments,03/12/2014 00:00,698767,812.81,REVENUE,Redacted Personal Data,BOARDING - OUT ALLWNCES
Peterborough,http://opendatacommunities.org/id/unitary-authority/peterborough,Peterborough City Council,Children's & Education Services - Children's Social Care,Children Looked After,Supplies and Services - Transfer Payments,03/12/2014 00:00,698768,561.4,REVENUE,Redacted Personal Data,BOARDING - OUT ALLWNCES
Peterborough,http://opendatacommunities.org/id/unitary-authority/peterborough,Peterborough City Council,Children's & Education Services - Children's Social Care,Children Looked After,Supplies and Services - Transfer Payments,03/12/2014 00:00,698770,597.03,REVENUE,Redacted Personal Data,BOARDING - OUT ALLWNCES
Peterborough,http://opendatacommunities.org/id/unitary-authority/peterborough,Peterborough City Council,Children's & Education Services - Children's Social Care,Children Looked After,Supplies and Services - Transfer Payments,03/12/2014 00:00,698775,597.49,REVENUE,Redacted Personal Data,BOARDING - OUT ALLWNCES
Peterborough,http://opendatacommunities.org/id/unitary-authority/peterborough,Peterborough City Council,Children's & Education Services - Children's Social Care,Children Looked After,Supplies and Services - Transfer Payments,03/12/2014 00:00,698776,597.49,REVENUE,Redacted Personal Data,BOARDING - OUT ALLWNCES
Peterborough,http://opendatacommunities.org/id/unitary-authority/peterborough,Peterborough City Council,Children's & Education Services - Children's Social Care,Children Looked After,Supplies and Services - Transfer Payments,03/12/2014 00:00,698777,617.02,REVENUE,Redacted Personal Data,BOARDING - OUT ALLWNCES
Peterborough,http://opendatacommunities.org/id/unitary-authority/peterborough,Peterborough City Council,Children's & Education Services - Children's Social Care,Other Children's & Families Services,Supplies and Services - Transfer Payments,03/12/2014 00:00,698778,1220.74,REVENUE,Redacted Personal Data,BOARDING - OUT ALLWNCES
Peterborough,http://opendatacommunities.org/id/unitary-authority/peterborough,Peterborough City Council,Children's & Education Services - Children's Social Care,Children Looked After,Supplies and Services - Transfer Payments,03/12/2014 00:00,698790,855.54,REVENUE,Redacted Personal Data,BOARDING - OUT ALLWNCES
Peterborough,http://opendatacommunities.org/id/unitary-authority/peterborough,Peterborough City Council,Children's & Education Services - Children's Social Care,Children Looked After,Supplies and Services - Transfer Payments,03/12/2014 00:00,698791,678.3,REVENUE,Redacted Personal Data,BOARDING - OUT ALLWNCES
Peterborough,http://opendatacommunities.org/id/unitary-authority/peterborough,Peterborough City Council,Children's & Education Services - Children's Social Care,Children Looked After,Supplies and Services - Transfer Payments,03/12/2014 00:00,698795,617.19,REVENUE,Redacted Personal Data,BOARDING - OUT ALLWNCES
Peterborough,http://opendatacommunities.org/id/unitary-authority/peterborough,Peterborough City Council,Children's & Education Services - Children's Social Care,Children Looked After,Supplies and Services - Transfer Payments,03/12/2014 00:00,698799,678.3,REVENUE,Redacted Personal Data,BOARDING - OUT ALLWNCES
Peterborough,http://opendatacommunities.org/id/unitary-authority/peterborough,Peterborough City Council,Children's & Education Services - Children's Social Care,Other Children's & Families Services,Supplies and Services - Transfer Payments,03/12/2014 00:00,698800,864.36,REVENUE,Redacted Personal Data,BOARDING - OUT ALLWNCES
Peterborough,http://opendatacommunities.org/id/unitary-authority/peterborough,Peterborough City Council,Children's & Education Services - Children's Social Care,Children Looked After,Supplies and Services - Transfer Payments,03/12/2014 00:00,698801,617.19,REVENUE,Redacted Personal Data,BOARDING - OUT ALLWNCES
Peterborough,http://opendatacommunities.org/id/unitary-authority/peterborough,Peterborough City Council,Children's & Education Services - Children's Social Care,Children Looked After,Supplies and Services - Transfer Payments,03/12/2014 00:00,698802,617.19,REVENUE,Redacted Personal Data,BOARDING - OUT ALLWNCES
Peterborough,http://opendatacommunities.org/id/unitary-authority/peterborough,Peterborough City Council,Children's & Education Services - Children's Social Care,Children Looked After,Supplies and Services - Transfer Payments,03/12/2014 00:00,698804,855.54,REVENUE,Redacted Personal Data,BOARDING - OUT ALLWNCES
Peterborough,http://opendatacommunities.org/id/unitary-authority/peterborough,Peterborough City Council,Children's & Education Services - Children's Social Care,Children Looked After,Supplies and Services - Transfer Payments,03/12/2014 00:00,698806,617.19,REVENUE,Redacted Personal Data,BOARDING - OUT ALLWNCES
Peterborough,http://opendatacommunities.org/id/unitary-authority/peterborough,Peterborough City Council,Children's & Education Services - Children's Social Care,Children Looked After,Transport,03/12/2014 00:00,698832,936,REVENUE,A2B Euro Cars,HIRED TRANSPORT
Peterborough,http://opendatacommunities.org/id/unitary-authority/peterborough,Peterborough City Council,Children's & Education Services - Education,Other School -related Education Functions,Transport,03/12/2014 00:00,698834,1507.2,REVENUE,A2B Euro Cars,HIRED TRANSPORT
Peterborough,http://opendatacommunities.org/id/unitary-authority/peterborough,Peterborough City Council,More than one Service Area Category,More than one Service Division,Transport,03/12/2014 00:00,698835,1162.08,REVENUE,A2B Euro Cars,HIRED TRANSPORT
Peterborough,http://opendatacommunities.org/id/unitary-authority/peterborough,Peterborough City Council,Children's & Education Services - Education,Other School -related Education Functions,Transport,03/12/2014 00:00,698836,1483.44,REVENUE,A2B Euro Cars,HIRED TRANSPORT
Peterborough,http://opendatacommunities.org/id/unitary-authority/peterborough,Peterborough City Council,Children's & Education Services - Education,Other School -related Education Functions,Transport,03/12/2014 00:00,698837,1281.6,REVENUE,A2B Euro Cars,HIRED TRANSPORT
Peterborough,http://opendatacommunities.org/id/unitary-authority/peterborough,Peterborough City Council,Children's & Education Services - Education,Other School -related Education Functions,Transport,03/12/2014 00:00,698838,901.2,REVENUE,A2B Euro Cars,HIRED TRANSPORT
Peterborough,http://opendatacommunities.org/id/unitary-authority/peterborough,Peterborough City Council,Children's & Education Services - Education,Other School -related Education Functions,Transport,03/12/2014 00:00,698839,811.2,REVENUE,A2B Euro Cars,HIRED TRANSPORT
Peterborough,http://opendatacommunities.org/id/unitary-authority/peterborough,Peterborough City Council,Children's & Education Services - Education,Other School -related Education Functions,Transport,03/12/2014 00:00,698840,1255,REVENUE,Peterborough Cars,HIRED TRANSPORT
Peterborough,http://opendatacommunities.org/id/unitary-authority/peterborough,Peterborough City Council,More than one Service Area Category,More than one Service Division,Transport,03/12/2014 00:00,698841,1078.8,REVENUE,Goldstar Cabs Ltd,HIRED TRANSPORT
Peterborough,http://opendatacommunities.org/id/unitary-authority/peterborough,Peterborough City Council,Children's & Education Services - Education,Other School -related Education Functions,Transport,03/12/2014 00:00,698842,1564.64,REVENUE,Goldstar Cabs Ltd,HIRED TRANSPORT
Peterborough,http://opendatacommunities.org/id/unitary-authority/peterborough,Peterborough City Council,Children's & Education Services - Education,Other School -related Education Functions,Transport,03/12/2014 00:00,698843,1447.2,REVENUE,Goldstar Cabs Ltd,HIRED TRANSPORT
Peterborough,http://opendatacommunities.org/id/unitary-authority/peterborough,Peterborough City Council,Children's & Education Services - Education,Other School -related Education Functions,Transport,03/12/2014 00:00,698848,967.2,REVENUE,Redacted Personal Data,HIRED TRANSPORT
Peterborough,http://opendatacommunities.org/id/unitary-authority/peterborough,Peterborough City Council,Children's & Education Services - Education,Other School -related Education Functions,Transport,03/12/2014 00:00,698852,643.2,REVENUE,Redacted Personal Data,HIRED TRANSPORT
Peterborough,http://opendatacommunities.org/id/unitary-authority/peterborough,Peterborough City Council,More than one Service Area Category,More than one Service Division,Balance Sheet,03/12/2014 00:00,698861,763933.58,Balance Sheet,Teachers Pensions,PENSIONS
Peterborough,http://opendatacommunities.org/id/unitary-authority/peterborough,Peterborough City Council,Planning Services,Environmental Initiatives,Supplies and Services,03/12/2014 00:00,698863,4998,REVENUE,Richard Donoyou Heritage,CONSULTANTS FEES
Peterborough,http://opendatacommunities.org/id/unitary-authority/peterborough,Peterborough City Council,Adult Social Care,Adult Learning Disabilities,Supplies and Services,03/12/2014 00:00,698865,2443.01,REVENUE,Redacted Personal Data,LEARNING DISABILITY RESIDENTIAL CARE
Peterborough,http://opendatacommunities.org/id/unitary-authority/peterborough,Peterborough City Council,More than one Service Area Category,More than one Service Division,Balance Sheet,03/12/2014 00:00,698930,4945,Balance Sheet,Fieldwork Admin Team (IMPREST),APPOINTEESHIP - CLIENT MONIES
Peterborough,http://opendatacommunities.org/id/unitary-authority/peterborough,Peterborough City Council,Adult Social Care,More than one Service Division,Transport,05/12/2014 00:00,670394,2157.6,REVENUE,Monarch Automotive,ADDITIONAL TRANSPORT
Peterborough,http://opendatacommunities.org/id/unitary-authority/peterborough,Peterborough City Council,Children's & Education Services - Children's Social Care,Other Children's & Families Services,Employees,05/12/2014 00:00,673129,1732,REVENUE,Anglia Ruskin University,TRAINING
Peterborough,http://opendatacommunities.org/id/unitary-authority/peterborough,Peterborough City Council,Adult Social Care,Older People,Supplies and Services,05/12/2014 00:00,674479,1266.76,REVENUE,FIELD HOUSE (EYE) LTD,OLDER PEOPLE RESIDENTIAL CARE
Peterborough,http://opendatacommunities.org/id/unitary-authority/peterborough,Peterborough City Council,Adult Social Care,Older People,Supplies and Services,05/12/2014 00:00,676475,1258.8,REVENUE,BUPA Care Homes,MH OLDER PEOPLE RESIDENTIAL CARE
Peterborough,http://opendatacommunities.org/id/unitary-authority/peterborough,Peterborough City Council,Children's & Education Services - Children's Social Care,Other Children's & Families Services,Employees,05/12/2014 00:00,683185,4312.5,REVENUE,Tempest Resourcing,EXTERNAL TEMPORARY STAFF
Peterborough,http://opendatacommunities.org/id/unitary-authority/peterborough,Peterborough City Council,Children's & Education Services - Children's Social Care,Other Children's & Families Services,Employees,05/12/2014 00:00,683187,4312.5,REVENUE,Tempest Resourcing,EXTERNAL TEMPORARY STAFF
Peterborough,http://opendatacommunities.org/id/unitary-authority/peterborough,Peterborough City Council,Children's & Education Services - Children's Social Care,Other Children's & Families Services,Employees,05/12/2014 00:00,683188,4312.5,REVENUE,Tempest Resourcing,EXTERNAL TEMPORARY STAFF
Peterborough,http://opendatacommunities.org/id/unitary-authority/peterborough,Peterborough City Council,Children's & Education Services - Education,Secondary,Supplies and Services,05/12/2014 00:00,684819,7639.9,REVENUE,Pearson Education,EXAM FEES
Peterborough,http://opendatacommunities.org/id/unitary-authority/peterborough,Peterborough City Council,Adult Social Care,Adult Learning Disabilities,Supplies and Services,05/12/2014 00:00,684841,2745.76,REVENUE,Voyage,LEARNING DISABILITY HOME CARE
Peterborough,http://opendatacommunities.org/id/unitary-authority/peterborough,Peterborough City Council,Adult Social Care,Adult Learning Disabilities,Supplies and Services,05/12/2014 00:00,684843,2999.96,REVENUE,Voyage,LEARNING DISABILITY HOME CARE
Peterborough,http://opendatacommunities.org/id/unitary-authority/peterborough,Peterborough City Council,Adult Social Care,Adult Learning Disabilities,Supplies and Services,05/12/2014 00:00,684844,4539.68,REVENUE,Voyage,LEARNING DISABILITY HOME CARE
Peterborough,http://opendatacommunities.org/id/unitary-authority/peterborough,Peterborough City Council,Adult Social Care,Adult Learning Disabilities,Supplies and Services,05/12/2014 00:00,684845,4539.68,REVENUE,Voyage,LEARNING DISABILITY HOME CARE
Peterborough,http://opendatacommunities.org/id/unitary-authority/peterborough,Peterborough City Council,Adult Social Care,Adult Learning Disabilities,Supplies and Services,05/12/2014 00:00,684846,4539.68,REVENUE,Voyage,LEARNING DISABILITY HOME CARE
Peterborough,http://opendatacommunities.org/id/unitary-authority/peterborough,Peterborough City Council,Highways and Transport Services,"Transport planning, policy and strategy",Employees,05/12/2014 00:00,686300,726.37,REVENUE,Reed Specialist Recruitment,EXTERNAL TEMPORARY STAFF
Peterborough,http://opendatacommunities.org/id/unitary-authority/peterborough,Peterborough City Council,Adult Social Care,Adult Mental Health,Third Party Payments,05/12/2014 00:00,686908,1410.24,REVENUE,Caritas Recruitment,EXTERNAL TEMPORARY STAFF
Peterborough,http://opendatacommunities.org/id/unitary-authority/peterborough,Peterborough City Council,Children's & Education Services - Education,Secondary,Supplies and Services,05/12/2014 00:00,687743,2339.8,REVENUE,Pearson Education,EXAM FEES
Peterborough,http://opendatacommunities.org/id/unitary-authority/peterborough,Peterborough City Council,Adult Social Care,Older People,Supplies and Services,05/12/2014 00:00,691392,2017.08,REVENUE,BUPA Care Homes,OLDER PEOPLE RESIDENTIAL CARE
Peterborough,http://opendatacommunities.org/id/unitary-authority/peterborough,Peterborough City Council,Children's & Education Services - Children's Social Care,Children Looked After,Supplies and Services - Transfer Payments,05/12/2014 00:00,691968,3693,REVENUE,Nexus Fostering Ltd,BOARDING - OUT ALLWNCES
Peterborough,http://opendatacommunities.org/id/unitary-authority/peterborough,Peterborough City Council,Adult Social Care,Older People,Supplies and Services,05/12/2014 00:00,692153,857.08,REVENUE,Movement 2 - Prism Medical UK,HEALTH & SAFETY
Peterborough,http://opendatacommunities.org/id/unitary-authority/peterborough,Peterborough City Council,Adult Social Care,Adult Mental Health,Third Party Payments,05/12/2014 00:00,692242,1610.7,REVENUE,Caritas Recruitment,EXTERNAL TEMPORARY STAFF
Peterborough,http://opendatacommunities.org/id/unitary-authority/peterborough,Peterborough City Council,Adult Social Care,Adult Learning Disabilities,Supplies and Services,05/12/2014 00:00,692304,3368,REVENUE,Voyage,LEARNING DISABILITY HOME CARE
Peterborough,http://opendatacommunities.org/id/unitary-authority/peterborough,Peterborough City Council,Adult Social Care,Adult Learning Disabilities,Supplies and Services,05/12/2014 00:00,692305,5110.4,REVENUE,Voyage,LEARNING DISABILITY HOME CARE
Peterborough,http://opendatacommunities.org/id/unitary-authority/peterborough,Peterborough City Council,Adult Social Care,Adult Learning Disabilities,Supplies and Services,05/12/2014 00:00,692306,4318.4,REVENUE,Voyage,LEARNING DISABILITY HOME CARE
Peterborough,http://opendatacommunities.org/id/unitary-authority/peterborough,Peterborough City Council,Children's & Education Services - Education,Other School -related Education Functions,Supplies and Services - Transfer Payments,05/12/2014 00:00,692497,1560,REVENUE,On Track Education Services Ltd,BOARDING - OUT ALLWNCES
Peterborough,http://opendatacommunities.org/id/unitary-authority/peterborough,Peterborough City Council,Children's & Education Services - Education,Other School -related Education Functions,Supplies and Services - Transfer Payments,05/12/2014 00:00,692499,2080,REVENUE,On Track Education Services Ltd,BOARDING - OUT ALLWNCES
Peterborough,http://opendatacommunities.org/id/unitary-authority/peterborough,Peterborough City Council,Children's & Education Services - Education,Other School -related Education Functions,Supplies and Services - Transfer Payments,05/12/2014 00:00,692500,2080,REVENUE,On Track Education Services Ltd,BOARDING - OUT ALLWNCES
Peterborough,http://opendatacommunities.org/id/unitary-authority/peterborough,Peterborough City Council,Adult Social Care,Older People,Supplies and Services,05/12/2014 00:00,693122,508.56,REVENUE,FIELD HOUSE (EYE) LTD,MH OLDER PEOPLE RESIDENTIAL CARE
Peterborough,http://opendatacommunities.org/id/unitary-authority/peterborough,Peterborough City Council,Support Services,Support Services,Supplies and Services,05/12/2014 00:00,693597,2431.2,REVENUE,Weightmans LLP,LEGAL COSTS
Peterborough,http://opendatacommunities.org/id/unitary-authority/peterborough,Peterborough City Council,Children's & Education Services - Children's Social Care,Children Looked After,Employees,05/12/2014 00:00,693837,850.61,REVENUE,Service Care Solutions Ltd,EXTERNAL TEMPORARY STAFF
Peterborough,http://opendatacommunities.org/id/unitary-authority/peterborough,Peterborough City Council,Adult Social Care,Adult Learning Disabilities,Employees,05/12/2014 00:00,694292,1545.3,REVENUE,Pulse,EXTERNAL TEMPORARY STAFF
Peterborough,http://opendatacommunities.org/id/unitary-authority/peterborough,Peterborough City Council,Adult Social Care,Older People,Supplies and Services,05/12/2014 00:00,696934,1253,REVENUE,STAR RESIDENTIAL HOME LTD,OLDER PEOPLE RESIDENTIAL CARE
Peterborough,http://opendatacommunities.org/id/unitary-authority/peterborough,Peterborough City Council,Adult Social Care,Adult Learning Disabilities,Employees,05/12/2014 00:00,697961,1776,REVENUE,Medicare First,EXTERNAL TEMPORARY STAFF
Peterborough,http://opendatacommunities.org/id/unitary-authority/peterborough,Peterborough City Council,Adult Social Care,Adult Learning Disabilities,Employees,05/12/2014 00:00,697962,1780.8,REVENUE,Medicare First,EXTERNAL TEMPORARY STAFF
Peterborough,http://opendatacommunities.org/id/unitary-authority/peterborough,Peterborough City Council,Adult Social Care,Adult Learning Disabilities,Employees,05/12/2014 00:00,697970,1776,REVENUE,Medicare First,EXTERNAL TEMPORARY STAFF
Peterborough,http://opendatacommunities.org/id/unitary-authority/peterborough,Peterborough City Council,Adult Social Care,Adult Learning Disabilities,Employees,05/12/2014 00:00,697983,1780.8,REVENUE,Medicare First,EXTERNAL TEMPORARY STAFF
Peterborough,http://opendatacommunities.org/id/unitary-authority/peterborough,Peterborough City Council,Adult Social Care,Older People,Supplies and Services,05/12/2014 00:00,698101,-1334.97,REVENUE,BUPA Care Homes,OLDER PEOPLE RESIDENTIAL CARE
Peterborough,http://opendatacommunities.org/id/unitary-authority/peterborough,Peterborough City Council,Adult Social Care,Adult Mental Health,Third Party Payments,05/12/2014 00:00,698270,3908.76,REVENUE,Caritas Recruitment,EXTERNAL TEMPORARY STAFF
Peterborough,http://opendatacommunities.org/id/unitary-authority/peterborough,Peterborough City Council,Adult Social Care,Adult Mental Health,Third Party Payments,05/12/2014 00:00,698271,1328.16,REVENUE,Caritas Recruitment,EXTERNAL TEMPORARY STAFF
Peterborough,http://opendatacommunities.org/id/unitary-authority/peterborough,Peterborough City Council,More than one Service Area Category,More than one Service Division,More than one Expenses Type,05/12/2014 00:00,698952,601.81,REVENUE,Peterborough Registrars Office Imprest,Numerous
Peterborough,http://opendatacommunities.org/id/unitary-authority/peterborough,Peterborough City Council,Housing Services,Homelessness,Supplies and Services,05/12/2014 00:00,698960,1210,REVENUE,Redacted Personal Data,FINANCIAL ASSISTANCE
Peterborough,http://opendatacommunities.org/id/unitary-authority/peterborough,Peterborough City Council,Deficit/(Surplus) on Trading Undertakings,Trading Account Surpluses & Deficits,Supplies and Services,05/12/2014 00:00,698974,565.92,REVENUE,Barron Clark Castings Ltd,ITEMS FOR RESALE
Peterborough,http://opendatacommunities.org/id/unitary-authority/peterborough,Peterborough City Council,Housing Services,Homelessness,Supplies and Services,05/12/2014 00:00,699110,1150,REVENUE,Property Line,FINANCIAL ASSISTANCE
Peterborough,http://opendatacommunities.org/id/unitary-authority/peterborough,Peterborough City Council,More than one Service Area Category,More than one Service Division,Balance Sheet,05/12/2014 00:00,699115,3089.95,Balance Sheet,The Prudential Assurance Company Ltd,PENSIONS
Peterborough,http://opendatacommunities.org/id/unitary-authority/peterborough,Peterborough City Council,More than one Service Area Category,More than one Service Division,More than one Expenses Type,05/12/2014 00:00,699120,1422.46,REVENUE,Peterborough City Council,Numerous
Peterborough,http://opendatacommunities.org/id/unitary-authority/peterborough,Peterborough City Council,Deficit/(Surplus) on Trading Undertakings,Trading Account Surpluses & Deficits,Supplies and Services,05/12/2014 00:00,699121,754.56,REVENUE,Barron Clark Castings Ltd,ITEMS FOR RESALE
Peterborough,http://opendatacommunities.org/id/unitary-authority/peterborough,Peterborough City Council,Children's & Education Services - Education,Secondary,Supplies and Services,05/12/2014 00:00,699192,2188.3,REVENUE,Pearson Education,EXAM FEES
Peterborough,http://opendatacommunities.org/id/unitary-authority/peterborough,Peterborough City Council,Children's & Education Services - Children's Social Care,Children Looked After,Supplies and Services - Transfer Payments,05/12/2014 00:00,699304,3318.22,REVENUE,Acorn Fostering Services Ltd,BOARDING - OUT ALLWNCES
Peterborough,http://opendatacommunities.org/id/unitary-authority/peterborough,Peterborough City Council,Housing Services,Private Sector Housing Renewal,Supplies and Services,05/12/2014 00:00,699307,9816,REVENUE,Warics Ltd,SPECIAL PROJECTS
Peterborough,http://opendatacommunities.org/id/unitary-authority/peterborough,Peterborough City Council,More than one Service Area Category,More than one Service Division,Balance Sheet,05/12/2014 00:00,699327,5050.03,Balance Sheet,The Prudential Assurance Company Ltd,PENSIONS
Peterborough,http://opendatacommunities.org/id/unitary-authority/peterborough,Peterborough City Council,Children's & Education Services - Education,Other School -related Education Functions,Employees,05/12/2014 00:00,699329,27077.24,REVENUE,Teachers Pensions,REDUNDANCY COSTS
Peterborough,http://opendatacommunities.org/id/unitary-authority/peterborough,Peterborough City Council,Adult Social Care,Older People,More than one Expenses Type,05/12/2014 00:00,699330,1150,REVENUE,Fieldwork Admin Team (IMPREST),Numerous
Peterborough,http://opendatacommunities.org/id/unitary-authority/peterborough,Peterborough City Council,Adult Social Care,Older People,Supplies and Services,08/12/2014 00:00,610916,1227.88,REVENUE,Park Vista Care Home,OLDER PEOPLE RESIDENTIAL CARE
Peterborough,http://opendatacommunities.org/id/unitary-authority/peterborough,Peterborough City Council,Adult Social Care,Older People,Supplies and Services,08/12/2014 00:00,616433,1293.96,REVENUE,Park Vista Care Home,OLDER PEOPLE RESIDENTIAL CARE
Peterborough,http://opendatacommunities.org/id/unitary-authority/peterborough,Peterborough City Council,Adult Social Care,Older People,Supplies and Services,08/12/2014 00:00,679073,2600,REVENUE,BROADLEIGH NURSING HOME,OLDER PEOPLE RESIDENTIAL CARE
Peterborough,http://opendatacommunities.org/id/unitary-authority/peterborough,Peterborough City Council,Adult Social Care,Older People,Supplies and Services,08/12/2014 00:00,683053,1293.96,REVENUE,Park Vista Care Home,OLDER PEOPLE RESIDENTIAL CARE
Peterborough,http://opendatacommunities.org/id/unitary-authority/peterborough,Peterborough City Council,More than one Service Area Category,More than one Service Division,Employees,08/12/2014 00:00,683470,2144.52,REVENUE,Sanctuary Personnel Ltd,EXTERNAL TEMPORARY STAFF
Peterborough,http://opendatacommunities.org/id/unitary-authority/peterborough,Peterborough City Council,Children's & Education Services - Children's Social Care,Other Children's & Families Services,Employees,08/12/2014 00:00,686294,1010.05,REVENUE,Eden Brown Ltd,EXTERNAL TEMPORARY STAFF
Peterborough,http://opendatacommunities.org/id/unitary-authority/peterborough,Peterborough City Council,Children's & Education Services - Children's Social Care,Other Children's & Families Services,Employees,08/12/2014 00:00,689162,2308.68,REVENUE,Sanctuary Personnel Ltd,EXTERNAL TEMPORARY STAFF
Peterborough,http://opendatacommunities.org/id/unitary-authority/peterborough,Peterborough City Council,Children's & Education Services - Children's Social Care,Other Children's & Families Services,Employees,08/12/2014 00:00,689166,1866.96,REVENUE,Sanctuary Personnel Ltd,EXTERNAL TEMPORARY STAFF
Peterborough,http://opendatacommunities.org/id/unitary-authority/peterborough,Peterborough City Council,Adult Social Care,Older People,Supplies and Services,08/12/2014 00:00,690310,2934.33,REVENUE,Pilgrim Havens,OLDER PEOPLE RESPITE CARE
Peterborough,http://opendatacommunities.org/id/unitary-authority/peterborough,Peterborough City Council,Adult Social Care,Older People,Supplies and Services,08/12/2014 00:00,691335,889.98,REVENUE,Avery House (Peterborough) t/a Brighterkind,SENSORY IMPAIRED RESPITE CARE
Peterborough,http://opendatacommunities.org/id/unitary-authority/peterborough,Peterborough City Council,Adult Social Care,Older People,Supplies and Services,08/12/2014 00:00,691336,1213.76,REVENUE,Avery House (Peterborough) t/a Brighterkind,OLDER PEOPLE RESPITE CARE
Peterborough,http://opendatacommunities.org/id/unitary-authority/peterborough,Peterborough City Council,Adult Social Care,Older People,Supplies and Services,08/12/2014 00:00,691460,829.35,REVENUE,Park Vista Care Home,OLDER PEOPLE RESIDENTIAL CARE
Peterborough,http://opendatacommunities.org/id/unitary-authority/peterborough,Peterborough City Council,Cultural and Related Services,Recreation & Sport,Supplies and Services,08/12/2014 00:00,692248,720,REVENUE,RMIS Ltd,ADMINISTRATION EXPENSES
Peterborough,http://opendatacommunities.org/id/unitary-authority/peterborough,Peterborough City Council,Highways and Transport Services,Parking Services,Supplies and Services,08/12/2014 00:00,692411,959.1,REVENUE,BemroseBooth Ltd,TICKETS
Peterborough,http://opendatacommunities.org/id/unitary-authority/peterborough,Peterborough City Council,Support Services,Support Services,Supplies and Services,08/12/2014 00:00,692412,808.72,REVENUE,Serco Ltd,COMPUTER HARDWARE
Peterborough,http://opendatacommunities.org/id/unitary-authority/peterborough,Peterborough City Council,Adult Social Care,Support Services & Management Costs,Supplies and Services,08/12/2014 00:00,692416,632.52,REVENUE,Serco Ltd,COMMUNICATIONS EQUIPMENT
Peterborough,http://opendatacommunities.org/id/unitary-authority/peterborough,Peterborough City Council,Highways and Transport Services,Parking Services,Supplies and Services,08/12/2014 00:00,692417,920.7,REVENUE,BemroseBooth Ltd,TICKETS
Peterborough,http://opendatacommunities.org/id/unitary-authority/peterborough,Peterborough City Council,Children's & Education Services - Children's Social Care,Other Children's & Families Services,Supplies and Services,08/12/2014 00:00,692419,9600,REVENUE,Serco Ltd,COMMUNICATIONS EQUIPMENT
Peterborough,http://opendatacommunities.org/id/unitary-authority/peterborough,Peterborough City Council,Housing Services,Private Sector Housing Renewal,Supplies and Services,08/12/2014 00:00,692451,718.25,REVENUE,Home and Garden Mann,CONTRACTORS
Peterborough,http://opendatacommunities.org/id/unitary-authority/peterborough,Peterborough City Council,Housing Services,Private Sector Housing Renewal,Supplies and Services,08/12/2014 00:00,692453,1392,REVENUE,Richard Masham Building Services,SPECIAL PROJECTS
Peterborough,http://opendatacommunities.org/id/unitary-authority/peterborough,Peterborough City Council,Housing Services,Private Sector Housing Renewal,Supplies and Services,08/12/2014 00:00,692456,1758,REVENUE,Richard Masham Building Services,SPECIAL PROJECTS
Peterborough,http://opendatacommunities.org/id/unitary-authority/peterborough,Peterborough City Council,Children's & Education Services - Children's Social Care,Other Children's & Families Services,Employees,08/12/2014 00:00,692457,1188,REVENUE,SWP Consulting,EXTERNAL TEMPORARY STAFF
Peterborough,http://opendatacommunities.org/id/unitary-authority/peterborough,Peterborough City Council,Adult Social Care,Older People,Supplies and Services,08/12/2014 00:00,692484,1130.72,REVENUE,Country Court Care Homes Ltd,OLDER PEOPLE RESIDENTIAL CARE
Peterborough,http://opendatacommunities.org/id/unitary-authority/peterborough,Peterborough City Council,Children's & Education Services - Education,Services to Young People,Supplies and Services,08/12/2014 00:00,693027,2700,REVENUE,Kingswood Learning & Leisure Grp Ltd,PROGRAMMES
Peterborough,http://opendatacommunities.org/id/unitary-authority/peterborough,Peterborough City Council,Cultural and Related Services,Tourism,Supplies and Services,08/12/2014 00:00,693035,594,REVENUE,Redacted Personal Data,MISCELLANEOUS
Peterborough,http://opendatacommunities.org/id/unitary-authority/peterborough,Peterborough City Council,Adult Social Care,Older People,Third Party Payments,08/12/2014 00:00,693106,7174.6,REVENUE,MEARS GROUP,THIRD PARTY PAYMENTS - CONTRACT
Peterborough,http://opendatacommunities.org/id/unitary-authority/peterborough,Peterborough City Council,Adult Social Care,Older People,Third Party Payments,08/12/2014 00:00,693108,5039.2,REVENUE,MEARS GROUP,THIRD PARTY PAYMENTS - CONTRACT
Peterborough,http://opendatacommunities.org/id/unitary-authority/peterborough,Peterborough City Council,Adult Social Care,Support Services & Management Costs,Supplies and Services,08/12/2014 00:00,693149,6534.96,REVENUE,Axiom Housing Association,INTERIM CARE
Peterborough,http://opendatacommunities.org/id/unitary-authority/peterborough,Peterborough City Council,Children's & Education Services - Children's Social Care,Children's Services - Commissioning and Social Work,Supplies and Services,08/12/2014 00:00,693162,2400,REVENUE,Peterborough Relationship Support,CHILDCARE
Peterborough,http://opendatacommunities.org/id/unitary-authority/peterborough,Peterborough City Council,Children's & Education Services - Children's Social Care,Children's Services - Commissioning and Social Work,Supplies and Services,08/12/2014 00:00,693163,2700,REVENUE,Peterborough Relationship Support,CHILDCARE
Peterborough,http://opendatacommunities.org/id/unitary-authority/peterborough,Peterborough City Council,Deficit/(Surplus) on Trading Undertakings,Trading Account Surpluses & Deficits,Supplies and Services,08/12/2014 00:00,693165,1558.37,REVENUE,Perkins Engines Co Ltd,ITEMS FOR RESALE
Peterborough,http://opendatacommunities.org/id/unitary-authority/peterborough,Peterborough City Council,Children's & Education Services - Children's Social Care,Children Looked After,Supplies and Services - Transfer Payments,08/12/2014 00:00,693301,13800,REVENUE,Lincoln House Childrens Services,BOARDING - OUT ALLWNCES
Peterborough,http://opendatacommunities.org/id/unitary-authority/peterborough,Peterborough City Council,Capital,Capital,Capital Pending Update to BS,08/12/2014 00:00,693316,900,CAPITAL,Ground Engineering Ltd,BUILDING AND SITE WORKS
Peterborough,http://opendatacommunities.org/id/unitary-authority/peterborough,Peterborough City Council,Adult Social Care,Older People,Supplies and Services,08/12/2014 00:00,693318,770.17,REVENUE,Hales Group Ltd,PHYSICAL DISABILITY HOME CARE
Peterborough,http://opendatacommunities.org/id/unitary-authority/peterborough,Peterborough City Council,Children's & Education Services - Children's Social Care,Youth Justice,Employees,08/12/2014 00:00,693319,7955.44,REVENUE,Cambs & P'boro NHS Foundation Trust,CONTRACT SERVICES
Peterborough,http://opendatacommunities.org/id/unitary-authority/peterborough,Peterborough City Council,Adult Social Care,Older People,Supplies and Services,08/12/2014 00:00,693322,2485.4,REVENUE,Hales Group Ltd,OLDER PEOPLE HOME CARE
Peterborough,http://opendatacommunities.org/id/unitary-authority/peterborough,Peterborough City Council,Adult Social Care,Older People,Supplies and Services,08/12/2014 00:00,693366,2626.76,REVENUE,Hales Group Ltd,PHYSICAL DISABILITY HOME CARE
Peterborough,http://opendatacommunities.org/id/unitary-authority/peterborough,Peterborough City Council,Adult Social Care,Adult Learning Disabilities,Supplies and Services,08/12/2014 00:00,693382,1440,REVENUE,THE HELPING HANDS GROUP,LEARNING DISABILITY DAY CARE
Peterborough,http://opendatacommunities.org/id/unitary-authority/peterborough,Peterborough City Council,Adult Social Care,Adult Learning Disabilities,Supplies and Services,08/12/2014 00:00,693426,5343.84,REVENUE,OAKFIELD (EASTON MAUDIT) LTD,LEARNING DISABILITY RESIDENTIAL CARE
Peterborough,http://opendatacommunities.org/id/unitary-authority/peterborough,Peterborough City Council,Children's & Education Services - Children's Social Care,Other Children's & Families Services,Employees,08/12/2014 00:00,693603,1898.64,REVENUE,Medicare First,EXTERNAL TEMPORARY STAFF
Peterborough,http://opendatacommunities.org/id/unitary-authority/peterborough,Peterborough City Council,Children's & Education Services - Children's Social Care,Other Children's & Families Services,Employees,08/12/2014 00:00,693605,1709.44,REVENUE,Medicare First,EXTERNAL TEMPORARY STAFF
Peterborough,http://opendatacommunities.org/id/unitary-authority/peterborough,Peterborough City Council,Children's & Education Services - Children's Social Care,Other Children's & Families Services,Employees,08/12/2014 00:00,693629,1704.96,REVENUE,Medicare First,EXTERNAL TEMPORARY STAFF
Peterborough,http://opendatacommunities.org/id/unitary-authority/peterborough,Peterborough City Council,Children's & Education Services - Children's Social Care,Other Children's & Families Services,Employees,08/12/2014 00:00,693632,1998,REVENUE,Medicare First,EXTERNAL TEMPORARY STAFF
Peterborough,http://opendatacommunities.org/id/unitary-authority/peterborough,Peterborough City Council,Children's & Education Services - Children's Social Care,Children Looked After,Supplies and Services,08/12/2014 00:00,693634,9166.67,REVENUE,St Andrew's Healthcare,HIRED SERVICES
Peterborough,http://opendatacommunities.org/id/unitary-authority/peterborough,Peterborough City Council,Children's & Education Services - Education,Secondary,Employees,08/12/2014 00:00,693747,935.31,REVENUE,IIC by Education (P'boro) Ltd,PENSIONS
Peterborough,http://opendatacommunities.org/id/unitary-authority/peterborough,Peterborough City Council,Adult Social Care,Adult Learning Disabilities,Supplies and Services,08/12/2014 00:00,693765,6352.32,REVENUE,Home From Home Care,LEARNING DISABILITY HOME CARE
Peterborough,http://opendatacommunities.org/id/unitary-authority/peterborough,Peterborough City Council,Adult Social Care,Adult Learning Disabilities,Supplies and Services,08/12/2014 00:00,693767,8314.72,REVENUE,Home From Home Care,LEARNING DISABILITY HOME CARE
Peterborough,http://opendatacommunities.org/id/unitary-authority/peterborough,Peterborough City Council,Adult Social Care,Adult Learning Disabilities,Supplies and Services,08/12/2014 00:00,693769,7897.24,REVENUE,Home From Home Care,LEARNING DISABILITY HOME CARE
Peterborough,http://opendatacommunities.org/id/unitary-authority/peterborough,Peterborough City Council,Adult Social Care,Older People,Supplies and Services,08/12/2014 00:00,693776,2960.84,REVENUE,Princess Christian (Nellsar Ltd),MH OLDER PEOPLE RESIDENTIAL CARE
Peterborough,http://opendatacommunities.org/id/unitary-authority/peterborough,Peterborough City Council,Children's & Education Services - Children's Social Care,Children Looked After,Supplies and Services,08/12/2014 00:00,693874,992.25,REVENUE,XMA Limited,COMPUTER CONSUMABLES
Peterborough,http://opendatacommunities.org/id/unitary-authority/peterborough,Peterborough City Council,Adult Social Care,Older People,Supplies and Services,08/12/2014 00:00,693904,1609.76,REVENUE,Barchester Healthcare (Werrington Lodge),OLDER PEOPLE RESIDENTIAL CARE
Peterborough,http://opendatacommunities.org/id/unitary-authority/peterborough,Peterborough City Council,Adult Social Care,Older People,Supplies and Services,08/12/2014 00:00,693905,1455.08,REVENUE,Barchester Healthcare (Werrington Lodge),OLDER PEOPLE RESIDENTIAL CARE
Peterborough,http://opendatacommunities.org/id/unitary-authority/peterborough,Peterborough City Council,Adult Social Care,Older People,Supplies and Services,08/12/2014 00:00,693906,1510.24,REVENUE,Barchester Healthcare (Werrington Lodge),OLDER PEOPLE RESIDENTIAL CARE
Peterborough,http://opendatacommunities.org/id/unitary-authority/peterborough,Peterborough City Council,Adult Social Care,Older People,Supplies and Services,08/12/2014 00:00,693909,2065.56,REVENUE,Barchester Healthcare (Werrington Lodge),MH OLDER PEOPLE RESIDENTIAL CARE
Peterborough,http://opendatacommunities.org/id/unitary-authority/peterborough,Peterborough City Council,Adult Social Care,Older People,Supplies and Services,08/12/2014 00:00,693910,1594.8,REVENUE,Barchester Healthcare (Werrington Lodge),MH OLDER PEOPLE RESIDENTIAL CARE
Peterborough,http://opendatacommunities.org/id/unitary-authority/peterborough,Peterborough City Council,Adult Social Care,Older People,Supplies and Services,08/12/2014 00:00,693911,1569.76,REVENUE,Barchester Healthcare (Werrington Lodge),MH OLDER PEOPLE RESIDENTIAL CARE
Peterborough,http://opendatacommunities.org/id/unitary-authority/peterborough,Peterborough City Council,Adult Social Care,Older People,Supplies and Services,08/12/2014 00:00,693912,644.92,REVENUE,Barchester Healthcare (Werrington Lodge),OLDER PEOPLE RESIDENTIAL CARE
Peterborough,http://opendatacommunities.org/id/unitary-authority/peterborough,Peterborough City Council,Adult Social Care,Older People,Supplies and Services,08/12/2014 00:00,693913,1525.76,REVENUE,Barchester Healthcare (Werrington Lodge),OLDER PEOPLE RESIDENTIAL CARE
Peterborough,http://opendatacommunities.org/id/unitary-authority/peterborough,Peterborough City Council,Adult Social Care,Older People,Supplies and Services,08/12/2014 00:00,693914,1218.96,REVENUE,Barchester Healthcare (Werrington Lodge),MH OLDER PEOPLE RESIDENTIAL CARE
Peterborough,http://opendatacommunities.org/id/unitary-authority/peterborough,Peterborough City Council,Adult Social Care,Older People,Supplies and Services,08/12/2014 00:00,693915,1372.24,REVENUE,Barchester Healthcare (Werrington Lodge),MH OLDER PEOPLE RESIDENTIAL CARE
Peterborough,http://opendatacommunities.org/id/unitary-authority/peterborough,Peterborough City Council,Adult Social Care,Older People,Supplies and Services,08/12/2014 00:00,693917,1381.08,REVENUE,Barchester Healthcare (Werrington Lodge),OLDER PEOPLE RESIDENTIAL CARE
Peterborough,http://opendatacommunities.org/id/unitary-authority/peterborough,Peterborough City Council,Adult Social Care,Older People,Supplies and Services,08/12/2014 00:00,693919,1246.16,REVENUE,Barchester Healthcare (Werrington Lodge),OLDER PEOPLE RESIDENTIAL CARE
Peterborough,http://opendatacommunities.org/id/unitary-authority/peterborough,Peterborough City Council,Capital,Capital,Capital Pending Update to BS,08/12/2014 00:00,693934,574.2,CAPITAL,Go Management Ltd TA GoUmbrella,EXTERNAL TEMPORARY STAFF
Peterborough,http://opendatacommunities.org/id/unitary-authority/peterborough,Peterborough City Council,Adult Social Care,Older People,Supplies and Services,08/12/2014 00:00,693952,1031.71,REVENUE,BUPA Care Homes,OLDER PEOPLE RESIDENTIAL CARE
Peterborough,http://opendatacommunities.org/id/unitary-authority/peterborough,Peterborough City Council,Adult Social Care,Older People,Supplies and Services,08/12/2014 00:00,693954,863.56,REVENUE,ARGYLE PARK NURSING HOME 2011,OLDER PEOPLE RESIDENTIAL CARE
Peterborough,http://opendatacommunities.org/id/unitary-authority/peterborough,Peterborough City Council,Adult Social Care,Adult Learning Disabilities,Supplies and Services,08/12/2014 00:00,693987,960.08,REVENUE,Mencap,LEARNING DISABILITY HOME CARE
Peterborough,http://opendatacommunities.org/id/unitary-authority/peterborough,Peterborough City Council,Adult Social Care,Adult Learning Disabilities,Supplies and Services,08/12/2014 00:00,693990,6000.44,REVENUE,Mencap,LEARNING DISABILITY HOME CARE
Peterborough,http://opendatacommunities.org/id/unitary-authority/peterborough,Peterborough City Council,Adult Social Care,Adult Learning Disabilities,Supplies and Services,08/12/2014 00:00,693991,792,REVENUE,Mencap,LEARNING DISABILITY HOME CARE
Peterborough,http://opendatacommunities.org/id/unitary-authority/peterborough,Peterborough City Council,Adult Social Care,Adult Learning Disabilities,Supplies and Services,08/12/2014 00:00,693993,858,REVENUE,Mencap,LEARNING DISABILITY HOME CARE
Peterborough,http://opendatacommunities.org/id/unitary-authority/peterborough,Peterborough City Council,Adult Social Care,Older People,Supplies and Services,08/12/2014 00:00,693994,841.08,REVENUE,Avery House (Peterborough) t/a Brighterkind,OLDER PEOPLE RESIDENTIAL CARE
Peterborough,http://opendatacommunities.org/id/unitary-authority/peterborough,Peterborough City Council,Adult Social Care,Adult Learning Disabilities,Supplies and Services,08/12/2014 00:00,693996,773.4,REVENUE,Mencap,LEARNING DISABILITY HOME CARE
Peterborough,http://opendatacommunities.org/id/unitary-authority/peterborough,Peterborough City Council,Adult Social Care,Older People,Supplies and Services,08/12/2014 00:00,693997,742.88,REVENUE,Avery House (Peterborough) t/a Brighterkind,OLDER PEOPLE RESIDENTIAL CARE
Peterborough,http://opendatacommunities.org/id/unitary-authority/peterborough,Peterborough City Council,Adult Social Care,Older People,Supplies and Services,08/12/2014 00:00,693998,628.52,REVENUE,Avery House (Peterborough) t/a Brighterkind,OLDER PEOPLE RESIDENTIAL CARE
Peterborough,http://opendatacommunities.org/id/unitary-authority/peterborough,Peterborough City Council,Adult Social Care,Older People,Supplies and Services,08/12/2014 00:00,693999,1624.64,REVENUE,Avery House (Peterborough) t/a Brighterkind,OLDER PEOPLE RESIDENTIAL CARE
Peterborough,http://opendatacommunities.org/id/unitary-authority/peterborough,Peterborough City Council,Adult Social Care,Older People,Supplies and Services,08/12/2014 00:00,694000,1284.16,REVENUE,Avery House (Peterborough) t/a Brighterkind,OLDER PEOPLE RESIDENTIAL CARE
Peterborough,http://opendatacommunities.org/id/unitary-authority/peterborough,Peterborough City Council,Adult Social Care,Older People,Supplies and Services,08/12/2014 00:00,694002,554.04,REVENUE,Avery House (Peterborough) t/a Brighterkind,OLDER PEOPLE RESIDENTIAL CARE
Peterborough,http://opendatacommunities.org/id/unitary-authority/peterborough,Peterborough City Council,Adult Social Care,Older People,Supplies and Services,08/12/2014 00:00,694003,965.52,REVENUE,Avery House (Peterborough) t/a Brighterkind,OLDER PEOPLE RESIDENTIAL CARE
Peterborough,http://opendatacommunities.org/id/unitary-authority/peterborough,Peterborough City Council,Adult Social Care,Older People,Supplies and Services,08/12/2014 00:00,694005,953.76,REVENUE,Avery House (Peterborough) t/a Brighterkind,OLDER PEOPLE RESIDENTIAL CARE
Peterborough,http://opendatacommunities.org/id/unitary-authority/peterborough,Peterborough City Council,Adult Social Care,Adult Learning Disabilities,Supplies and Services,08/12/2014 00:00,694006,3774.2,REVENUE,Mencap,LEARNING DISABILITY HOME CARE
Peterborough,http://opendatacommunities.org/id/unitary-authority/peterborough,Peterborough City Council,Adult Social Care,Older People,Supplies and Services,08/12/2014 00:00,694007,1263.16,REVENUE,Avery House (Peterborough) t/a Brighterkind,OLDER PEOPLE RESIDENTIAL CARE
Peterborough,http://opendatacommunities.org/id/unitary-authority/peterborough,Peterborough City Council,Adult Social Care,Older People,Supplies and Services,08/12/2014 00:00,694009,1307.56,REVENUE,Avery House (Peterborough) t/a Brighterkind,PROFESSIONAL SERVICES
Peterborough,http://opendatacommunities.org/id/unitary-authority/peterborough,Peterborough City Council,Adult Social Care,Adult Learning Disabilities,Supplies and Services,08/12/2014 00:00,694011,6265.4,REVENUE,Mencap,LEARNING DISABILITY HOME CARE
Peterborough,http://opendatacommunities.org/id/unitary-authority/peterborough,Peterborough City Council,Adult Social Care,Older People,Supplies and Services,08/12/2014 00:00,694012,1251,REVENUE,Avery House (Peterborough) t/a Brighterkind,OLDER PEOPLE RESIDENTIAL CARE
Peterborough,http://opendatacommunities.org/id/unitary-authority/peterborough,Peterborough City Council,Adult Social Care,Adult Learning Disabilities,Supplies and Services,08/12/2014 00:00,694013,805.2,REVENUE,Mencap,LEARNING DISABILITY HOME CARE
Peterborough,http://opendatacommunities.org/id/unitary-authority/peterborough,Peterborough City Council,Adult Social Care,Older People,Supplies and Services,08/12/2014 00:00,694014,1052.32,REVENUE,Avery House (Peterborough) t/a Brighterkind,OLDER PEOPLE RESIDENTIAL CARE
Peterborough,http://opendatacommunities.org/id/unitary-authority/peterborough,Peterborough City Council,Adult Social Care,Adult Learning Disabilities,Supplies and Services,08/12/2014 00:00,694015,633.6,REVENUE,Mencap,LEARNING DISABILITY HOME CARE
Peterborough,http://opendatacommunities.org/id/unitary-authority/peterborough,Peterborough City Council,Adult Social Care,Older People,Supplies and Services,08/12/2014 00:00,694016,981.84,REVENUE,Avery House (Peterborough) t/a Brighterkind,OLDER PEOPLE RESIDENTIAL CARE
